NUMERO_MANDATO;RIGA_MANDATO;QUIET;IMPORTO_RIGA;IMPORTO_MANDATO;BENEFICIARIO;CIG;TITOLO_PAGAMENTO;DATA_MANDATO;CAPITOLO;ARTICOLO;NUMERO_IMPEGNO;TITOLO;DESCR_TITOLO;LIVELLO_II;DESCR_LIVELLO_II;LIVELLO_III;DESCR_LIVELLO_III;LIVELLO_IV;DESCR_LIVELLO_IV;LIVELLO_V;DESCR_LIVELLO_V;DATA_PAG_EFF
2465;1;9999999;73,2;1.313,12;TIM SPA - TELECOM ITALIA SPA;Z502F0ADA2;SALDO Fatt.n. 8E00411255  del 09/06/2022 PERIODO 4 APR-MAG 2022 FAX SEDE MUNICIPALE;01/07/2022;134;0;944;1;Spese correnti;3;Acquisto di beni e servizi;2;Acquisto di servizi;5;Utenze e canoni;1;Telefonia fissa;05/07/2022
2465;2;9999999;73,2;1.313,12;TIM SPA - TELECOM ITALIA SPA;Z502F0ADA2;SALDO Fatt.n. 8E00413069  del 09/06/2022 PERIODO 4 APR-MAG 2022 UTENZA CENTRO PRELIEVI;01/07/2022;134;0;944;1;Spese correnti;3;Acquisto di beni e servizi;2;Acquisto di servizi;5;Utenze e canoni;1;Telefonia fissa;05/07/2022
2465;3;9999999;97,6;1.313,12;TIM SPA - TELECOM ITALIA SPA;Z502F0ADA2;SALDO Fatt.n. 8E00406141  del 09/06/2022 PERIODO 4 APR-MAG 2022 FAX POLIZIA LOCALE;01/07/2022;134;0;944;1;Spese correnti;3;Acquisto di beni e servizi;2;Acquisto di servizi;5;Utenze e canoni;1;Telefonia fissa;05/07/2022
2465;4;9999999;109,8;1.313,12;TIM SPA - TELECOM ITALIA SPA;Z502F0ADA2;SALDO Fatt.n. 8E00406183  del 09/06/2022 PERIODO 4 APR-MAG 2022 UTENZA SERVIZI SOCIALI;01/07/2022;134;0;944;1;Spese correnti;3;Acquisto di beni e servizi;2;Acquisto di servizi;5;Utenze e canoni;1;Telefonia fissa;05/07/2022
2465;5;9999999;110,43;1.313,12;TIM SPA - TELECOM ITALIA SPA;Z502F0ADA2;SALDO Fatt.n. 8E00413159  del 09/06/2022 PERIODO 4 APR-MAG 2022 FAX BIBLIOTECA COMUNALE;01/07/2022;134;0;944;1;Spese correnti;3;Acquisto di beni e servizi;2;Acquisto di servizi;5;Utenze e canoni;1;Telefonia fissa;05/07/2022
2465;6;9999999;123,02;1.313,12;TIM SPA - TELECOM ITALIA SPA;Z502F0ADA2;SALDO Fatt.n. 8E00412787  del 09/06/2022 PERIODO 4 APR-MAG 2022 UTENZA BIBLIOTECA COMUNALE;01/07/2022;134;0;944;1;Spese correnti;3;Acquisto di beni e servizi;2;Acquisto di servizi;5;Utenze e canoni;1;Telefonia fissa;05/07/2022
2465;7;9999999;123,02;1.313,12;TIM SPA - TELECOM ITALIA SPA;Z502F0ADA2;SALDO Fatt.n. 8E00413227  del 09/06/2022 PERIODO 4 APR-MAG 2022 UTENZA POLIZIA LOCALE;01/07/2022;134;0;944;1;Spese correnti;3;Acquisto di beni e servizi;2;Acquisto di servizi;5;Utenze e canoni;1;Telefonia fissa;05/07/2022
2465;8;9999999;124,76;1.313,12;TIM SPA - TELECOM ITALIA SPA;Z502F0ADA2;SALDO Fatt.n. 8E00412065  del 09/06/2022 PERIODO 4 APR-MAG 2022 UTENZA SEDE MUNICIPALE;01/07/2022;134;0;944;1;Spese correnti;3;Acquisto di beni e servizi;2;Acquisto di servizi;5;Utenze e canoni;1;Telefonia fissa;05/07/2022
2465;9;9999999;130,99;1.313,12;TIM SPA - TELECOM ITALIA SPA;Z502F0ADA2;SALDO Fatt.n. 8E00412070  del 09/06/2022 PERIODO 4 APR-MAG 2022 UTENZA SEDE MUNICIPALE;01/07/2022;134;0;944;1;Spese correnti;3;Acquisto di beni e servizi;2;Acquisto di servizi;5;Utenze e canoni;1;Telefonia fissa;05/07/2022
2465;10;9999999;136,25;1.313,12;TIM SPA - TELECOM ITALIA SPA;Z502F0ADA2;SALDO Fatt.n. 8E00411537  del 09/06/2022 PERIODO 4 APR-MAG 2022 FAX CENTRO PRELIEVI;01/07/2022;134;0;944;1;Spese correnti;3;Acquisto di beni e servizi;2;Acquisto di servizi;5;Utenze e canoni;1;Telefonia fissa;05/07/2022
2465;11;9999999;210,85;1.313,12;TIM SPA - TELECOM ITALIA SPA;Z502F0ADA2;SALDO Fatt.n. 8E00413703  del 09/06/2022 PERIODO 4 APR-MAG 2022 UTENZA SEDE MUNICIPALE;01/07/2022;134;0;944;1;Spese correnti;3;Acquisto di beni e servizi;2;Acquisto di servizi;5;Utenze e canoni;1;Telefonia fissa;05/07/2022
2466;1;9999999;1.097,98;1.097,98;TIM SPA - TELECOM ITALIA SPA;ZE027DF92B;SALDO Fatt.n. 4220422800024709  del 09/06/2022 PERIODO 4 APR-MAG 2022 CONNETIVITA FIBRA GBE;01/07/2022;134;0;179;1;Spese correnti;3;Acquisto di beni e servizi;2;Acquisto di servizi;5;Utenze e canoni;999;Utenze e canoni per altri servizi n.a.c.;05/07/2022
2467;1;9999999;533,19;533,19;TIM SPA - TELECOM ITALIA SPA;ZC0320B772;SALDO Fatt.n. 7X02251326  del 09/06/2022 PERIODO 4 APR-MAG 2022 CONVENZIONE CONSIP TELEFONIA MOBILE 8;01/07/2022;134;32;178;1;Spese correnti;3;Acquisto di beni e servizi;2;Acquisto di servizi;5;Utenze e canoni;2;Telefonia mobile;05/07/2022
2468;1;9999999;367,9;367,9;TIM SPA - TELECOM ITALIA SPA;ZE027DF92B;SALDO Fatt.n. 4220422800025157  del 09/06/2022 PERIODO 4 APR-MAG 2022 CONNETIVITA E BACKUP SEDE MUNICIPALE;01/07/2022;134;32;205;1;Spese correnti;3;Acquisto di beni e servizi;2;Acquisto di servizi;5;Utenze e canoni;999;Utenze e canoni per altri servizi n.a.c.;05/07/2022
2469;1;9999999;140,3;140,3;VEDETTA 2 MONDIALPOL SPA;ZD032B120B;SALDO Fatt.n. V9-1336  del 10/06/2022 MAGGIO 2022 SERVIZIO DI VIGILANZA MAGAZZINO -PROTEZIONE CIVILE V.LE FERRARIS - VILLA FARSETTI;01/07/2022;548;0;688;1;Spese correnti;3;Acquisto di beni e servizi;2;Acquisto di servizi;9;Manutenzione ordinaria e riparazioni;8;Manutenzione ordinaria e riparazioni di beni immobili;05/07/2022
2470;1;9999999;3.266,05;3.266,05;COOP.SOCIALE LIBERTA' ONLUS;Z05313C21F;SALDO Fatt.n. 508  del 31/05/2022 MAGGIO 2022 - SERVIZIO DI PULIZIA E SANIFICAZIONE UFFICI COMUNALI;01/07/2022;142;0;358;1;Spese correnti;3;Acquisto di beni e servizi;2;Acquisto di servizi;13;Servizi ausiliari per il funzionamento dell'ente;2;Servizi di pulizia e lavanderia;05/07/2022
2471;1;9999999;14.285,76;14.285,76;2I RETE GAS S.P.A.;Z6135074E0;SALDO PREVENTIVO N. 000026994548 DEL 25/01/2022 INTESTATO AL COMUNE DI SANTA MARIA DI SALA;01/07/2022;8563;0;1362;2;Spese in conto capitale;2;Investimenti fissi lordi e acquisto di terreni;1;Beni materiali;9;Beni immobili;12;Infrastrutture stradali;05/07/2022
2472;1;9999999;1.500,00;1.500,00;QUADIENT ITALY SRL;Z9234B8874;FONDO SPESE PER UTILIZZO MACCHINA AFFRANCATRICE IN USO ALLUFFICIO PROTOCOLLO  ANNO 2022. INTEGRAZIONE.;01/07/2022;145;0;591;1;Spese correnti;3;Acquisto di beni e servizi;2;Acquisto di servizi;16;Servizi amministrativi;999;Altre spese per servizi amministrativi;05/07/2022
2474;1;9999999;107,36;107,36;BARBATO BARBARA ECONOMO COMUNALE; ;Rimborso bollette;05/07/2022;121;6;136;1;Spese correnti;3;Acquisto di beni e servizi;1;Acquisto di beni;2;Altri beni di consumo;1;Carta, cancelleria e stampati;12/07/2022
2475;1;9999999;82,35;82,35;BARBATO BARBARA ECONOMO COMUNALE; ;Rimborso bollette;05/07/2022;1821;0;25;1;Spese correnti;3;Acquisto di beni e servizi;1;Acquisto di beni;2;Altri beni di consumo;999;Altri beni e materiali di consumo n.a.c.;12/07/2022
2476;1;9999999;912;912;OMESSO NOMINATIVO NEL RISPETTO DELLA NORMATIVA SULLA PROTEZIONE DATI PERSONALI; ;MAGGIO 2022 MINIMO VITALE  2 TRANCHE  (QUOTA SO.A );05/07/2022;3957;54;373;1;Spese correnti;4;Trasferimenti correnti;2;Trasferimenti correnti a Famiglie;5;Altri trasferimenti a famiglie;999;Altri trasferimenti a famiglie n.a.c.;13/07/2022
2478;1;9999999;1.200,00;1.200,00;OMESSO NOMINATIVO NEL RISPETTO DELLA NORMATIVA SULLA PROTEZIONE DATI PERSONALI; ;CONTRIBUTO REGIONALE IMPEGNATIVA DI CURA DOMICILIARE -  ICD M e Mgs - 1 TRIMESTRE 2022.;05/07/2022;3957;50;564;1;Spese correnti;4;Trasferimenti correnti;2;Trasferimenti correnti a Famiglie;2;Interventi assistenziali;999;Altri assegni e sussidi assistenziali;12/07/2022
2479;1;9999999;1.200,00;1.200,00;OMESSO NOMINATIVO NEL RISPETTO DELLA NORMATIVA SULLA PROTEZIONE DATI PERSONALI; ;CONTRIBUTO REGIONALE IMPEGNATIVA DI CURA DOMICILIARE -  ICD M e Mgs - 1 TRIMESTRE 2022.;05/07/2022;3957;50;565;1;Spese correnti;4;Trasferimenti correnti;2;Trasferimenti correnti a Famiglie;2;Interventi assistenziali;999;Altri assegni e sussidi assistenziali;12/07/2022
2480;1;9999999;1.200,00;1.200,00;OMESSO NOMINATIVO NEL RISPETTO DELLA NORMATIVA SULLA PROTEZIONE DATI PERSONALI; ;CONTRIBUTO REGIONALE IMPEGNATIVA DI CURA DOMICILIARE -  ICD M e Mgs - 1 TRIMESTRE 2022. CACCIN MARIA;05/07/2022;3957;50;566;1;Spese correnti;4;Trasferimenti correnti;2;Trasferimenti correnti a Famiglie;2;Interventi assistenziali;999;Altri assegni e sussidi assistenziali;12/07/2022
2481;1;9999999;1.200,00;1.200,00;OMESSO NOMINATIVO NEL RISPETTO DELLA NORMATIVA SULLA PROTEZIONE DATI PERSONALI; ;CONTRIBUTO REGIONALE IMPEGNATIVA DI CURA DOMICILIARE -  ICD M e Mgs - 1 TRIMESTRE 2022. CACCIN MAFALDA;05/07/2022;3957;50;567;1;Spese correnti;4;Trasferimenti correnti;2;Trasferimenti correnti a Famiglie;2;Interventi assistenziali;999;Altri assegni e sussidi assistenziali;12/07/2022
2482;1;9999999;1.200,00;1.200,00;OMESSO NOMINATIVO NEL RISPETTO DELLA NORMATIVA SULLA PROTEZIONE DATI PERSONALI; ;CONTRIBUTO REGIONALE IMPEGNATIVA DI CURA DOMICILIARE -  ICD M e Mgs - 1 TRIMESTRE 2022.  CARRARO ROSA;05/07/2022;3957;50;568;1;Spese correnti;4;Trasferimenti correnti;2;Trasferimenti correnti a Famiglie;2;Interventi assistenziali;999;Altri assegni e sussidi assistenziali;12/07/2022
2483;1;9999999;1.200,00;1.200,00;OMESSO NOMINATIVO NEL RISPETTO DELLA NORMATIVA SULLA PROTEZIONE DATI PERSONALI; ;CONTRIBUTO REGIONALE IMPEGNATIVA DI CURA DOMICILIARE -  ICD M e Mgs - 1 TRIMESTRE 2022.;05/07/2022;3957;50;569;1;Spese correnti;4;Trasferimenti correnti;2;Trasferimenti correnti a Famiglie;2;Interventi assistenziali;999;Altri assegni e sussidi assistenziali;12/07/2022
2484;1;9999999;800;800;OMESSO NOMINATIVO NEL RISPETTO DELLA NORMATIVA SULLA PROTEZIONE DATI PERSONALI; ;CONTRIBUTO REGIONALE IMPEGNATIVA DI CURA DOMICILIARE -  ICD M e Mgs - 1 TRIMESTRE 2022. GIACOMIN LINA;05/07/2022;3957;50;570;1;Spese correnti;4;Trasferimenti correnti;2;Trasferimenti correnti a Famiglie;2;Interventi assistenziali;999;Altri assegni e sussidi assistenziali;12/07/2022
2485;1;9999999;1.200,00;1.200,00;OMESSO NOMINATIVO NEL RISPETTO DELLA NORMATIVA SULLA PROTEZIONE DATI PERSONALI; ;CONTRIBUTO REGIONALE IMPEGNATIVA DI CURA DOMICILIARE -  ICD M e Mgs - 1 TRIMESTRE 2022.;05/07/2022;3957;50;571;1;Spese correnti;4;Trasferimenti correnti;2;Trasferimenti correnti a Famiglie;2;Interventi assistenziali;999;Altri assegni e sussidi assistenziali;12/07/2022
2486;1;9999999;1.200,00;1.200,00;OMESSO NOMINATIVO NEL RISPETTO DELLA NORMATIVA SULLA PROTEZIONE DATI PERSONALI; ;CONTRIBUTO REGIONALE IMPEGNATIVA DI CURA DOMICILIARE -  ICD M e Mgs - 1 TRIMESTRE 2022.;05/07/2022;3957;50;572;1;Spese correnti;4;Trasferimenti correnti;2;Trasferimenti correnti a Famiglie;2;Interventi assistenziali;999;Altri assegni e sussidi assistenziali;12/07/2022
2487;1;9999999;1.200,00;1.200,00;OMESSO NOMINATIVO NEL RISPETTO DELLA NORMATIVA SULLA PROTEZIONE DATI PERSONALI; ;CONTRIBUTO REGIONALE IMPEGNATIVA DI CURA DOMICILIARE -  ICD M e Mgs - 1 TRIMESTRE 2022.;05/07/2022;3957;50;573;1;Spese correnti;4;Trasferimenti correnti;2;Trasferimenti correnti a Famiglie;2;Interventi assistenziali;999;Altri assegni e sussidi assistenziali;12/07/2022
2488;1;9999999;1.200,00;1.200,00;OMESSO NOMINATIVO NEL RISPETTO DELLA NORMATIVA SULLA PROTEZIONE DATI PERSONALI; ;CONTRIBUTO REGIONALE IMPEGNATIVA DI CURA DOMICILIARE -  ICD M e Mgs - 1 TRIMESTRE 2022.;05/07/2022;3957;50;574;1;Spese correnti;4;Trasferimenti correnti;2;Trasferimenti correnti a Famiglie;2;Interventi assistenziali;999;Altri assegni e sussidi assistenziali;12/07/2022
2489;1;9999999;1.200,00;1.200,00;OMESSO NOMINATIVO NEL RISPETTO DELLA NORMATIVA SULLA PROTEZIONE DATI PERSONALI; ;CONTRIBUTO REGIONALE IMPEGNATIVA DI CURA DOMICILIARE -  ICD M e Mgs - 1 TRIMESTRE 2022.;05/07/2022;3957;50;575;1;Spese correnti;4;Trasferimenti correnti;2;Trasferimenti correnti a Famiglie;2;Interventi assistenziali;999;Altri assegni e sussidi assistenziali;12/07/2022
2490;1;9999999;1.200,00;1.200,00;OMESSO NOMINATIVO NEL RISPETTO DELLA NORMATIVA SULLA PROTEZIONE DATI PERSONALI; ;CONTRIBUTO REGIONALE IMPEGNATIVA DI CURA DOMICILIARE -  ICD M e Mgs - 1 TRIMESTRE 2022.;05/07/2022;3957;50;576;1;Spese correnti;4;Trasferimenti correnti;2;Trasferimenti correnti a Famiglie;2;Interventi assistenziali;999;Altri assegni e sussidi assistenziali;12/07/2022
2491;1;9999999;400;400;OMESSO NOMINATIVO NEL RISPETTO DELLA NORMATIVA SULLA PROTEZIONE DATI PERSONALI; ;CONTRIBUTO REGIONALE IMPEGNATIVA DI CURA DOMICILIARE -  ICD M e Mgs - 1 TRIMESTRE 2022.;05/07/2022;3957;50;577;1;Spese correnti;4;Trasferimenti correnti;2;Trasferimenti correnti a Famiglie;2;Interventi assistenziali;999;Altri assegni e sussidi assistenziali;12/07/2022
2492;1;9999999;1.200,00;1.200,00;OMESSO NOMINATIVO NEL RISPETTO DELLA NORMATIVA SULLA PROTEZIONE DATI PERSONALI; ;CONTRIBUTO REGIONALE IMPEGNATIVA DI CURA DOMICILIARE -  ICD M e Mgs - 1 TRIMESTRE 2022.;05/07/2022;3957;50;578;1;Spese correnti;4;Trasferimenti correnti;2;Trasferimenti correnti a Famiglie;2;Interventi assistenziali;999;Altri assegni e sussidi assistenziali;12/07/2022
2493;1;9999999;1.200,00;1.200,00;OMESSO NOMINATIVO NEL RISPETTO DELLA NORMATIVA SULLA PROTEZIONE DATI PERSONALI; ;CONTRIBUTO REGIONALE IMPEGNATIVA DI CURA DOMICILIARE -  ICD M e Mgs - 1 TRIMESTRE 2022.  VECCHIATO FERDINANDO;05/07/2022;3957;50;579;1;Spese correnti;4;Trasferimenti correnti;2;Trasferimenti correnti a Famiglie;2;Interventi assistenziali;999;Altri assegni e sussidi assistenziali;12/07/2022
2494;1;9999999;400;400;OMESSO NOMINATIVO NEL RISPETTO DELLA NORMATIVA SULLA PROTEZIONE DATI PERSONALI; ;CONTRIBUTO REGIONALE IMPEGNATIVA DI CURA DOMICILIARE -  ICD M e Mgs - 1 TRIMESTRE 2022.;05/07/2022;3957;50;581;1;Spese correnti;4;Trasferimenti correnti;2;Trasferimenti correnti a Famiglie;2;Interventi assistenziali;999;Altri assegni e sussidi assistenziali;12/07/2022
2495;1;9999999;1.200,00;1.200,00;OMESSO NOMINATIVO NEL RISPETTO DELLA NORMATIVA SULLA PROTEZIONE DATI PERSONALI; ;CONTRIBUTO REGIONALE IMPEGNATIVA DI CURA DOMICILIARE -  ICD M - 1 TRIMESTRE 2022.;05/07/2022;3957;50;582;1;Spese correnti;4;Trasferimenti correnti;2;Trasferimenti correnti a Famiglie;2;Interventi assistenziali;999;Altri assegni e sussidi assistenziali;12/07/2022
2496;1;9999999;400;400;OMESSO NOMINATIVO NEL RISPETTO DELLA NORMATIVA SULLA PROTEZIONE DATI PERSONALI; ;CONTRIBUTO REGIONALE IMPEGNATIVA DI CURA DOMICILIARE -  ICD M - 1 TRIMESTRE 2022.;05/07/2022;3957;50;583;1;Spese correnti;4;Trasferimenti correnti;2;Trasferimenti correnti a Famiglie;2;Interventi assistenziali;999;Altri assegni e sussidi assistenziali;12/07/2022
2497;1;9999999;1.200,00;1.200,00;OMESSO NOMINATIVO NEL RISPETTO DELLA NORMATIVA SULLA PROTEZIONE DATI PERSONALI; ;CONTRIBUTO REGIONALE IMPEGNATIVA DI CURA DOMICILIARE -  ICD M - 1 TRIMESTRE 2022.;05/07/2022;3957;50;584;1;Spese correnti;4;Trasferimenti correnti;2;Trasferimenti correnti a Famiglie;2;Interventi assistenziali;999;Altri assegni e sussidi assistenziali;12/07/2022
2498;1;9999999;1.200,00;1.200,00;OMESSO NOMINATIVO NEL RISPETTO DELLA NORMATIVA SULLA PROTEZIONE DATI PERSONALI; ;CONTRIBUTO REGIONALE IMPEGNATIVA DI CURA DOMICILIARE -  ICD M - 1 TRIMESTRE 2022.. FIORESE MARCELLA;05/07/2022;3957;50;585;1;Spese correnti;4;Trasferimenti correnti;2;Trasferimenti correnti a Famiglie;2;Interventi assistenziali;999;Altri assegni e sussidi assistenziali;12/07/2022
2499;1;9999999;1.200,00;1.200,00;OMESSO NOMINATIVO NEL RISPETTO DELLA NORMATIVA SULLA PROTEZIONE DATI PERSONALI; ;CONTRIBUTO REGIONALE IMPEGNATIVA DI CURA DOMICILIARE -  ICD M - 1 TRIMESTRE 2022.;05/07/2022;3957;50;586;1;Spese correnti;4;Trasferimenti correnti;2;Trasferimenti correnti a Famiglie;2;Interventi assistenziali;999;Altri assegni e sussidi assistenziali;12/07/2022
2500;1;9999999;150;150;OMESSO NOMINATIVO NEL RISPETTO DELLA NORMATIVA SULLA PROTEZIONE DATI PERSONALI; ;LUGLIO 2022 AFFIDO FAMILIARE;05/07/2022;3757;50;225;1;Spese correnti;4;Trasferimenti correnti;2;Trasferimenti correnti a Famiglie;2;Interventi assistenziali;999;Altri assegni e sussidi assistenziali;12/07/2022
2501;1;9999999;220;220;OMESSO NOMINATIVO NEL RISPETTO DELLA NORMATIVA SULLA PROTEZIONE DATI PERSONALI; ;RATA LUGLIO 2022 CONTRIBUTO ASSEGNI DI SOLLIEVO;05/07/2022;3957;50;449;1;Spese correnti;4;Trasferimenti correnti;2;Trasferimenti correnti a Famiglie;2;Interventi assistenziali;999;Altri assegni e sussidi assistenziali;19/07/2022
2502;1;9999999;220;220;OMESSO NOMINATIVO NEL RISPETTO DELLA NORMATIVA SULLA PROTEZIONE DATI PERSONALI; ;RATA LUGLIO 2022 CONTRIBUTO ASSEGNI DI SOLLIEVO;05/07/2022;3957;50;452;1;Spese correnti;4;Trasferimenti correnti;2;Trasferimenti correnti a Famiglie;2;Interventi assistenziali;999;Altri assegni e sussidi assistenziali;12/07/2022
2503;1;0;220;220;OMESSO NOMINATIVO NEL RISPETTO DELLA NORMATIVA SULLA PROTEZIONE DATI PERSONALI; ;RATA LUGLIO 2022 CONTRIBUTO ASSEGNI DI SOLLIEVO;05/07/2022;3957;50;453;1;Spese correnti;4;Trasferimenti correnti;2;Trasferimenti correnti a Famiglie;2;Interventi assistenziali;999;Altri assegni e sussidi assistenziali;05/07/2022
2504;1;9999999;220;220;OMESSO NOMINATIVO NEL RISPETTO DELLA NORMATIVA SULLA PROTEZIONE DATI PERSONALI; ;RATA LUGLIO 2022 CONTRIBUTO ASSEGNI DI SOLLIEVO;05/07/2022;3957;50;454;1;Spese correnti;4;Trasferimenti correnti;2;Trasferimenti correnti a Famiglie;2;Interventi assistenziali;999;Altri assegni e sussidi assistenziali;12/07/2022
2505;1;9999999;130;130;OMESSO NOMINATIVO NEL RISPETTO DELLA NORMATIVA SULLA PROTEZIONE DATI PERSONALI; ;RATA LUGLIO 2022 CONTRIBUTO ASSEGNI DI SOLLIEVO;05/07/2022;3957;50;456;1;Spese correnti;4;Trasferimenti correnti;2;Trasferimenti correnti a Famiglie;2;Interventi assistenziali;999;Altri assegni e sussidi assistenziali;12/07/2022
2506;1;9999999;130;130;OMESSO NOMINATIVO NEL RISPETTO DELLA NORMATIVA SULLA PROTEZIONE DATI PERSONALI; ;RATA LUGLIO 2022 CONTRIBUTO ASSEGNI DI SOLLIEVO;05/07/2022;3957;50;457;1;Spese correnti;4;Trasferimenti correnti;2;Trasferimenti correnti a Famiglie;2;Interventi assistenziali;999;Altri assegni e sussidi assistenziali;12/07/2022
2507;1;9999999;130;130;OMESSO NOMINATIVO NEL RISPETTO DELLA NORMATIVA SULLA PROTEZIONE DATI PERSONALI; ;RATA LUGLIO 2022 CONTRIBUTO ASSEGNI DI SOLLIEVO;05/07/2022;3957;50;458;1;Spese correnti;4;Trasferimenti correnti;2;Trasferimenti correnti a Famiglie;2;Interventi assistenziali;999;Altri assegni e sussidi assistenziali;12/07/2022
2508;1;9999999;220;220;OMESSO NOMINATIVO NEL RISPETTO DELLA NORMATIVA SULLA PROTEZIONE DATI PERSONALI; ;RATA LUGLIO 2022 CONTRIBUTO ASSEGNI DI SOLLIEVO;05/07/2022;3957;50;459;1;Spese correnti;4;Trasferimenti correnti;2;Trasferimenti correnti a Famiglie;2;Interventi assistenziali;999;Altri assegni e sussidi assistenziali;12/07/2022
2509;1;9999999;220;220;OMESSO NOMINATIVO NEL RISPETTO DELLA NORMATIVA SULLA PROTEZIONE DATI PERSONALI; ;RATA LUGLIO 2022 CONTRIBUTO ASSEGNI DI SOLLIEVO;05/07/2022;3957;50;460;1;Spese correnti;4;Trasferimenti correnti;2;Trasferimenti correnti a Famiglie;2;Interventi assistenziali;999;Altri assegni e sussidi assistenziali;12/07/2022
2510;1;9999999;220;220;OMESSO NOMINATIVO NEL RISPETTO DELLA NORMATIVA SULLA PROTEZIONE DATI PERSONALI; ;RATA LUGLIO 2022 CONTRIBUTO ASSEGNI DI SOLLIEVO;05/07/2022;3957;50;461;1;Spese correnti;4;Trasferimenti correnti;2;Trasferimenti correnti a Famiglie;2;Interventi assistenziali;999;Altri assegni e sussidi assistenziali;12/07/2022
2511;1;9999999;220;220;OMESSO NOMINATIVO NEL RISPETTO DELLA NORMATIVA SULLA PROTEZIONE DATI PERSONALI; ;RATA LUGLIO 2022 CONTRIBUTO ASSEGNI DI SOLLIEVO;05/07/2022;3957;50;462;1;Spese correnti;4;Trasferimenti correnti;2;Trasferimenti correnti a Famiglie;2;Interventi assistenziali;999;Altri assegni e sussidi assistenziali;12/07/2022
2512;1;9999999;130;130;OMESSO NOMINATIVO NEL RISPETTO DELLA NORMATIVA SULLA PROTEZIONE DATI PERSONALI; ;RATA LUGLIO 2022 CONTRIBUTO ASSEGNI DI SOLLIEVO;05/07/2022;3957;50;463;1;Spese correnti;4;Trasferimenti correnti;2;Trasferimenti correnti a Famiglie;2;Interventi assistenziali;999;Altri assegni e sussidi assistenziali;12/07/2022
2513;1;9999999;28,17;28,17;ENI SPA DIVISIONE REFINING & MARKETING;Z0234B8009;ACCONTO Fatt.n. 29570115  del 31/05/2022 MAGGIO 2022 - FORNITURA METANO;05/07/2022;4121;0;8;1;Spese correnti;3;Acquisto di beni e servizi;1;Acquisto di beni;2;Altri beni di consumo;2;Carburanti, combustibili e lubrificanti;12/07/2022
2514;1;9999999;0,8;0,8;ENI SPA DIVISIONE REFINING & MARKETING;Z0234B8009;ACCONTO Fatt.n. 29570115  del 31/05/2022 MAGGIO 2022 - FORNITURA METANO;05/07/2022;4121;0;8;1;Spese correnti;3;Acquisto di beni e servizi;1;Acquisto di beni;2;Altri beni di consumo;2;Carburanti, combustibili e lubrificanti;12/07/2022
2515;1;9999999;144,03;144,03;ENI SPA DIVISIONE REFINING & MARKETING;Z0234B8009;SALDO Fatt.n. 29570115  del 31/05/2022 MAGGIO 2022 - FORNITURA METANO;05/07/2022;4121;0;8;1;Spese correnti;3;Acquisto di beni e servizi;1;Acquisto di beni;2;Altri beni di consumo;2;Carburanti, combustibili e lubrificanti;11/07/2022
2516;1;9999999;0,72;2,3;BANCA MPS SPA; ;16520 COMUNE DI SANTA MARIA DI SALA CC 16520-COMMISSIONI DEL 06/06/2022 (P. 17 -R. del 07/06/2022);06/07/2022;146;0;418;1;Spese correnti;3;Acquisto di beni e servizi;2;Acquisto di servizi;17;Servizi finanziari;1;Commissioni per servizi finanziari;13/07/2022
2516;2;9999999;1,58;2,3;BANCA MPS SPA; ;16520 COMUNE DI SANTA MARIA DI SALA CC 16520-COMMISSIONI DEL 09/06/2022 (P. 18 -R. del 10/06/2022);06/07/2022;146;0;418;1;Spese correnti;3;Acquisto di beni e servizi;2;Acquisto di servizi;17;Servizi finanziari;1;Commissioni per servizi finanziari;13/07/2022
2517;1;9999999;1.415,36;2.878,14;ANCI DIGITALE SPA;Z96361ACA4;SALDO Fatt.n. 5319  del 01/07/2022 CANONE ACI PRA ANNO 2022;07/07/2022;1134;0;425;1;Spese correnti;3;Acquisto di beni e servizi;2;Acquisto di servizi;5;Utenze e canoni;3;Accesso a banche dati e a pubblicazioni on line;14/07/2022
2517;2;9999999;1.462,78;2.878,14;ANCI DIGITALE SPA;Z96361ACA4;SALDO Fatt.n. 5318  del 01/07/2022 CANONE SERVIZI DI BASE ANNO 2022;07/07/2022;1134;0;425;1;Spese correnti;3;Acquisto di beni e servizi;2;Acquisto di servizi;5;Utenze e canoni;3;Accesso a banche dati e a pubblicazioni on line;14/07/2022
2518;1;9999999;1.110,87;1.110,87;FASTWEB SPA;5133642F61;SALDO Fatt.n. PAE0011761  del 30/04/2022 CANONE CONNETIVITA SCUOLE PERIODO DAL 1 MARZO AL 30 APRILE 2022;07/07/2022;1334;0;598;1;Spese correnti;3;Acquisto di beni e servizi;2;Acquisto di servizi;5;Utenze e canoni;1;Telefonia fissa;14/07/2022
2519;1;9999999;1.470,10;1.470,10;GRAFICHE QUATTRO SRL;Z3E3682186;ACCONTO Fatt.n. 000004-0CPAPA  del 31/05/2022 RESTATE IN VILLA - RASSEGNA ESTIVA 2022 - PIEGHEVOLI E LOCANDINE;07/07/2022;31;0;539;1;Spese correnti;3;Acquisto di beni e servizi;2;Acquisto di servizi;2;Organizzazione eventi, pubblicita` e servizi per trasferta;999;Altre spese per relazioni pubbliche, convegni e mostre, pubblicita` n.a.c;14/07/2022
2520;1;9999999;9.044,60;9.044,60;FANTOZZI & ASSOCIATI STUDIO LEGALE TRIBUTARIO;Z78359B601;SALDO Fatt.n. 398/2022  del 21/06/2022 PRESTAZIONI PROFESSIONALI RELATIVE ALLA REDAZIONE DI UN RICORSO DINANZI ALLA CORTE DI CASSAZIONE AVVERSO LA SENTENZA N.  1463/7/2021;07/07/2022;40;0;379;1;Spese correnti;3;Acquisto di beni e servizi;2;Acquisto di servizi;11;Prestazioni professionali e specialistiche;6;Patrocinio legale;14/07/2022
2521;1;9999999;82,64;82,64;MG SAS DI MANIGHETTI KATIA, ALBERTO E C.;Z95336499F;ACCONTO Fatt.n. 1I-798  del 10/06/2022 FORNITURA SALDO N. 80 RISME CARTA BIANCA A4 GR. 80 PER GLI UFFICI COMUNALI;07/07/2022;521;6;897;1;Spese correnti;3;Acquisto di beni e servizi;1;Acquisto di beni;2;Altri beni di consumo;1;Carta, cancelleria e stampati;14/07/2022
2522;1;9999999;122;122;FEDERAZIONE DEI COMUNI DEL CAMPOSAMPIERESE;Z08364CEA1;SALDO Fatt.n. 20/3/1  del 23/06/2022 CORSO DI FORMAZIONE ACCERTAMENTO E RISCOSSIONE DEI TRIBUTI LOCALI - FATTISPECIE PARTICOLARI IN DATA 12.05.22 DIP. C.D.;07/07/2022;833;0;441;1;Spese correnti;3;Acquisto di beni e servizi;2;Acquisto di servizi;4;Acquisto di servizi per formazione e addestramento del personale dell'ente;4;Acquisto di servizi per formazione obbligatoria;19/07/2022
2523;1;9999999;139,89;139,89;MG SAS DI MANIGHETTI KATIA, ALBERTO E C.;Z95336499F;SALDO Fatt.n. 1I-798  del 10/06/2022 FORNITURA SALDO N. 80 RISME CARTA BIANCA A4 GR. 80 PER GLI UFFICI COMUNALI;07/07/2022;1121;6;898;1;Spese correnti;3;Acquisto di beni e servizi;1;Acquisto di beni;2;Altri beni di consumo;1;Carta, cancelleria e stampati;14/07/2022
2524;1;9999999;1.470,10;1.470,10;GRAFICHE QUATTRO SRL;Z3E3682186;SALDO Fatt.n. 000004-0CPAPA  del 31/05/2022 RESTATE IN VILLA - RASSEGNA ESTIVA 2022 - PIEGHEVOLI E LOCANDINE;07/07/2022;1831;0;538;1;Spese correnti;3;Acquisto di beni e servizi;2;Acquisto di servizi;2;Organizzazione eventi, pubblicita` e servizi per trasferta;4;Pubblicita`;14/07/2022
2525;1;9999999;20,67;223,01;ENEL ENERGIA SPA;8426072694;SALDO Fatt.n. 004231512829  del 11/06/2022 MAGGIO 2022 - CONSUMI ALLOGGIO VIA DON GALLERANI CALTANA;07/07/2022;134;31;348;1;Spese correnti;3;Acquisto di beni e servizi;2;Acquisto di servizi;5;Utenze e canoni;4;Energia elettrica;14/07/2022
2525;2;9999999;32,12;223,01;ENEL ENERGIA SPA;8426072694;SALDO Fatt.n. 004231512843  del 11/06/2022 MAGGIO 2022 - CONSUMI  PARCHEGGIO SMS;07/07/2022;134;31;348;1;Spese correnti;3;Acquisto di beni e servizi;2;Acquisto di servizi;5;Utenze e canoni;4;Energia elettrica;14/07/2022
2525;3;9999999;46,93;223,01;ENEL ENERGIA SPA;8426072694;SALDO Fatt.n. 004231512848  del 11/06/2022 MAGGIO 2022 - CONSUMI FONTANA VETERNIGO;07/07/2022;134;31;348;1;Spese correnti;3;Acquisto di beni e servizi;2;Acquisto di servizi;5;Utenze e canoni;4;Energia elettrica;14/07/2022
2525;4;9999999;55,53;223,01;ENEL ENERGIA SPA;8426072694;SALDO Fatt.n. 004231512787  del 11/06/2022 MAGGIO 2022 - CONSUMI MERCATO SMS;07/07/2022;134;31;348;1;Spese correnti;3;Acquisto di beni e servizi;2;Acquisto di servizi;5;Utenze e canoni;4;Energia elettrica;14/07/2022
2525;5;9999999;67,76;223,01;ENEL ENERGIA SPA;8426072694;SALDO Fatt.n. 004231512779  del 11/06/2022 MAGGIO 2022 - CONSUMI MERCATO CASELLE;07/07/2022;134;31;348;1;Spese correnti;3;Acquisto di beni e servizi;2;Acquisto di servizi;5;Utenze e canoni;4;Energia elettrica;14/07/2022
2526;1;9999999;30,62;198,55;ENEL ENERGIA SPA;8426072694;SALDO Fatt.n. 004231512892  del 11/06/2022 MAGGIO 2022 - CONSUMI PARCHEGGIO C.C.PRISMA CASELLE;07/07/2022;134;31;348;1;Spese correnti;3;Acquisto di beni e servizi;2;Acquisto di servizi;5;Utenze e canoni;4;Energia elettrica;14/07/2022
2526;2;9999999;42,83;198,55;ENEL ENERGIA SPA;8426072694;SALDO Fatt.n. 004231512895  del 11/06/2022 MAGGIO 2022 - CONSUMI MERCATO CALTANA;07/07/2022;134;31;348;1;Spese correnti;3;Acquisto di beni e servizi;2;Acquisto di servizi;5;Utenze e canoni;4;Energia elettrica;14/07/2022
2526;3;9999999;53,85;198,55;ENEL ENERGIA SPA;8426072694;SALDO Fatt.n. 004231512857  del 11/06/2022 MAGGIO 2022 - CONSUMI PIAZZA S.D.A. CALTANA;07/07/2022;134;31;348;1;Spese correnti;3;Acquisto di beni e servizi;2;Acquisto di servizi;5;Utenze e canoni;4;Energia elettrica;14/07/2022
2526;4;9999999;71,25;198,55;ENEL ENERGIA SPA;8426072694;SALDO Fatt.n. 004231512861  del 11/06/2022 MAGGIO 2022 - CONSUMI PARCHEGGIO OVALE SMS;07/07/2022;134;31;348;1;Spese correnti;3;Acquisto di beni e servizi;2;Acquisto di servizi;5;Utenze e canoni;4;Energia elettrica;14/07/2022
2527;1;9999999;503,95;503,95;ENEL ENERGIA SPA;8426072694;SALDO Fatt.n. 004231512808  del 11/06/2022 MAGGIO 2022 - CONSUMI SEDE MUNICIPALE;07/07/2022;134;31;348;1;Spese correnti;3;Acquisto di beni e servizi;2;Acquisto di servizi;5;Utenze e canoni;4;Energia elettrica;14/07/2022
2528;1;9999999;4,59;4,59;ENEL ENERGIA SPA;8426072694;ACCONTO Fatt.n. 004231512873  del 11/06/2022 MAGGIO 2022 - CONSUMI CIMITERO S.ANGELO;07/07/2022;134;31;348;1;Spese correnti;3;Acquisto di beni e servizi;2;Acquisto di servizi;5;Utenze e canoni;4;Energia elettrica;14/07/2022
2529;1;9999999;5,13;5,13;ENEL ENERGIA SPA;8426072694;ACCONTO Fatt.n. 004231512812  del 11/06/2022 MAGGIO 2022 - CONSUMI CIMITERO CALTANA - LAMPADE VOTIVE;07/07/2022;134;31;348;1;Spese correnti;3;Acquisto di beni e servizi;2;Acquisto di servizi;5;Utenze e canoni;4;Energia elettrica;14/07/2022
2530;1;9999999;3,18;3,18;ENEL ENERGIA SPA;8426072694;ACCONTO Fatt.n. 004231512783  del 11/06/2022 MAGGIO 2022 - CONSUMI CIMITERO CASELLE - LAMPADE VOTIVE;07/07/2022;134;31;348;1;Spese correnti;3;Acquisto di beni e servizi;2;Acquisto di servizi;5;Utenze e canoni;4;Energia elettrica;14/07/2022
2531;1;9999999;3,07;3,07;ENEL ENERGIA SPA;8426072694;ACCONTO Fatt.n. 004231512879  del 11/06/2022 MAGGIO 2022 - CONSUMI CIMITERO VETERNIGO - LAMPADE VOTIVE;07/07/2022;134;31;348;1;Spese correnti;3;Acquisto di beni e servizi;2;Acquisto di servizi;5;Utenze e canoni;4;Energia elettrica;14/07/2022
2532;1;9999999;4,78;4,78;ENEL ENERGIA SPA;8426072694;ACCONTO Fatt.n. 004231512799  del 11/06/2022 MAGGIO 2022 - CONSUMI CIMITERO SMS - LAMPADE VOTIVE;07/07/2022;134;31;348;1;Spese correnti;3;Acquisto di beni e servizi;2;Acquisto di servizi;5;Utenze e canoni;4;Energia elettrica;14/07/2022
2533;1;9999999;173,13;671,52;ENEL ENERGIA SPA;8426072694;SALDO Fatt.n. 004231512847  del 11/06/2022 MAGGIO 2022 - CONSUMI SC. ELEM. CASELLE;07/07/2022;1334;30;349;1;Spese correnti;3;Acquisto di beni e servizi;2;Acquisto di servizi;5;Utenze e canoni;4;Energia elettrica;14/07/2022
2533;2;9999999;177,55;671,52;ENEL ENERGIA SPA;8426072694;SALDO Fatt.n. 004231512871  del 11/06/2022 MAGGIO 2022 - CONSUMI SC. ELEM. CALTANA;07/07/2022;1334;30;349;1;Spese correnti;3;Acquisto di beni e servizi;2;Acquisto di servizi;5;Utenze e canoni;4;Energia elettrica;14/07/2022
2533;3;9999999;320,84;671,52;ENEL ENERGIA SPA;8426072694;SALDO Fatt.n. 004231512886  del 11/06/2022 MAGGIO 2022 - CONSUMI SC ELEM - SC. MEDIA SMS;07/07/2022;1334;30;349;1;Spese correnti;3;Acquisto di beni e servizi;2;Acquisto di servizi;5;Utenze e canoni;4;Energia elettrica;14/07/2022
2534;1;9999999;97;97;ENEL ENERGIA SPA;8426072694;ACCONTO Fatt.n. 004231512785  del 11/06/2022 MAGGIO 2022 - CONSUMI SC. ELEM - PALESTRA VETERNIGO;07/07/2022;1334;30;349;1;Spese correnti;3;Acquisto di beni e servizi;2;Acquisto di servizi;5;Utenze e canoni;4;Energia elettrica;14/07/2022
2535;1;9999999;157,08;157,08;ENEL ENERGIA SPA;8426072694;ACCONTO Fatt.n. 004231512785  del 11/06/2022 MAGGIO 2022 - CONSUMI SC. ELEM - PALESTRA VETERNIGO;07/07/2022;1334;30;349;1;Spese correnti;3;Acquisto di beni e servizi;2;Acquisto di servizi;5;Utenze e canoni;4;Energia elettrica;14/07/2022
2536;1;9999999;52,05;52,05;ENEL ENERGIA SPA;8426072694;ACCONTO Fatt.n. 004231512840  del 11/06/2022 MAGGIO 2022 - CONSUMI PALESTRA CASELLE;07/07/2022;1334;30;349;1;Spese correnti;3;Acquisto di beni e servizi;2;Acquisto di servizi;5;Utenze e canoni;4;Energia elettrica;14/07/2022
2537;1;9999999;88;88;ENEL ENERGIA SPA;8426072694;ACCONTO Fatt.n. 004231512852  del 11/06/2022 MAGGIO 2022 - CONSUMI  SC. ELEM - PALESTRA STIGLIANO;07/07/2022;1334;30;349;1;Spese correnti;3;Acquisto di beni e servizi;2;Acquisto di servizi;5;Utenze e canoni;4;Energia elettrica;14/07/2022
2538;1;9999999;75,02;75,02;ENEL ENERGIA SPA;8426072694;ACCONTO Fatt.n. 004231512852  del 11/06/2022 MAGGIO 2022 - CONSUMI  SC. ELEM - PALESTRA STIGLIANO;07/07/2022;1334;30;349;1;Spese correnti;3;Acquisto di beni e servizi;2;Acquisto di servizi;5;Utenze e canoni;4;Energia elettrica;14/07/2022
2539;1;9999999;73,48;73,48;ENEL ENERGIA SPA;8426072694;ACCONTO Fatt.n. 004231512902  del 11/06/2022 MAGGIO 2022 - CONSUMI PALESTRA SMS;07/07/2022;1334;30;349;1;Spese correnti;3;Acquisto di beni e servizi;2;Acquisto di servizi;5;Utenze e canoni;4;Energia elettrica;14/07/2022
2540;1;9999999;155,79;155,79;ENEL ENERGIA SPA;8426072694;ACCONTO Fatt.n. 004231512862  del 11/06/2022 MAGGIO 2022 - CONSUMI PALESTRA CALTANA;07/07/2022;1334;30;349;1;Spese correnti;3;Acquisto di beni e servizi;2;Acquisto di servizi;5;Utenze e canoni;4;Energia elettrica;14/07/2022
2541;1;9999999;125;125;ENEL ENERGIA SPA;8426072694;ACCONTO Fatt.n. 004231512896  del 11/06/2022 MAGGIO 2022 - CONSUMI SC. ELEM-PALESTRA-ASILO S.ANGELO;07/07/2022;1334;30;349;1;Spese correnti;3;Acquisto di beni e servizi;2;Acquisto di servizi;5;Utenze e canoni;4;Energia elettrica;14/07/2022
2542;1;9999999;374,82;374,82;ENEL ENERGIA SPA;8426072694;ACCONTO Fatt.n. 004231512896  del 11/06/2022 MAGGIO 2022 - CONSUMI SC. ELEM-PALESTRA-ASILO S.ANGELO;07/07/2022;1334;30;349;1;Spese correnti;3;Acquisto di beni e servizi;2;Acquisto di servizi;5;Utenze e canoni;4;Energia elettrica;14/07/2022
2543;1;9999999;222,96;500,73;ENEL ENERGIA SPA;8426072694;SALDO Fatt.n. 004231512870  del 11/06/2022 MAGGIO 2022 - CONSUMI VILLA FARSETTI;07/07/2022;1834;0;350;1;Spese correnti;3;Acquisto di beni e servizi;2;Acquisto di servizi;5;Utenze e canoni;4;Energia elettrica;14/07/2022
2543;2;9999999;277,77;500,73;ENEL ENERGIA SPA;8426072694;SALDO Fatt.n. 004231512887  del 11/06/2022 MAGGIO 2022 - CONSUMI VILLA FARSETTI;07/07/2022;1834;0;350;1;Spese correnti;3;Acquisto di beni e servizi;2;Acquisto di servizi;5;Utenze e canoni;4;Energia elettrica;14/07/2022
2544;1;9999999;82,06;82,06;ENEL ENERGIA SPA;8426072694;SALDO Fatt.n. 004231512811  del 11/06/2022 MAGGIO 2022 - CONSUMI IMP. SPORT. CASELLE PARROCCHIA;07/07/2022;1934;0;351;1;Spese correnti;3;Acquisto di beni e servizi;2;Acquisto di servizi;5;Utenze e canoni;4;Energia elettrica;14/07/2022
2545;1;9999999;53,73;53,73;ENEL ENERGIA SPA;8426072694;SALDO Fatt.n. 004231512876  del 11/06/2022 MAGGIO 2022 - CONSUMI CAMPO DA CALCIO SMS;07/07/2022;1934;0;351;1;Spese correnti;3;Acquisto di beni e servizi;2;Acquisto di servizi;5;Utenze e canoni;4;Energia elettrica;14/07/2022
2546;1;9999999;97;97;ENEL ENERGIA SPA;8426072694;SALDO Fatt.n. 004231512785  del 11/06/2022 MAGGIO 2022 - CONSUMI SC. ELEM - PALESTRA VETERNIGO;07/07/2022;1934;0;351;1;Spese correnti;3;Acquisto di beni e servizi;2;Acquisto di servizi;5;Utenze e canoni;4;Energia elettrica;14/07/2022
2547;1;9999999;52,05;52,05;ENEL ENERGIA SPA;8426072694;SALDO Fatt.n. 004231512840  del 11/06/2022 MAGGIO 2022 - CONSUMI PALESTRA CASELLE;07/07/2022;1934;0;351;1;Spese correnti;3;Acquisto di beni e servizi;2;Acquisto di servizi;5;Utenze e canoni;4;Energia elettrica;14/07/2022
2548;1;9999999;88;88;ENEL ENERGIA SPA;8426072694;SALDO Fatt.n. 004231512852  del 11/06/2022 MAGGIO 2022 - CONSUMI  SC. ELEM - PALESTRA STIGLIANO;07/07/2022;1934;0;351;1;Spese correnti;3;Acquisto di beni e servizi;2;Acquisto di servizi;5;Utenze e canoni;4;Energia elettrica;14/07/2022
2549;1;9999999;73,48;73,48;ENEL ENERGIA SPA;8426072694;SALDO Fatt.n. 004231512902  del 11/06/2022 MAGGIO 2022 - CONSUMI PALESTRA SMS;07/07/2022;1934;0;351;1;Spese correnti;3;Acquisto di beni e servizi;2;Acquisto di servizi;5;Utenze e canoni;4;Energia elettrica;14/07/2022
2550;1;9999999;155,79;155,79;ENEL ENERGIA SPA;8426072694;SALDO Fatt.n. 004231512862  del 11/06/2022 MAGGIO 2022 - CONSUMI PALESTRA CALTANA;07/07/2022;1934;0;351;1;Spese correnti;3;Acquisto di beni e servizi;2;Acquisto di servizi;5;Utenze e canoni;4;Energia elettrica;14/07/2022
2551;1;9999999;125;125;ENEL ENERGIA SPA;8426072694;SALDO Fatt.n. 004231512896  del 11/06/2022 MAGGIO 2022 - CONSUMI SC. ELEM-PALESTRA-ASILO S.ANGELO;07/07/2022;1934;0;351;1;Spese correnti;3;Acquisto di beni e servizi;2;Acquisto di servizi;5;Utenze e canoni;4;Energia elettrica;14/07/2022
2552;1;9999999;31,04;31,04;ENEL ENERGIA SPA;8426072694;SALDO Fatt.n. 004231512764  del 11/06/2022 MAGGIO 2022 - CONSUMI ECOCENTRO COMUNALE;07/07/2022;3534;0;352;1;Spese correnti;3;Acquisto di beni e servizi;2;Acquisto di servizi;5;Utenze e canoni;4;Energia elettrica;14/07/2022
2553;1;9999999;157,93;157,93;ENEL ENERGIA SPA;8426072694;SALDO Fatt.n. 004231512846  del 11/06/2022 MAGGIO 2022 - CONSUMI MAGAZZINO COMUNALE;07/07/2022;3534;0;352;1;Spese correnti;3;Acquisto di beni e servizi;2;Acquisto di servizi;5;Utenze e canoni;4;Energia elettrica;14/07/2022
2554;1;9999999;-184,72;84,44;ENEL ENERGIA SPA;8426072694;SALDO Fatt.n. 004237450536  del 23/06/2022 NOTA DI ACCREDITO PER CONG. CONSUMI;07/07/2022;3544;0;354;1;Spese correnti;3;Acquisto di beni e servizi;2;Acquisto di servizi;15;Contratti di servizio pubblico;15;Contratti di servizio per l'illuminazione pubblica;14/07/2022
2554;2;9999999;-0,67;84,44;ENEL ENERGIA SPA;8426072694;SALDO Fatt.n. 004231512830  del 11/06/2022 NOTA DI ACCREDITO PER CONG. CONSUMI;07/07/2022;3544;0;354;1;Spese correnti;3;Acquisto di beni e servizi;2;Acquisto di servizi;15;Contratti di servizio pubblico;15;Contratti di servizio per l'illuminazione pubblica;14/07/2022
2554;3;9999999;-0,35;84,44;ENEL ENERGIA SPA;8426072694;SALDO Fatt.n. 004231512802  del 11/06/2022 NOTA DI ACCREDITO PER CONG. CONSUMI;07/07/2022;3544;0;354;1;Spese correnti;3;Acquisto di beni e servizi;2;Acquisto di servizi;15;Contratti di servizio pubblico;15;Contratti di servizio per l'illuminazione pubblica;14/07/2022
2554;4;9999999;-0,1;84,44;ENEL ENERGIA SPA;8426072694;SALDO Fatt.n. 004231512901  del 11/06/2022 NOTA DI ACCREDITO PER CONG. CONSUMI;07/07/2022;3544;0;354;1;Spese correnti;3;Acquisto di beni e servizi;2;Acquisto di servizi;15;Contratti di servizio pubblico;15;Contratti di servizio per l'illuminazione pubblica;14/07/2022
2554;5;9999999;270,28;84,44;ENEL ENERGIA SPA;8426072694;SALDO Fatt.n. 004231512837  del 11/06/2022 MAGGIO 2022 - CONSUMI ILLUMINAZIONE PUBBLICA;07/07/2022;3544;0;354;1;Spese correnti;3;Acquisto di beni e servizi;2;Acquisto di servizi;15;Contratti di servizio pubblico;15;Contratti di servizio per l'illuminazione pubblica;14/07/2022
2555;1;9999999;1,83;271,7;ENEL ENERGIA SPA;8426072694;SALDO Fatt.n. 004229712003  del 08/06/2022 APRILE 2022 - CONSUMI ILLUMINAZIONE PUBBLICA;07/07/2022;3544;0;354;1;Spese correnti;3;Acquisto di beni e servizi;2;Acquisto di servizi;15;Contratti di servizio pubblico;15;Contratti di servizio per l'illuminazione pubblica;14/07/2022
2555;2;9999999;2,71;271,7;ENEL ENERGIA SPA;8426072694;SALDO Fatt.n. 004231512763  del 11/06/2022 MAGGIO 2022 - CONSUMI ILLUMINAZIONE PUBBLICA;07/07/2022;3544;0;354;1;Spese correnti;3;Acquisto di beni e servizi;2;Acquisto di servizi;15;Contratti di servizio pubblico;15;Contratti di servizio per l'illuminazione pubblica;14/07/2022
2555;3;9999999;6,88;271,7;ENEL ENERGIA SPA;8426072694;SALDO Fatt.n. 004229712004  del 08/06/2022 MAGGIO 2022 - CONSUMI ILLUMINAZIONE PUBBLICA;07/07/2022;3544;0;354;1;Spese correnti;3;Acquisto di beni e servizi;2;Acquisto di servizi;15;Contratti di servizio pubblico;15;Contratti di servizio per l'illuminazione pubblica;14/07/2022
2555;4;9999999;43,63;271,7;ENEL ENERGIA SPA;8426072694;SALDO Fatt.n. 004231512765  del 11/06/2022 MAGGIO 2022 - CONSUMI ILLUMINAZIONE PUBBLICA;07/07/2022;3544;0;354;1;Spese correnti;3;Acquisto di beni e servizi;2;Acquisto di servizi;15;Contratti di servizio pubblico;15;Contratti di servizio per l'illuminazione pubblica;14/07/2022
2555;5;9999999;216,65;271,7;ENEL ENERGIA SPA;8426072694;SALDO Fatt.n. 004231512762  del 11/06/2022 MAGGIO 2022 - CONSUMI ILLUMINAZIONE PUBBLICA;07/07/2022;3544;0;354;1;Spese correnti;3;Acquisto di beni e servizi;2;Acquisto di servizi;15;Contratti di servizio pubblico;15;Contratti di servizio per l'illuminazione pubblica;14/07/2022
2556;1;9999999;3,11;213,82;ENEL ENERGIA SPA;8426072694;SALDO Fatt.n. 004231512768  del 11/06/2022 MAGGIO 2022 - CONSUMI ILLUMINAZIONE PUBBLICA;07/07/2022;3544;0;354;1;Spese correnti;3;Acquisto di beni e servizi;2;Acquisto di servizi;15;Contratti di servizio pubblico;15;Contratti di servizio per l'illuminazione pubblica;14/07/2022
2556;2;9999999;6,93;213,82;ENEL ENERGIA SPA;8426072694;SALDO Fatt.n. 004231512767  del 11/06/2022 MAGGIO 2022 - CONSUMI ILLUMINAZIONE PUBBLICA;07/07/2022;3544;0;354;1;Spese correnti;3;Acquisto di beni e servizi;2;Acquisto di servizi;15;Contratti di servizio pubblico;15;Contratti di servizio per l'illuminazione pubblica;14/07/2022
2556;3;9999999;45,16;213,82;ENEL ENERGIA SPA;8426072694;SALDO Fatt.n. 004231512770  del 11/06/2022 MAGGIO 2022 - CONSUMI ILLUMINAZIONE PUBBLICA;07/07/2022;3544;0;354;1;Spese correnti;3;Acquisto di beni e servizi;2;Acquisto di servizi;15;Contratti di servizio pubblico;15;Contratti di servizio per l'illuminazione pubblica;14/07/2022
2556;4;9999999;59,91;213,82;ENEL ENERGIA SPA;8426072694;SALDO Fatt.n. 004231512766  del 11/06/2022 ENEL MAGGIO 2022 - CONSUMI ILLUMINAZIONE PUBBLICA;07/07/2022;3544;0;354;1;Spese correnti;3;Acquisto di beni e servizi;2;Acquisto di servizi;15;Contratti di servizio pubblico;15;Contratti di servizio per l'illuminazione pubblica;14/07/2022
2556;5;9999999;98,71;213,82;ENEL ENERGIA SPA;8426072694;SALDO Fatt.n. 004231512769  del 11/06/2022 MAGGIO 2022 - CONSUMI ILLUMINAZIONE PUBBLICA;07/07/2022;3544;0;354;1;Spese correnti;3;Acquisto di beni e servizi;2;Acquisto di servizi;15;Contratti di servizio pubblico;15;Contratti di servizio per l'illuminazione pubblica;14/07/2022
2557;1;9999999;128,25;904,53;ENEL ENERGIA SPA;8426072694;SALDO Fatt.n. 004231512773  del 11/06/2022 MAGGIO 2022 - CONSUMI ILLUMINAZIONE PUBBLICA;07/07/2022;3544;0;354;1;Spese correnti;3;Acquisto di beni e servizi;2;Acquisto di servizi;15;Contratti di servizio pubblico;15;Contratti di servizio per l'illuminazione pubblica;14/07/2022
2557;2;9999999;180,21;904,53;ENEL ENERGIA SPA;8426072694;SALDO Fatt.n. 004231512772  del 11/06/2022 MAGGIO 2022 - CONSUMI ILLUMINAZIONE PUBBLICA;07/07/2022;3544;0;354;1;Spese correnti;3;Acquisto di beni e servizi;2;Acquisto di servizi;15;Contratti di servizio pubblico;15;Contratti di servizio per l'illuminazione pubblica;14/07/2022
2557;3;9999999;181,94;904,53;ENEL ENERGIA SPA;8426072694;SALDO Fatt.n. 004231512775  del 11/06/2022 MAGGIO 2022 - CONSUMI ILLUMINAZIONE PUBBLICA;07/07/2022;3544;0;354;1;Spese correnti;3;Acquisto di beni e servizi;2;Acquisto di servizi;15;Contratti di servizio pubblico;15;Contratti di servizio per l'illuminazione pubblica;14/07/2022
2557;4;9999999;197,07;904,53;ENEL ENERGIA SPA;8426072694;SALDO Fatt.n. 004231512774  del 11/06/2022 ENEL MAGGIO 2022 - CONSUMI ILLUMINAZIONE PUBBLICA;07/07/2022;3544;0;354;1;Spese correnti;3;Acquisto di beni e servizi;2;Acquisto di servizi;15;Contratti di servizio pubblico;15;Contratti di servizio per l'illuminazione pubblica;14/07/2022
2557;5;9999999;217,06;904,53;ENEL ENERGIA SPA;8426072694;SALDO Fatt.n. 004231512771  del 11/06/2022 MAGGIO 2022 - CONSUMI ILLUMINAZIONE PUBBLICA;07/07/2022;3544;0;354;1;Spese correnti;3;Acquisto di beni e servizi;2;Acquisto di servizi;15;Contratti di servizio pubblico;15;Contratti di servizio per l'illuminazione pubblica;14/07/2022
2558;1;9999999;3,37;456,65;ENEL ENERGIA SPA;8426072694;SALDO Fatt.n. 004231512780  del 11/06/2022 MAGGIO 2022 - CONSUMI ILLUMINAZIONE PUBBLICA;07/07/2022;3544;0;354;1;Spese correnti;3;Acquisto di beni e servizi;2;Acquisto di servizi;15;Contratti di servizio pubblico;15;Contratti di servizio per l'illuminazione pubblica;14/07/2022
2558;2;9999999;9,74;456,65;ENEL ENERGIA SPA;8426072694;SALDO Fatt.n. 004231512777  del 11/06/2022 MAGGIO 2022 - CONSUMI ILLUMINAZIONE PUBBLICA;07/07/2022;3544;0;354;1;Spese correnti;3;Acquisto di beni e servizi;2;Acquisto di servizi;15;Contratti di servizio pubblico;15;Contratti di servizio per l'illuminazione pubblica;14/07/2022
2558;3;9999999;64,27;456,65;ENEL ENERGIA SPA;8426072694;SALDO Fatt.n. 004231512781  del 11/06/2022 MAGGIO 2022 - CONSUMI ILLUMINAZIONE PUBBLICA;07/07/2022;3544;0;354;1;Spese correnti;3;Acquisto di beni e servizi;2;Acquisto di servizi;15;Contratti di servizio pubblico;15;Contratti di servizio per l'illuminazione pubblica;14/07/2022
2558;4;9999999;93,17;456,65;ENEL ENERGIA SPA;8426072694;SALDO Fatt.n. 004231512778  del 11/06/2022 MAGGIO 2022 - CONSUMI ILLUMINAZIONE PUBBLICA;07/07/2022;3544;0;354;1;Spese correnti;3;Acquisto di beni e servizi;2;Acquisto di servizi;15;Contratti di servizio pubblico;15;Contratti di servizio per l'illuminazione pubblica;14/07/2022
2558;5;9999999;286,1;456,65;ENEL ENERGIA SPA;8426072694;SALDO Fatt.n. 004231512776  del 11/06/2022 MAGGIO 2022 - CONSUMI ILLUMINAZIONE PUBBLICA;07/07/2022;3544;0;354;1;Spese correnti;3;Acquisto di beni e servizi;2;Acquisto di servizi;15;Contratti di servizio pubblico;15;Contratti di servizio per l'illuminazione pubblica;14/07/2022
2559;1;9999999;4,71;388,96;ENEL ENERGIA SPA;8426072694;SALDO Fatt.n. 004231512786  del 11/06/2022 MAGGIO 2022 - CONSUMI ILLUMINAZIONE PUBBLICA;07/07/2022;3544;0;354;1;Spese correnti;3;Acquisto di beni e servizi;2;Acquisto di servizi;15;Contratti di servizio pubblico;15;Contratti di servizio per l'illuminazione pubblica;14/07/2022
2559;2;9999999;36,39;388,96;ENEL ENERGIA SPA;8426072694;SALDO Fatt.n. 004231512782  del 11/06/2022 MAGGIO 2022 - CONSUMI ILLUMINAZIONE PUBBLICA;07/07/2022;3544;0;354;1;Spese correnti;3;Acquisto di beni e servizi;2;Acquisto di servizi;15;Contratti di servizio pubblico;15;Contratti di servizio per l'illuminazione pubblica;14/07/2022
2559;3;9999999;37,21;388,96;ENEL ENERGIA SPA;8426072694;SALDO Fatt.n. 004231512784  del 11/06/2022 MAGGIO 2022 - CONSUMI ILLUMINAZIONE PUBBLICA;07/07/2022;3544;0;354;1;Spese correnti;3;Acquisto di beni e servizi;2;Acquisto di servizi;15;Contratti di servizio pubblico;15;Contratti di servizio per l'illuminazione pubblica;14/07/2022
2559;4;9999999;127,34;388,96;ENEL ENERGIA SPA;8426072694;SALDO Fatt.n. 004231512789  del 11/06/2022 MAGGIO 2022 - CONSUMI ILLUMINAZIONE PUBBLICA;07/07/2022;3544;0;354;1;Spese correnti;3;Acquisto di beni e servizi;2;Acquisto di servizi;15;Contratti di servizio pubblico;15;Contratti di servizio per l'illuminazione pubblica;14/07/2022
2559;5;9999999;183,31;388,96;ENEL ENERGIA SPA;8426072694;SALDO Fatt.n. 004231512788  del 11/06/2022 MAGGIO 2022 - CONSUMI ILLUMINAZIONE PUBBLICA;07/07/2022;3544;0;354;1;Spese correnti;3;Acquisto di beni e servizi;2;Acquisto di servizi;15;Contratti di servizio pubblico;15;Contratti di servizio per l'illuminazione pubblica;14/07/2022
2560;1;9999999;2,03;150,91;ENEL ENERGIA SPA;8426072694;SALDO Fatt.n. 004231512790  del 11/06/2022 MAGGIO 2022 - CONSUMI ILLUMINAZIONE PUBBLICA;07/07/2022;3544;0;354;1;Spese correnti;3;Acquisto di beni e servizi;2;Acquisto di servizi;15;Contratti di servizio pubblico;15;Contratti di servizio per l'illuminazione pubblica;14/07/2022
2560;2;9999999;5;150,91;ENEL ENERGIA SPA;8426072694;SALDO Fatt.n. 004231512792  del 11/06/2022 MAGGIO 2022 - CONSUMI ILLUMINAZIONE PUBBLICA;07/07/2022;3544;0;354;1;Spese correnti;3;Acquisto di beni e servizi;2;Acquisto di servizi;15;Contratti di servizio pubblico;15;Contratti di servizio per l'illuminazione pubblica;14/07/2022
2560;3;9999999;16,51;150,91;ENEL ENERGIA SPA;8426072694;SALDO Fatt.n. 004231512794  del 11/06/2022 MAGGIO 2022 - CONSUMI ILLUMINAZIONE PUBBLICA;07/07/2022;3544;0;354;1;Spese correnti;3;Acquisto di beni e servizi;2;Acquisto di servizi;15;Contratti di servizio pubblico;15;Contratti di servizio per l'illuminazione pubblica;14/07/2022
2560;4;9999999;28,76;150,91;ENEL ENERGIA SPA;8426072694;SALDO Fatt.n. 004231512791  del 11/06/2022 MAGGIO 2022 - CONSUMI ILLUMINAZIONE PUBBLICA;07/07/2022;3544;0;354;1;Spese correnti;3;Acquisto di beni e servizi;2;Acquisto di servizi;15;Contratti di servizio pubblico;15;Contratti di servizio per l'illuminazione pubblica;14/07/2022
2560;5;9999999;98,61;150,91;ENEL ENERGIA SPA;8426072694;SALDO Fatt.n. 004231512793  del 11/06/2022 MAGGIO 2022 - CONSUMI ILLUMINAZIONE PUBBLICA;07/07/2022;3544;0;354;1;Spese correnti;3;Acquisto di beni e servizi;2;Acquisto di servizi;15;Contratti di servizio pubblico;15;Contratti di servizio per l'illuminazione pubblica;14/07/2022
2561;1;9999999;5,84;272,52;ENEL ENERGIA SPA;8426072694;SALDO Fatt.n. 004231512795  del 11/06/2022 MAGGIO 2022 - CONSUMI ILLUMINAZIONE PUBBLICA;07/07/2022;3544;0;354;1;Spese correnti;3;Acquisto di beni e servizi;2;Acquisto di servizi;15;Contratti di servizio pubblico;15;Contratti di servizio per l'illuminazione pubblica;14/07/2022
2561;2;9999999;33,9;272,52;ENEL ENERGIA SPA;8426072694;SALDO Fatt.n. 004231512800  del 11/06/2022 MAGGIO 2022 - CONSUMI ILLUMINAZIONE PUBBLICA;07/07/2022;3544;0;354;1;Spese correnti;3;Acquisto di beni e servizi;2;Acquisto di servizi;15;Contratti di servizio pubblico;15;Contratti di servizio per l'illuminazione pubblica;14/07/2022
2561;3;9999999;60,93;272,52;ENEL ENERGIA SPA;8426072694;SALDO Fatt.n. 004231512798  del 11/06/2022 MAGGIO 2022 - CONSUMI ILLUMINAZIONE PUBBLICA;07/07/2022;3544;0;354;1;Spese correnti;3;Acquisto di beni e servizi;2;Acquisto di servizi;15;Contratti di servizio pubblico;15;Contratti di servizio per l'illuminazione pubblica;14/07/2022
2561;4;9999999;65,32;272,52;ENEL ENERGIA SPA;8426072694;SALDO Fatt.n. 004231512797  del 11/06/2022 MAGGIO 2022 - CONSUMI ILLUMINAZIONE PUBBLICA;07/07/2022;3544;0;354;1;Spese correnti;3;Acquisto di beni e servizi;2;Acquisto di servizi;15;Contratti di servizio pubblico;15;Contratti di servizio per l'illuminazione pubblica;14/07/2022
2561;5;9999999;106,53;272,52;ENEL ENERGIA SPA;8426072694;SALDO Fatt.n. 004231512796  del 11/06/2022 MAGGIO 2022 - CONSUMI ILLUMINAZIONE PUBBLICA;07/07/2022;3544;0;354;1;Spese correnti;3;Acquisto di beni e servizi;2;Acquisto di servizi;15;Contratti di servizio pubblico;15;Contratti di servizio per l'illuminazione pubblica;14/07/2022
2562;1;9999999;6,48;319,48;ENEL ENERGIA SPA;8426072694;SALDO Fatt.n. 004231512806  del 11/06/2022 MAGGIO 2022 - CONSUMI ILLUMINAZIONE PUBBLICA;07/07/2022;3544;0;354;1;Spese correnti;3;Acquisto di beni e servizi;2;Acquisto di servizi;15;Contratti di servizio pubblico;15;Contratti di servizio per l'illuminazione pubblica;14/07/2022
2562;2;9999999;46,37;319,48;ENEL ENERGIA SPA;8426072694;SALDO Fatt.n. 004231512801  del 11/06/2022 MAGGIO 2022 - CONSUMI ILLUMINAZIONE PUBBLICA;07/07/2022;3544;0;354;1;Spese correnti;3;Acquisto di beni e servizi;2;Acquisto di servizi;15;Contratti di servizio pubblico;15;Contratti di servizio per l'illuminazione pubblica;14/07/2022
2562;3;9999999;52,29;319,48;ENEL ENERGIA SPA;8426072694;SALDO Fatt.n. 004231512807  del 11/06/2022 MAGGIO 2022 - CONSUMI ILLUMINAZIONE PUBBLICA;07/07/2022;3544;0;354;1;Spese correnti;3;Acquisto di beni e servizi;2;Acquisto di servizi;15;Contratti di servizio pubblico;15;Contratti di servizio per l'illuminazione pubblica;14/07/2022
2562;4;9999999;74,77;319,48;ENEL ENERGIA SPA;8426072694;SALDO Fatt.n. 004231512805  del 11/06/2022 MAGGIO 2022 - CONSUMI ILLUMINAZIONE PUBBLICA;07/07/2022;3544;0;354;1;Spese correnti;3;Acquisto di beni e servizi;2;Acquisto di servizi;15;Contratti di servizio pubblico;15;Contratti di servizio per l'illuminazione pubblica;14/07/2022
2562;5;9999999;139,57;319,48;ENEL ENERGIA SPA;8426072694;SALDO Fatt.n. 004231512803  del 11/06/2022 MAGGIO 2022 - CONSUMI ILLUMINAZIONE PUBBLICA;07/07/2022;3544;0;354;1;Spese correnti;3;Acquisto di beni e servizi;2;Acquisto di servizi;15;Contratti di servizio pubblico;15;Contratti di servizio per l'illuminazione pubblica;14/07/2022
2563;1;9999999;7,12;161,43;ENEL ENERGIA SPA;8426072694;SALDO Fatt.n. 004231512815  del 11/06/2022 MAGGIO 2022 - CONSUMI ILLUMINAZIONE PUBBLICA;07/07/2022;3544;0;354;1;Spese correnti;3;Acquisto di beni e servizi;2;Acquisto di servizi;15;Contratti di servizio pubblico;15;Contratti di servizio per l'illuminazione pubblica;14/07/2022
2563;2;9999999;9,49;161,43;ENEL ENERGIA SPA;8426072694;SALDO Fatt.n. 004231512813  del 11/06/2022 MAGGIO 2022 - CONSUMI ILLUMINAZIONE PUBBLICA;07/07/2022;3544;0;354;1;Spese correnti;3;Acquisto di beni e servizi;2;Acquisto di servizi;15;Contratti di servizio pubblico;15;Contratti di servizio per l'illuminazione pubblica;14/07/2022
2563;3;9999999;11,29;161,43;ENEL ENERGIA SPA;8426072694;SALDO Fatt.n. 004231512809  del 11/06/2022 MAGGIO 2022 - CONSUMI ILLUMINAZIONE PUBBLICA;07/07/2022;3544;0;354;1;Spese correnti;3;Acquisto di beni e servizi;2;Acquisto di servizi;15;Contratti di servizio pubblico;15;Contratti di servizio per l'illuminazione pubblica;14/07/2022
2563;4;9999999;39,6;161,43;ENEL ENERGIA SPA;8426072694;SALDO Fatt.n. 004231512814  del 11/06/2022 MAGGIO 2022 - CONSUMI ILLUMINAZIONE PUBBLICA;07/07/2022;3544;0;354;1;Spese correnti;3;Acquisto di beni e servizi;2;Acquisto di servizi;15;Contratti di servizio pubblico;15;Contratti di servizio per l'illuminazione pubblica;14/07/2022
2563;5;9999999;93,93;161,43;ENEL ENERGIA SPA;8426072694;SALDO Fatt.n. 004231512810  del 11/06/2022 MAGGIO 2022 - CONSUMI ILLUMINAZIONE PUBBLICA;07/07/2022;3544;0;354;1;Spese correnti;3;Acquisto di beni e servizi;2;Acquisto di servizi;15;Contratti di servizio pubblico;15;Contratti di servizio per l'illuminazione pubblica;14/07/2022
2564;1;9999999;19,09;396,33;ENEL ENERGIA SPA;8426072694;SALDO Fatt.n. 004231512820  del 11/06/2022 MAGGIO 2022 - CONSUMI ILLUMINAZIONE PUBBLICA;07/07/2022;3544;0;354;1;Spese correnti;3;Acquisto di beni e servizi;2;Acquisto di servizi;15;Contratti di servizio pubblico;15;Contratti di servizio per l'illuminazione pubblica;14/07/2022
2564;2;9999999;42,58;396,33;ENEL ENERGIA SPA;8426072694;SALDO Fatt.n. 004231512818  del 11/06/2022 MAGGIO 2022 - CONSUMI ILLUMINAZIONE PUBBLICA;07/07/2022;3544;0;354;1;Spese correnti;3;Acquisto di beni e servizi;2;Acquisto di servizi;15;Contratti di servizio pubblico;15;Contratti di servizio per l'illuminazione pubblica;14/07/2022
2564;3;9999999;72,48;396,33;ENEL ENERGIA SPA;8426072694;SALDO Fatt.n. 004231512819  del 11/06/2022 MAGGIO 2022 - CONSUMI ILLUMINAZIONE PUBBLICA;07/07/2022;3544;0;354;1;Spese correnti;3;Acquisto di beni e servizi;2;Acquisto di servizi;15;Contratti di servizio pubblico;15;Contratti di servizio per l'illuminazione pubblica;14/07/2022
2564;4;9999999;102,79;396,33;ENEL ENERGIA SPA;8426072694;SALDO Fatt.n. 004231512816  del 11/06/2022 MAGGIO 2022 - CONSUMI ILLUMINAZIONE PUBBLICA;07/07/2022;3544;0;354;1;Spese correnti;3;Acquisto di beni e servizi;2;Acquisto di servizi;15;Contratti di servizio pubblico;15;Contratti di servizio per l'illuminazione pubblica;14/07/2022
2564;5;9999999;159,39;396,33;ENEL ENERGIA SPA;8426072694;SALDO Fatt.n. 004231512817  del 11/06/2022 MAGGIO 2022 - CONSUMI ILLUMINAZIONE PUBBLICA;07/07/2022;3544;0;354;1;Spese correnti;3;Acquisto di beni e servizi;2;Acquisto di servizi;15;Contratti di servizio pubblico;15;Contratti di servizio per l'illuminazione pubblica;14/07/2022
2565;1;9999999;23,01;509,67;ENEL ENERGIA SPA;8426072694;SALDO Fatt.n. 004231512825  del 11/06/2022 MAGGIO 2022 - CONSUMI ILLUMINAZIONE PUBBLICA;07/07/2022;3544;0;354;1;Spese correnti;3;Acquisto di beni e servizi;2;Acquisto di servizi;15;Contratti di servizio pubblico;15;Contratti di servizio per l'illuminazione pubblica;14/07/2022
2565;2;9999999;66,33;509,67;ENEL ENERGIA SPA;8426072694;SALDO Fatt.n. 004231512824  del 11/06/2022 MAGGIO 2022 - CONSUMI ILLUMINAZIONE PUBBLICA;07/07/2022;3544;0;354;1;Spese correnti;3;Acquisto di beni e servizi;2;Acquisto di servizi;15;Contratti di servizio pubblico;15;Contratti di servizio per l'illuminazione pubblica;14/07/2022
2565;3;9999999;72,96;509,67;ENEL ENERGIA SPA;8426072694;SALDO Fatt.n. 004231512821  del 11/06/2022 MAGGIO 2022 - CONSUMI ILLUMINAZIONE PUBBLICA;07/07/2022;3544;0;354;1;Spese correnti;3;Acquisto di beni e servizi;2;Acquisto di servizi;15;Contratti di servizio pubblico;15;Contratti di servizio per l'illuminazione pubblica;14/07/2022
2565;4;9999999;103,5;509,67;ENEL ENERGIA SPA;8426072694;SALDO Fatt.n. 004231512822  del 11/06/2022 MAGGIO 2022 - CONSUMI ILLUMINAZIONE PUBBLICA;07/07/2022;3544;0;354;1;Spese correnti;3;Acquisto di beni e servizi;2;Acquisto di servizi;15;Contratti di servizio pubblico;15;Contratti di servizio per l'illuminazione pubblica;14/07/2022
2565;5;9999999;243,87;509,67;ENEL ENERGIA SPA;8426072694;SALDO Fatt.n. 004231512823  del 11/06/2022 MAGGIO 2022 - CONSUMI ILLUMINAZIONE PUBBLICA;07/07/2022;3544;0;354;1;Spese correnti;3;Acquisto di beni e servizi;2;Acquisto di servizi;15;Contratti di servizio pubblico;15;Contratti di servizio per l'illuminazione pubblica;14/07/2022
2566;1;9999999;10,08;135,63;ENEL ENERGIA SPA;8426072694;SALDO Fatt.n. 004231512828  del 11/06/2022 MAGGIO 2022 - CONSUMI ILLUMINAZIONE PUBBLICA;07/07/2022;3544;0;354;1;Spese correnti;3;Acquisto di beni e servizi;2;Acquisto di servizi;15;Contratti di servizio pubblico;15;Contratti di servizio per l'illuminazione pubblica;14/07/2022
2566;2;9999999;11,63;135,63;ENEL ENERGIA SPA;8426072694;SALDO Fatt.n. 004231512827  del 11/06/2022 MAGGIO 2022 - CONSUMI ILLUMINAZIONE PUBBLICA;07/07/2022;3544;0;354;1;Spese correnti;3;Acquisto di beni e servizi;2;Acquisto di servizi;15;Contratti di servizio pubblico;15;Contratti di servizio per l'illuminazione pubblica;14/07/2022
2566;3;9999999;27,35;135,63;ENEL ENERGIA SPA;8426072694;SALDO Fatt.n. 004231512826  del 11/06/2022 MAGGIO 2022 - CONSUMI ILLUMINAZIONE PUBBLICA;07/07/2022;3544;0;354;1;Spese correnti;3;Acquisto di beni e servizi;2;Acquisto di servizi;15;Contratti di servizio pubblico;15;Contratti di servizio per l'illuminazione pubblica;14/07/2022
2566;4;9999999;35,87;135,63;ENEL ENERGIA SPA;8426072694;SALDO Fatt.n. 004231512831  del 11/06/2022 MAGGIO 2022 - CONSUMI ILLUMINAZIONE PUBBLICA;07/07/2022;3544;0;354;1;Spese correnti;3;Acquisto di beni e servizi;2;Acquisto di servizi;15;Contratti di servizio pubblico;15;Contratti di servizio per l'illuminazione pubblica;14/07/2022
2566;5;9999999;50,7;135,63;ENEL ENERGIA SPA;8426072694;SALDO Fatt.n. 004231512832  del 11/06/2022 MAGGIO 2022 - CONSUMI ILLUMINAZIONE PUBBLICA;07/07/2022;3544;0;354;1;Spese correnti;3;Acquisto di beni e servizi;2;Acquisto di servizi;15;Contratti di servizio pubblico;15;Contratti di servizio per l'illuminazione pubblica;14/07/2022
2567;1;9999999;18,24;234,82;ENEL ENERGIA SPA;8426072694;SALDO Fatt.n. 004231512834  del 11/06/2022 MAGGIO 2022 - CONSUMI ILLUMINAZIONE PUBBLICA;07/07/2022;3544;0;354;1;Spese correnti;3;Acquisto di beni e servizi;2;Acquisto di servizi;15;Contratti di servizio pubblico;15;Contratti di servizio per l'illuminazione pubblica;14/07/2022
2567;2;9999999;27,95;234,82;ENEL ENERGIA SPA;8426072694;SALDO Fatt.n. 004231512836  del 11/06/2022 MAGGIO 2022 - CONSUMI ILLUMINAZIONE PUBBLICA;07/07/2022;3544;0;354;1;Spese correnti;3;Acquisto di beni e servizi;2;Acquisto di servizi;15;Contratti di servizio pubblico;15;Contratti di servizio per l'illuminazione pubblica;14/07/2022
2567;3;9999999;34,18;234,82;ENEL ENERGIA SPA;8426072694;SALDO Fatt.n. 004231512833  del 11/06/2022 MAGGIO 2022 - CONSUMI ILLUMINAZIONE PUBBLICA;07/07/2022;3544;0;354;1;Spese correnti;3;Acquisto di beni e servizi;2;Acquisto di servizi;15;Contratti di servizio pubblico;15;Contratti di servizio per l'illuminazione pubblica;14/07/2022
2567;4;9999999;54,07;234,82;ENEL ENERGIA SPA;8426072694;SALDO Fatt.n. 004231512835  del 11/06/2022 MAGGIO 2022 - CONSUMI ILLUMINAZIONE PUBBLICA;07/07/2022;3544;0;354;1;Spese correnti;3;Acquisto di beni e servizi;2;Acquisto di servizi;15;Contratti di servizio pubblico;15;Contratti di servizio per l'illuminazione pubblica;14/07/2022
2567;5;9999999;100,38;234,82;ENEL ENERGIA SPA;8426072694;SALDO Fatt.n. 004231512838  del 11/06/2022 MAGGIO 2022 - CONSUMI ILLUMINAZIONE PUBBLICA;07/07/2022;3544;0;354;1;Spese correnti;3;Acquisto di beni e servizi;2;Acquisto di servizi;15;Contratti di servizio pubblico;15;Contratti di servizio per l'illuminazione pubblica;14/07/2022
2568;1;9999999;3,75;209,18;ENEL ENERGIA SPA;8426072694;SALDO Fatt.n. 004231512844  del 11/06/2022 MAGGIO 2022 - CONSUMI ILLUMINAZIONE PUBBLICA;07/07/2022;3544;0;354;1;Spese correnti;3;Acquisto di beni e servizi;2;Acquisto di servizi;15;Contratti di servizio pubblico;15;Contratti di servizio per l'illuminazione pubblica;14/07/2022
2568;2;9999999;8,77;209,18;ENEL ENERGIA SPA;8426072694;SALDO Fatt.n. 004231512841  del 11/06/2022 MAGGIO 2022 - CONSUMI ILLUMINAZIONE PUBBLICA;07/07/2022;3544;0;354;1;Spese correnti;3;Acquisto di beni e servizi;2;Acquisto di servizi;15;Contratti di servizio pubblico;15;Contratti di servizio per l'illuminazione pubblica;14/07/2022
2568;3;9999999;12,6;209,18;ENEL ENERGIA SPA;8426072694;SALDO Fatt.n. 004231512845  del 11/06/2022 MAGGIO 2022 - CONSUMI ILLUMINAZIONE PUBBLICA;07/07/2022;3544;0;354;1;Spese correnti;3;Acquisto di beni e servizi;2;Acquisto di servizi;15;Contratti di servizio pubblico;15;Contratti di servizio per l'illuminazione pubblica;14/07/2022
2568;4;9999999;49,23;209,18;ENEL ENERGIA SPA;8426072694;SALDO Fatt.n. 004231512842  del 11/06/2022 MAGGIO 2022 - CONSUMI ILLUMINAZIONE PUBBLICA;07/07/2022;3544;0;354;1;Spese correnti;3;Acquisto di beni e servizi;2;Acquisto di servizi;15;Contratti di servizio pubblico;15;Contratti di servizio per l'illuminazione pubblica;14/07/2022
2568;5;9999999;134,83;209,18;ENEL ENERGIA SPA;8426072694;SALDO Fatt.n. 004231512839  del 11/06/2022 MAGGIO 2022 - CONSUMI ILLUMINAZIONE PUBBLICA;07/07/2022;3544;0;354;1;Spese correnti;3;Acquisto di beni e servizi;2;Acquisto di servizi;15;Contratti di servizio pubblico;15;Contratti di servizio per l'illuminazione pubblica;14/07/2022
2569;1;9999999;3,09;174,67;ENEL ENERGIA SPA;8426072694;SALDO Fatt.n. 004231512853  del 11/06/2022 MAGGIO 2022 - CONSUMI ILLUMINAZIONE PUBBLICA;07/07/2022;3544;0;354;1;Spese correnti;3;Acquisto di beni e servizi;2;Acquisto di servizi;15;Contratti di servizio pubblico;15;Contratti di servizio per l'illuminazione pubblica;14/07/2022
2569;2;9999999;3,57;174,67;ENEL ENERGIA SPA;8426072694;SALDO Fatt.n. 004231512854  del 11/06/2022 MAGGIO 2022 - CONSUMI ILLUMINAZIONE PUBBLICA;07/07/2022;3544;0;354;1;Spese correnti;3;Acquisto di beni e servizi;2;Acquisto di servizi;15;Contratti di servizio pubblico;15;Contratti di servizio per l'illuminazione pubblica;14/07/2022
2569;3;9999999;11,88;174,67;ENEL ENERGIA SPA;8426072694;SALDO Fatt.n. 004231512851  del 11/06/2022 MAGGIO 2022 - CONSUMI ILLUMINAZIONE PUBBLICA;07/07/2022;3544;0;354;1;Spese correnti;3;Acquisto di beni e servizi;2;Acquisto di servizi;15;Contratti di servizio pubblico;15;Contratti di servizio per l'illuminazione pubblica;14/07/2022
2569;4;9999999;54,96;174,67;ENEL ENERGIA SPA;8426072694;SALDO Fatt.n. 004231512850  del 11/06/2022 MAGGIO 2022 - CONSUMI ILLUMINAZIONE PUBBLICA;07/07/2022;3544;0;354;1;Spese correnti;3;Acquisto di beni e servizi;2;Acquisto di servizi;15;Contratti di servizio pubblico;15;Contratti di servizio per l'illuminazione pubblica;14/07/2022
2569;5;9999999;101,17;174,67;ENEL ENERGIA SPA;8426072694;SALDO Fatt.n. 004231512849  del 11/06/2022 MAGGIO 2022 - CONSUMI ILLUMINAZIONE PUBBLICA;07/07/2022;3544;0;354;1;Spese correnti;3;Acquisto di beni e servizi;2;Acquisto di servizi;15;Contratti di servizio pubblico;15;Contratti di servizio per l'illuminazione pubblica;14/07/2022
2570;1;9999999;15,26;435,17;ENEL ENERGIA SPA;8426072694;SALDO Fatt.n. 004231512859  del 11/06/2022 MAGGIO 2022 - CONSUMI ILLUMINAZIONE PUBBLICA;07/07/2022;3544;0;354;1;Spese correnti;3;Acquisto di beni e servizi;2;Acquisto di servizi;15;Contratti di servizio pubblico;15;Contratti di servizio per l'illuminazione pubblica;14/07/2022
2570;2;9999999;18,63;435,17;ENEL ENERGIA SPA;8426072694;SALDO Fatt.n. 004231512860  del 11/06/2022 MAGGIO 2022 - CONSUMI ILLUMINAZIONE PUBBLICA;07/07/2022;3544;0;354;1;Spese correnti;3;Acquisto di beni e servizi;2;Acquisto di servizi;15;Contratti di servizio pubblico;15;Contratti di servizio per l'illuminazione pubblica;14/07/2022
2570;3;9999999;48,04;435,17;ENEL ENERGIA SPA;8426072694;SALDO Fatt.n. 004231512856  del 11/06/2022 MAGGIO 2022 - CONSUMI ILLUMINAZIONE PUBBLICA;07/07/2022;3544;0;354;1;Spese correnti;3;Acquisto di beni e servizi;2;Acquisto di servizi;15;Contratti di servizio pubblico;15;Contratti di servizio per l'illuminazione pubblica;14/07/2022
2570;4;9999999;144,86;435,17;ENEL ENERGIA SPA;8426072694;SALDO Fatt.n. 004231512855  del 11/06/2022 MAGGIO 2022 - CONSUMI ILLUMINAZIONE PUBBLICA;07/07/2022;3544;0;354;1;Spese correnti;3;Acquisto di beni e servizi;2;Acquisto di servizi;15;Contratti di servizio pubblico;15;Contratti di servizio per l'illuminazione pubblica;14/07/2022
2570;5;9999999;208,38;435,17;ENEL ENERGIA SPA;8426072694;SALDO Fatt.n. 004231512858  del 11/06/2022 MAGGIO 2022 - CONSUMI ILLUMINAZIONE PUBBLICA;07/07/2022;3544;0;354;1;Spese correnti;3;Acquisto di beni e servizi;2;Acquisto di servizi;15;Contratti di servizio pubblico;15;Contratti di servizio per l'illuminazione pubblica;14/07/2022
2571;1;9999999;5,23;631,36;ENEL ENERGIA SPA;8426072694;SALDO Fatt.n. 004231512866  del 11/06/2022 MAGGIO 2022 - CONSUMI ILLUMINAZIONE PUBBLICA;07/07/2022;3544;0;354;1;Spese correnti;3;Acquisto di beni e servizi;2;Acquisto di servizi;15;Contratti di servizio pubblico;15;Contratti di servizio per l'illuminazione pubblica;14/07/2022
2571;2;9999999;5,49;631,36;ENEL ENERGIA SPA;8426072694;SALDO Fatt.n. 004231512864  del 11/06/2022 MAGGIO 2022 - CONSUMI ILLUMINAZIONE PUBBLICA;07/07/2022;3544;0;354;1;Spese correnti;3;Acquisto di beni e servizi;2;Acquisto di servizi;15;Contratti di servizio pubblico;15;Contratti di servizio per l'illuminazione pubblica;14/07/2022
2571;3;9999999;22,67;631,36;ENEL ENERGIA SPA;8426072694;SALDO Fatt.n. 004231512863  del 11/06/2022 MAGGIO 2022 - CONSUMI ILLUMINAZIONE PUBBLICA;07/07/2022;3544;0;354;1;Spese correnti;3;Acquisto di beni e servizi;2;Acquisto di servizi;15;Contratti di servizio pubblico;15;Contratti di servizio per l'illuminazione pubblica;14/07/2022
2571;4;9999999;296,69;631,36;ENEL ENERGIA SPA;8426072694;SALDO Fatt.n. 004231512865  del 11/06/2022 MAGGIO 2022 - CONSUMI ILLUMINAZIONE PUBBLICA;07/07/2022;3544;0;354;1;Spese correnti;3;Acquisto di beni e servizi;2;Acquisto di servizi;15;Contratti di servizio pubblico;15;Contratti di servizio per l'illuminazione pubblica;14/07/2022
2571;5;9999999;301,28;631,36;ENEL ENERGIA SPA;8426072694;SALDO Fatt.n. 004231512867  del 11/06/2022 MAGGIO 2022 - CONSUMI ILLUMINAZIONE PUBBLICA;07/07/2022;3544;0;354;1;Spese correnti;3;Acquisto di beni e servizi;2;Acquisto di servizi;15;Contratti di servizio pubblico;15;Contratti di servizio per l'illuminazione pubblica;14/07/2022
2572;1;9999999;12,1;557,8;ENEL ENERGIA SPA;8426072694;SALDO Fatt.n. 004231512874  del 11/06/2022 MAGGIO 2022 - CONSUMI ILLUMINAZIONE PUBBLICA;07/07/2022;3544;0;354;1;Spese correnti;3;Acquisto di beni e servizi;2;Acquisto di servizi;15;Contratti di servizio pubblico;15;Contratti di servizio per l'illuminazione pubblica;14/07/2022
2572;2;9999999;23,78;557,8;ENEL ENERGIA SPA;8426072694;SALDO Fatt.n. 004231512875  del 11/06/2022 MAGGIO 2022 - CONSUMI ILLUMINAZIONE PUBBLICA;07/07/2022;3544;0;354;1;Spese correnti;3;Acquisto di beni e servizi;2;Acquisto di servizi;15;Contratti di servizio pubblico;15;Contratti di servizio per l'illuminazione pubblica;14/07/2022
2572;3;9999999;48,64;557,8;ENEL ENERGIA SPA;8426072694;SALDO Fatt.n. 004231512869  del 11/06/2022 MAGGIO 2022 - CONSUMI ILLUMINAZIONE PUBBLICA;07/07/2022;3544;0;354;1;Spese correnti;3;Acquisto di beni e servizi;2;Acquisto di servizi;15;Contratti di servizio pubblico;15;Contratti di servizio per l'illuminazione pubblica;14/07/2022
2572;4;9999999;51,95;557,8;ENEL ENERGIA SPA;8426072694;SALDO Fatt.n. 004231512872  del 11/06/2022 MAGGIO 2022 - CONSUMI ILLUMINAZIONE PUBBLICA;07/07/2022;3544;0;354;1;Spese correnti;3;Acquisto di beni e servizi;2;Acquisto di servizi;15;Contratti di servizio pubblico;15;Contratti di servizio per l'illuminazione pubblica;14/07/2022
2572;5;9999999;421,33;557,8;ENEL ENERGIA SPA;8426072694;SALDO Fatt.n. 004231512868  del 11/06/2022 MAGGIO 2022 - CONSUMI ILLUMINAZIONE PUBBLICA;07/07/2022;3544;0;354;1;Spese correnti;3;Acquisto di beni e servizi;2;Acquisto di servizi;15;Contratti di servizio pubblico;15;Contratti di servizio per l'illuminazione pubblica;14/07/2022
2573;1;9999999;37,26;694,79;ENEL ENERGIA SPA;8426072694;SALDO Fatt.n. 004231512878  del 11/06/2022 MAGGIO 2022 - CONSUMI ILLUMINAZIONE PUBBLICA;07/07/2022;3544;0;354;1;Spese correnti;3;Acquisto di beni e servizi;2;Acquisto di servizi;15;Contratti di servizio pubblico;15;Contratti di servizio per l'illuminazione pubblica;14/07/2022
2573;2;9999999;52,19;694,79;ENEL ENERGIA SPA;8426072694;SALDO Fatt.n. 004231512882  del 11/06/2022 MAGGIO 2022 - CONSUMI ILLUMINAZIONE PUBBLICA;07/07/2022;3544;0;354;1;Spese correnti;3;Acquisto di beni e servizi;2;Acquisto di servizi;15;Contratti di servizio pubblico;15;Contratti di servizio per l'illuminazione pubblica;14/07/2022
2573;3;9999999;114,63;694,79;ENEL ENERGIA SPA;8426072694;SALDO Fatt.n. 004231512880  del 11/06/2022 MAGGIO 2022 - CONSUMI ILLUMINAZIONE PUBBLICA;07/07/2022;3544;0;354;1;Spese correnti;3;Acquisto di beni e servizi;2;Acquisto di servizi;15;Contratti di servizio pubblico;15;Contratti di servizio per l'illuminazione pubblica;14/07/2022
2573;4;9999999;221,3;694,79;ENEL ENERGIA SPA;8426072694;SALDO Fatt.n. 004231512881  del 11/06/2022 MAGGIO 2022 - CONSUMI ILLUMINAZIONE PUBBLICA;07/07/2022;3544;0;354;1;Spese correnti;3;Acquisto di beni e servizi;2;Acquisto di servizi;15;Contratti di servizio pubblico;15;Contratti di servizio per l'illuminazione pubblica;14/07/2022
2573;5;9999999;269,41;694,79;ENEL ENERGIA SPA;8426072694;SALDO Fatt.n. 004231512877  del 11/06/2022 MAGGIO 2022 - CONSUMI ILLUMINAZIONE PUBBLICA;07/07/2022;3544;0;354;1;Spese correnti;3;Acquisto di beni e servizi;2;Acquisto di servizi;15;Contratti di servizio pubblico;15;Contratti di servizio per l'illuminazione pubblica;14/07/2022
2574;1;9999999;6,5;457,67;ENEL ENERGIA SPA;8426072694;SALDO Fatt.n. 004231512884  del 11/06/2022 MAGGIO 2022 - CONSUMI ILLUMINAZIONE PUBBLICA;07/07/2022;3544;0;354;1;Spese correnti;3;Acquisto di beni e servizi;2;Acquisto di servizi;15;Contratti di servizio pubblico;15;Contratti di servizio per l'illuminazione pubblica;14/07/2022
2574;2;9999999;14,15;457,67;ENEL ENERGIA SPA;8426072694;SALDO Fatt.n. 004231512889  del 11/06/2022 MAGGIO 2022 - CONSUMI ILLUMINAZIONE PUBBLICA;07/07/2022;3544;0;354;1;Spese correnti;3;Acquisto di beni e servizi;2;Acquisto di servizi;15;Contratti di servizio pubblico;15;Contratti di servizio per l'illuminazione pubblica;14/07/2022
2574;3;9999999;25,01;457,67;ENEL ENERGIA SPA;8426072694;SALDO Fatt.n. 004231512883  del 11/06/2022 MAGGIO 2022 - CONSUMI ILLUMINAZIONE PUBBLICA;07/07/2022;3544;0;354;1;Spese correnti;3;Acquisto di beni e servizi;2;Acquisto di servizi;15;Contratti di servizio pubblico;15;Contratti di servizio per l'illuminazione pubblica;14/07/2022
2574;4;9999999;124,43;457,67;ENEL ENERGIA SPA;8426072694;SALDO Fatt.n. 004231512888  del 11/06/2022 MAGGIO 2022 - CONSUMI ILLUMINAZIONE PUBBLICA;07/07/2022;3544;0;354;1;Spese correnti;3;Acquisto di beni e servizi;2;Acquisto di servizi;15;Contratti di servizio pubblico;15;Contratti di servizio per l'illuminazione pubblica;14/07/2022
2574;5;9999999;287,58;457,67;ENEL ENERGIA SPA;8426072694;SALDO Fatt.n. 004231512885  del 11/06/2022 MAGGIO 2022 - CONSUMI ILLUMINAZIONE PUBBLICA;07/07/2022;3544;0;354;1;Spese correnti;3;Acquisto di beni e servizi;2;Acquisto di servizi;15;Contratti di servizio pubblico;15;Contratti di servizio per l'illuminazione pubblica;14/07/2022
2575;1;9999999;10,85;412,78;ENEL ENERGIA SPA;8426072694;SALDO Fatt.n. 004231512891  del 11/06/2022 MAGGIO 2022 - CONSUMI ILLUMINAZIONE PUBBLICA;07/07/2022;3544;0;354;1;Spese correnti;3;Acquisto di beni e servizi;2;Acquisto di servizi;15;Contratti di servizio pubblico;15;Contratti di servizio per l'illuminazione pubblica;14/07/2022
2575;2;9999999;11,85;412,78;ENEL ENERGIA SPA;8426072694;SALDO Fatt.n. 004231512894  del 11/06/2022 MAGGIO 2022 - CONSUMI ILLUMINAZIONE PUBBLICA;07/07/2022;3544;0;354;1;Spese correnti;3;Acquisto di beni e servizi;2;Acquisto di servizi;15;Contratti di servizio pubblico;15;Contratti di servizio per l'illuminazione pubblica;14/07/2022
2575;3;9999999;48,23;412,78;ENEL ENERGIA SPA;8426072694;SALDO Fatt.n. 004231512890  del 11/06/2022 MAGGIO 2022 - CONSUMI ILLUMINAZIONE PUBBLICA;07/07/2022;3544;0;354;1;Spese correnti;3;Acquisto di beni e servizi;2;Acquisto di servizi;15;Contratti di servizio pubblico;15;Contratti di servizio per l'illuminazione pubblica;14/07/2022
2575;4;9999999;88,9;412,78;ENEL ENERGIA SPA;8426072694;SALDO Fatt.n. 004231512897  del 11/06/2022 MAGGIO 2022 - CONSUMI ILLUMINAZIONE PUBBLICA;07/07/2022;3544;0;354;1;Spese correnti;3;Acquisto di beni e servizi;2;Acquisto di servizi;15;Contratti di servizio pubblico;15;Contratti di servizio per l'illuminazione pubblica;14/07/2022
2575;5;9999999;252,95;412,78;ENEL ENERGIA SPA;8426072694;SALDO Fatt.n. 004231512893  del 11/06/2022 MAGGIO 2022 - CONSUMI ILLUMINAZIONE PUBBLICA;07/07/2022;3544;0;354;1;Spese correnti;3;Acquisto di beni e servizi;2;Acquisto di servizi;15;Contratti di servizio pubblico;15;Contratti di servizio per l'illuminazione pubblica;14/07/2022
2576;1;9999999;19,11;184,59;ENEL ENERGIA SPA;8426072694;SALDO Fatt.n. 004231512899  del 11/06/2022 MAGGIO 2022 - CONSUMI ILLUMINAZIONE PUBBLICA;07/07/2022;3544;0;354;1;Spese correnti;3;Acquisto di beni e servizi;2;Acquisto di servizi;15;Contratti di servizio pubblico;15;Contratti di servizio per l'illuminazione pubblica;14/07/2022
2576;2;9999999;31,88;184,59;ENEL ENERGIA SPA;8426072694;SALDO Fatt.n. 004231512904  del 11/06/2022 MAGGIO 2022 - CONSUMI ILLUMINAZIONE PUBBLICA;07/07/2022;3544;0;354;1;Spese correnti;3;Acquisto di beni e servizi;2;Acquisto di servizi;15;Contratti di servizio pubblico;15;Contratti di servizio per l'illuminazione pubblica;14/07/2022
2576;3;9999999;35,95;184,59;ENEL ENERGIA SPA;8426072694;SALDO Fatt.n. 004231512898  del 11/06/2022 MAGGIO 2022 - CONSUMI ILLUMINAZIONE PUBBLICA;07/07/2022;3544;0;354;1;Spese correnti;3;Acquisto di beni e servizi;2;Acquisto di servizi;15;Contratti di servizio pubblico;15;Contratti di servizio per l'illuminazione pubblica;14/07/2022
2576;4;9999999;41,31;184,59;ENEL ENERGIA SPA;8426072694;SALDO Fatt.n. 004231512900  del 11/06/2022 MAGGIO 2022 - CONSUMI ILLUMINAZIONE PUBBLICA;07/07/2022;3544;0;354;1;Spese correnti;3;Acquisto di beni e servizi;2;Acquisto di servizi;15;Contratti di servizio pubblico;15;Contratti di servizio per l'illuminazione pubblica;14/07/2022
2576;5;9999999;56,34;184,59;ENEL ENERGIA SPA;8426072694;SALDO Fatt.n. 004231512903  del 11/06/2022 MAGGIO 2022 - CONSUMI ILLUMINAZIONE PUBBLICA;07/07/2022;3544;0;354;1;Spese correnti;3;Acquisto di beni e servizi;2;Acquisto di servizi;15;Contratti di servizio pubblico;15;Contratti di servizio per l'illuminazione pubblica;14/07/2022
2577;1;9999999;14,43;135,69;ENEL ENERGIA SPA;8426072694;SALDO Fatt.n. 004231512909  del 11/06/2022 MAGGIO 2022 - CONSUMI ILLUMINAZIONE PUBBLICA;07/07/2022;3544;0;354;1;Spese correnti;3;Acquisto di beni e servizi;2;Acquisto di servizi;15;Contratti di servizio pubblico;15;Contratti di servizio per l'illuminazione pubblica;14/07/2022
2577;2;9999999;20,95;135,69;ENEL ENERGIA SPA;8426072694;SALDO Fatt.n. 004231512905  del 11/06/2022 MAGGIO 2022 - CONSUMI ILLUMINAZIONE PUBBLICA;07/07/2022;3544;0;354;1;Spese correnti;3;Acquisto di beni e servizi;2;Acquisto di servizi;15;Contratti di servizio pubblico;15;Contratti di servizio per l'illuminazione pubblica;14/07/2022
2577;3;9999999;24,81;135,69;ENEL ENERGIA SPA;8426072694;SALDO Fatt.n. 004231512906  del 11/06/2022 MAGGIO 2022 - CONSUMI ILLUMINAZIONE PUBBLICA;07/07/2022;3544;0;354;1;Spese correnti;3;Acquisto di beni e servizi;2;Acquisto di servizi;15;Contratti di servizio pubblico;15;Contratti di servizio per l'illuminazione pubblica;14/07/2022
2577;4;9999999;28,02;135,69;ENEL ENERGIA SPA;8426072694;SALDO Fatt.n. 004231512907  del 11/06/2022 MAGGIO 2022 - CONSUMI ILLUMINAZIONE PUBBLICA;07/07/2022;3544;0;354;1;Spese correnti;3;Acquisto di beni e servizi;2;Acquisto di servizi;15;Contratti di servizio pubblico;15;Contratti di servizio per l'illuminazione pubblica;14/07/2022
2577;5;9999999;47,48;135,69;ENEL ENERGIA SPA;8426072694;SALDO Fatt.n. 004231512908  del 11/06/2022 MAGGIO 2022 - CONSUMI ILLUMINAZIONE PUBBLICA;07/07/2022;3544;0;354;1;Spese correnti;3;Acquisto di beni e servizi;2;Acquisto di servizi;15;Contratti di servizio pubblico;15;Contratti di servizio per l'illuminazione pubblica;14/07/2022
2578;1;9999999;6,69;147,46;ENEL ENERGIA SPA;8426072694;SALDO Fatt.n. 004231512912  del 11/06/2022 MAGGIO 2022 - CONSUMI ILLUMINAZIONE PUBBLICA;07/07/2022;3544;0;354;1;Spese correnti;3;Acquisto di beni e servizi;2;Acquisto di servizi;15;Contratti di servizio pubblico;15;Contratti di servizio per l'illuminazione pubblica;14/07/2022
2578;2;9999999;10,58;147,46;ENEL ENERGIA SPA;8426072694;SALDO Fatt.n. 004233078359  del 12/06/2022 MAGGIO 2022 - CONSUMI ILLUMINAZIONE PUBBLICA;07/07/2022;3544;0;354;1;Spese correnti;3;Acquisto di beni e servizi;2;Acquisto di servizi;15;Contratti di servizio pubblico;15;Contratti di servizio per l'illuminazione pubblica;14/07/2022
2578;3;9999999;57,12;147,46;ENEL ENERGIA SPA;8426072694;SALDO Fatt.n. 004231512911  del 11/06/2022 MAGGIO 2022 - CONSUMI ILLUMINAZIONE PUBBLICA;07/07/2022;3544;0;354;1;Spese correnti;3;Acquisto di beni e servizi;2;Acquisto di servizi;15;Contratti di servizio pubblico;15;Contratti di servizio per l'illuminazione pubblica;14/07/2022
2578;4;9999999;73,07;147,46;ENEL ENERGIA SPA;8426072694;SALDO Fatt.n. 004231512910  del 11/06/2022 MAGGIO 2022 - CONSUMI ILLUMINAZIONE PUBBLICA;07/07/2022;3544;0;354;1;Spese correnti;3;Acquisto di beni e servizi;2;Acquisto di servizi;15;Contratti di servizio pubblico;15;Contratti di servizio per l'illuminazione pubblica;14/07/2022
2579;1;9999999;24,08;24,08;ENEL ENERGIA SPA;8426072694;SALDO Fatt.n. 004231512804  del 11/06/2022 MAGGIO 2022 - CONSUMI CIMITERO STIGLIANO - LAMPADE VOTIVE;07/07/2022;4434;0;353;1;Spese correnti;3;Acquisto di beni e servizi;2;Acquisto di servizi;5;Utenze e canoni;4;Energia elettrica;14/07/2022
2580;1;9999999;18;18;ENEL ENERGIA SPA;8426072694;SALDO Fatt.n. 004231512873  del 11/06/2022 MAGGIO 2022 - CONSUMI CIMITERO S.ANGELO;07/07/2022;4434;0;353;1;Spese correnti;3;Acquisto di beni e servizi;2;Acquisto di servizi;5;Utenze e canoni;4;Energia elettrica;14/07/2022
2581;1;9999999;49;49;ENEL ENERGIA SPA;8426072694;SALDO Fatt.n. 004231512812  del 11/06/2022 MAGGIO 2022 - CONSUMI CIMITERO CALTANA - LAMPADE VOTIVE;07/07/2022;4434;0;353;1;Spese correnti;3;Acquisto di beni e servizi;2;Acquisto di servizi;5;Utenze e canoni;4;Energia elettrica;14/07/2022
2582;1;9999999;23;23;ENEL ENERGIA SPA;8426072694;SALDO Fatt.n. 004231512783  del 11/06/2022 MAGGIO 2022 - CONSUMI CIMITERO CASELLE - LAMPADE VOTIVE;07/07/2022;4434;0;353;1;Spese correnti;3;Acquisto di beni e servizi;2;Acquisto di servizi;5;Utenze e canoni;4;Energia elettrica;14/07/2022
2583;1;9999999;19;19;ENEL ENERGIA SPA;8426072694;SALDO Fatt.n. 004231512879  del 11/06/2022 MAGGIO 2022 - CONSUMI CIMITERO VETERNIGO - LAMPADE VOTIVE;07/07/2022;4434;0;353;1;Spese correnti;3;Acquisto di beni e servizi;2;Acquisto di servizi;5;Utenze e canoni;4;Energia elettrica;14/07/2022
2584;1;9999999;18;18;ENEL ENERGIA SPA;8426072694;SALDO Fatt.n. 004231512799  del 11/06/2022 MAGGIO 2022 - CONSUMI CIMITERO SMS - LAMPADE VOTIVE;07/07/2022;4434;0;353;1;Spese correnti;3;Acquisto di beni e servizi;2;Acquisto di servizi;5;Utenze e canoni;4;Energia elettrica;14/07/2022
2585;1;9999999;272,61;272,61;COMUNE DI S.MARIA DI SALA; ;CONTRIBUTO IFEL RISCOSSIONE IMU RENDICONTO PRELEV. 07/07/2022;07/07/2022;332;0;0;1;Spese correnti;3;Acquisto di beni e servizi;2;Acquisto di servizi;3;Aggi di riscossione;999;Altri aggi di riscossione n.a.c.;14/07/2022
2588;1;9999999;1.234,97;1.234,97;EL BOTTEGON SNC;ZF53698F8A;SALDO Fatt.n. 18  del 15/06/2022 VESTIARIO ESTIVO PERSONALE OPERAIO E MESSO COMUNALE;12/07/2022;521;0;536;1;Spese correnti;3;Acquisto di beni e servizi;1;Acquisto di beni;2;Altri beni di consumo;4;Vestiario;15/07/2022
2589;1;9999999;352;3.843,22;BONAVENTURA EXPRESS SRL;8704892021;SALDO Fatt.n. 270PA  del 09/06/2022 SANIFICAZIONE PER EMERGENZA COVID -19 - TRASPORTO SCOLASTICO GIUGNO 2022;12/07/2022;1344;0;388;1;Spese correnti;3;Acquisto di beni e servizi;2;Acquisto di servizi;15;Contratti di servizio pubblico;2;Contratti di servizio di trasporto scolastico;15/07/2022
2589;2;9999999;3.491,22;3.843,22;BONAVENTURA EXPRESS SRL;8704892021;SALDO Fatt.n. 266PA  del 09/06/2022 TRASPORTO SCOLASTICO GIUGNO 2022;12/07/2022;1344;0;388;1;Spese correnti;3;Acquisto di beni e servizi;2;Acquisto di servizi;15;Contratti di servizio pubblico;2;Contratti di servizio di trasporto scolastico;15/07/2022
2590;1;9999999;2.557,94;2.557,94;ARTEA  SNC DI LION & SALVIATO;90182921FD;SALDO Fatt.n. 12-2022/PA  del 10/06/2022 OPERAZIONI EFFETTUATE NEI CIMITERI DEL COMUNE DI SANTA MARIA DI SALA NEL MESE DI MAGGIO 2022;12/07/2022;4438;0;1152;1;Spese correnti;3;Acquisto di beni e servizi;2;Acquisto di servizi;9;Manutenzione ordinaria e riparazioni;8;Manutenzione ordinaria e riparazioni di beni immobili;15/07/2022
2591;1;9999999;4.623,80;4.623,80;NUOVA RADAR COOP. S.C.R.L.;Z343635B20;SALDO Fatt.n. 0000135/03  del 09/06/2022 ACQUISTO IMPIANTO DA BASKET PER AREE ESTERNE AD USO SPORTIVO DI PERTINENZA DELLA PALESTRA DI CALTANA;12/07/2022;8483;0;440;2;Spese in conto capitale;2;Investimenti fissi lordi e acquisto di terreni;1;Beni materiali;9;Beni immobili;16;Impianti sportivi;15/07/2022
2592;1;9999999;3.624,00;3.624,00;CALZAVARA OMAR - VIVAISTA;ZC534438C2;ACCONTO Fatt.n. 1/PAS  del 23/05/2022 MESSA A DIMORA DI PIANTE SU MARCIAPIEDI COMUNALI;12/07/2022;8483;0;1074;2;Spese in conto capitale;2;Investimenti fissi lordi e acquisto di terreni;1;Beni materiali;9;Beni immobili;16;Impianti sportivi;15/07/2022
2593;1;9999999;2.835,31;7.857,70;SODEXO ITALIA SPA;78886743B9;SALDO Fatt.n. 7400029080  del 30/06/2022 GIUGNO 2022 - PASTI SCUOLE MATERNE BAMBINI E INSEGNANTI;12/07/2022;1344;0;543;1;Spese correnti;3;Acquisto di beni e servizi;2;Acquisto di servizi;15;Contratti di servizio pubblico;6;Contratti di servizio per le mense scolastiche;15/07/2022
2593;2;9999999;5.022,39;7.857,70;SODEXO ITALIA SPA;78886743B9;SALDO Fatt.n. 7400029081  del 30/06/2022 GIUGNO 2022 - PASTI TRASPORTATI SCUOLE BAMBINI E INSEGNANTI;12/07/2022;1344;0;543;1;Spese correnti;3;Acquisto di beni e servizi;2;Acquisto di servizi;15;Contratti di servizio pubblico;6;Contratti di servizio per le mense scolastiche;15/07/2022
2596;1;9999999;49;49;MAG SPA;ZC9370E701;PREMIO DI REGOLAZIONE A CONGUAGLIO DI POLIZZA ASSICURATIVA PER INFORTUNI CUMULATIVA AL BROKER MAG SPA;12/07/2022;993;0;606;1;Spese correnti;10;Altre spese correnti;4;Premi di assicurazione;99;Altri premi di assicurazione n.a.c.;999;Altri premi di assicurazione n.a.c.;15/07/2022
2597;1;9999999;1.000,00;1.000,00;ASS.VOLONTARI PROT.CIVILE S.M. DI SALA ODV; ;CONTRIBUTO ATTIVITA SVOLTA D IN OCCASIONE DELLE ELEZIONI DEL 12.06.2022 (AMMINISTRATIVE /REFERENDUM);12/07/2022;649;0;604;1;Spese correnti;3;Acquisto di beni e servizi;2;Acquisto di servizi;99;Altri servizi;4;Altre spese per consultazioni elettorali dell'ente;15/07/2022
2598;1;9999999;500;500;ACADEMIA VENETA DI DANZA E BALLETTO DI B.C.; ;PROGRAMMA DELLA RASSEGNA CULTURALE RESTATE IN VILLA PROPOSTA DALLASSESSORATO ALLA CULTURA DA MAGGIO A LUGLIO 2022;12/07/2022;1859;0;553;1;Spese correnti;4;Trasferimenti correnti;4;Trasferimenti correnti a Istituzioni Sociali Private;1;Trasferimenti correnti a Istituzioni Sociali Private;1;Trasferimenti correnti a Istituzioni Sociali Private;15/07/2022
2599;1;9999999;500;500;AIDAI VENETO; ;PROGRAMMA DELLA RASSEGNA CULTURALE RESTATE IN VILLA PROPOSTA DALLASSESSORATO ALLA CULTURA DA MAGGIO A LUGLIO 2022;12/07/2022;1859;0;554;1;Spese correnti;4;Trasferimenti correnti;4;Trasferimenti correnti a Istituzioni Sociali Private;1;Trasferimenti correnti a Istituzioni Sociali Private;1;Trasferimenti correnti a Istituzioni Sociali Private;15/07/2022
2600;1;9999999;500;500;CIRCOLO ARCI  F. PIROLA; ;PROGRAMMA DELLA RASSEGNA CULTURALE RESTATE IN VILLA PROPOSTA DALLASSESSORATO ALLA CULTURA DA MAGGIO A LUGLIO 2022;12/07/2022;1859;0;555;1;Spese correnti;4;Trasferimenti correnti;4;Trasferimenti correnti a Istituzioni Sociali Private;1;Trasferimenti correnti a Istituzioni Sociali Private;1;Trasferimenti correnti a Istituzioni Sociali Private;15/07/2022
2601;1;9999999;500;500;GRUPPO ASTROFILI SALESE GALILEO GALILEI; ;PROGRAMMA DELLA RASSEGNA CULTURALE RESTATE IN VILLA PROPOSTA DALLASSESSORATO ALLA CULTURA DA MAGGIO A LUGLIO 2022;12/07/2022;1859;0;556;1;Spese correnti;4;Trasferimenti correnti;4;Trasferimenti correnti a Istituzioni Sociali Private;1;Trasferimenti correnti a Istituzioni Sociali Private;1;Trasferimenti correnti a Istituzioni Sociali Private;15/07/2022
2602;1;9999999;1.200,00;1.200,00;ASSOCIAZIONE  LA CASA SULL' ALBERO; ;PROGRAMMA DELLA RASSEGNA CULTURALE RESTATE IN VILLA PROPOSTA DALLASSESSORATO ALLA CULTURA DA MAGGIO A LUGLIO 2022;12/07/2022;1859;0;557;1;Spese correnti;4;Trasferimenti correnti;4;Trasferimenti correnti a Istituzioni Sociali Private;1;Trasferimenti correnti a Istituzioni Sociali Private;1;Trasferimenti correnti a Istituzioni Sociali Private;15/07/2022
2603;1;9999999;500;500;PARROCCHIA DI  SAN GIACOMO CASELLE; ;PROGRAMMA DELLA RASSEGNA CULTURALE RESTATE IN VILLA PROPOSTA DALLASSESSORATO ALLA CULTURA DA MAGGIO A LUGLIO 2022;12/07/2022;1859;0;559;1;Spese correnti;4;Trasferimenti correnti;4;Trasferimenti correnti a Istituzioni Sociali Private;1;Trasferimenti correnti a Istituzioni Sociali Private;1;Trasferimenti correnti a Istituzioni Sociali Private;15/07/2022
2604;1;9999999;1.000,00;1.000,00;PARROCCHIA DELLA  NATIVITA' B. VERGINE MARIA S.M.SALA; ;PROGRAMMA DELLA RASSEGNA CULTURALE RESTATE IN VILLA PROPOSTA DALLASSESSORATO ALLA CULTURA DA MAGGIO A LUGLIO 2022;12/07/2022;1859;0;560;1;Spese correnti;4;Trasferimenti correnti;4;Trasferimenti correnti a Istituzioni Sociali Private;1;Trasferimenti correnti a Istituzioni Sociali Private;1;Trasferimenti correnti a Istituzioni Sociali Private;15/07/2022
2605;1;9999999;1.000,00;1.000,00;ASSOCIAZIONE PRO LOCO S.MARIA DI SALA; ;PROGRAMMA DELLA RASSEGNA CULTURALE RESTATE IN VILLA PROPOSTA DALLASSESSORATO ALLA CULTURA DA MAGGIO A LUGLIO 2022;12/07/2022;1859;0;561;1;Spese correnti;4;Trasferimenti correnti;4;Trasferimenti correnti a Istituzioni Sociali Private;1;Trasferimenti correnti a Istituzioni Sociali Private;1;Trasferimenti correnti a Istituzioni Sociali Private;15/07/2022
2606;1;9999999;1.000,00;1.000,00;TEATROIMMAGINE ASS.CULT.; ;PROGRAMMA DELLA RASSEGNA CULTURALE RESTATE IN VILLA PROPOSTA DALLASSESSORATO ALLA CULTURA DA MAGGIO A LUGLIO 2022;12/07/2022;1859;0;562;1;Spese correnti;4;Trasferimenti correnti;4;Trasferimenti correnti a Istituzioni Sociali Private;1;Trasferimenti correnti a Istituzioni Sociali Private;1;Trasferimenti correnti a Istituzioni Sociali Private;15/07/2022
2607;1;9999999;1.523,80;1.523,80;CITTA' METROPOLITANA DI VENEZIA;9091941B0E;spese funzionamento SUA - AFFIDAMENTO DEL SERVIZIO DI ASSISTENZA DOMICILIARE E DEL SERVIZIO DI EDUCATIVA DOMICILIARE ANNI 2022-2025, CON POSSIBILITA DI RINNOVO ESPRESSO PER IL SUCCESSIVO PERIODO 2025-2028.;12/07/2022;3944;0;137;1;Spese correnti;3;Acquisto di beni e servizi;2;Acquisto di servizi;15;Contratti di servizio pubblico;9;Contratti di servizio di assistenza sociale domiciliare;15/07/2022
2608;1;9999999;2.670,30;2.670,30;CITTA' METROPOLITANA DI VENEZIA; ;quota fondo incentivi tecnici -AFFIDAMENTO DEL SERVIZIO DI ASSISTENZA DOMICILIARE E DEL SERVIZIO DI EDUCATIVA DOMICILIARE ANNI 2022-2025, CON POSSIBILITA DI RINNOVO ESPRESSO PER IL SUCCESSIVO PERIODO 2025-2028.;12/07/2022;3944;0;138;1;Spese correnti;3;Acquisto di beni e servizi;2;Acquisto di servizi;15;Contratti di servizio pubblico;9;Contratti di servizio di assistenza sociale domiciliare;15/07/2022
2609;1;9999999;2.468,93;2.468,93;CITTA' METROPOLITANA DI VENEZIA; ;quota spese pubblicazione bando e avvisi - I ASSISTENZA DOMICILIARE E DEL SERVIZIO DI EDUCATIVA DOMICILIARE ANNI 2022-2025, CON POSSIBILITA DI RINNOVO ESPRESSO PER IL SUCCESSIVO PERIODO 2025-2;12/07/2022;3944;0;139;1;Spese correnti;3;Acquisto di beni e servizi;2;Acquisto di servizi;15;Contratti di servizio pubblico;9;Contratti di servizio di assistenza sociale domiciliare;15/07/2022
2610;1;9999999;19.075,54;19.075,54;AGENZIA DELLE ENTRATE - IVA; ;LIQUIDAZIONE IVA COMMERCIALE MESE DI GIUGNO 2022;12/07/2022;291;0;611;1;Spese correnti;10;Altre spese correnti;3;Versamenti IVA a debito;1;Versamenti IVA a debito per le gestioni commerciali;1;Versamenti IVA a debito per le gestioni commerciali;15/07/2022
2613;1;9999999;1.937,36;1.937,36;COM.TEL SPA;Z1B3229786;SALDO Fatt.n. 40055  del 27/06/2022  MANUTENZIONE CENTRALINO TELEFONICO ANNO 2022;13/07/2022;748;0;595;1;Spese correnti;3;Acquisto di beni e servizi;2;Acquisto di servizi;19;Servizi informatici e di telecomunicazioni;4;Servizi di rete per trasmissione dati e VoIP e relativa manutenzione;15/07/2022
2614;1;9999999;59,62;2.408,40;VODAFONE ITALIA SPA;Z6C2BED875;SALDO Fatt.n. AO11840914  del 06/07/2022 PERIODO 03 MAGGIO - 01 LUGLIO 2022 TELEFONIA;13/07/2022;1334;0;332;1;Spese correnti;3;Acquisto di beni e servizi;2;Acquisto di servizi;5;Utenze e canoni;1;Telefonia fissa;15/07/2022
2614;2;9999999;247,41;2.408,40;VODAFONE ITALIA SPA;Z6C2BED875;SALDO Fatt.n. AO11840915  del 06/07/2022 PERIODO 03 MAGGIO - 01 LUGLIO 2022 TELEFONIA;13/07/2022;1334;0;332;1;Spese correnti;3;Acquisto di beni e servizi;2;Acquisto di servizi;5;Utenze e canoni;1;Telefonia fissa;15/07/2022
2614;3;9999999;933,59;2.408,40;VODAFONE ITALIA SPA;Z6C2BED875;SALDO Fatt.n. AO11840543  del 06/07/2022 PERIODO 03 MAGGIO - 01 LUGLIO 2022 TELEFONIA;13/07/2022;1334;0;332;1;Spese correnti;3;Acquisto di beni e servizi;2;Acquisto di servizi;5;Utenze e canoni;1;Telefonia fissa;15/07/2022
2614;4;9999999;1.167,78;2.408,40;VODAFONE ITALIA SPA;Z6C2BED875;SALDO Fatt.n. AO11840642  del 06/07/2022 PERIODO 03 MAGGIO - 01 LUGLIO 2022 TELEFONIA;13/07/2022;1334;0;332;1;Spese correnti;3;Acquisto di beni e servizi;2;Acquisto di servizi;5;Utenze e canoni;1;Telefonia fissa;15/07/2022
2615;1;9999999;1.281,00;1.281,00;GOLFETTO ANGELO;Z9D35D53BC;ACCONTO Fatt.n. 4/PA  del 17/06/2022 AFFIDAMENTO DEL SERVIZIO CONNESSO AGLI ADEMPIMENTIDI PREVENZIONE INCENDI DI CUI AL DPR 151-2011 PER INTERVENTO DI RISTRUTTURAZIONE  PALESTRA S.ANGELO;13/07/2022;7631;15;1165;2;Spese in conto capitale;2;Investimenti fissi lordi e acquisto di terreni;1;Beni materiali;9;Beni immobili;3;Fabbricati ad uso scolastico;15/07/2022
2616;1;9999999;1.281,00;1.281,00;GOLFETTO ANGELO;Z9D35D53BC;SALDO Fatt.n. 4/PA  del 17/06/2022 AFFIDAMENTO DEL SERVIZIO CONNESSO AGLI ADEMPIMENTIDI PREVENZIONE INCENDI DI CUI AL DPR 151-2011 PER INTERVENTO DI RISTRUTTURAZIONE  PALESTRA S.ANGELO;13/07/2022;7631;15;1165;2;Spese in conto capitale;2;Investimenti fissi lordi e acquisto di terreni;1;Beni materiali;9;Beni immobili;3;Fabbricati ad uso scolastico;15/07/2022
2617;1;9999999;300;300;E.S.A. ELECOMP SERVIZI ASCENSORI SRL;Z25350B12E;ACCONTO Fatt.n. FC0026809-0  del 20/06/2022 MANUTENZIONE  IMPIANTI ELEVATORI - PERIODO 01.01.2022 - 30.06.2022;13/07/2022;1338;0;133;1;Spese correnti;3;Acquisto di beni e servizi;2;Acquisto di servizi;9;Manutenzione ordinaria e riparazioni;11;Manutenzione ordinaria e riparazioni di altri beni materiali;15/07/2022
2618;1;9999999;234,36;234,36;E.S.A. ELECOMP SERVIZI ASCENSORI SRL;Z25350B12E;SALDO Fatt.n. FC0026809-0  del 20/06/2022 MANUTENZIONE  IMPIANTI ELEVATORI - PERIODO 01.01.2022 - 30.06.2022;13/07/2022;1938;0;134;1;Spese correnti;3;Acquisto di beni e servizi;2;Acquisto di servizi;9;Manutenzione ordinaria e riparazioni;11;Manutenzione ordinaria e riparazioni di altri beni materiali;15/07/2022
2619;1;9999999;12.308,34;12.308,34;DIVERSI-AMMINISTRATORI COM.LI; ;STIPENDI MESE DI LUGLIO 22;15/07/2022;30;99;0;1;Spese correnti;3;Acquisto di beni e servizi;2;Acquisto di servizi;1;Organi e incarichi istituzionali dell'amministrazione;1;Organi istituzionali dell'amministrazione - Indennità;26/07/2022
2692;1;9999999;334,8;334,8;OMESSO NOMINATIVO NEL RISPETTO DELLA NORMATIVA SULLA PROTEZIONE DATI PERSONALI; ;APRILE 2022 PROGETTO PERSONALIZZATO DINTERVENTO SOCIO-ASSISTENZIALE A FAVORE DI MINORE.;15/07/2022;3757;0;433;1;Spese correnti;4;Trasferimenti correnti;2;Trasferimenti correnti a Famiglie;5;Altri trasferimenti a famiglie;999;Altri trasferimenti a famiglie n.a.c.;20/07/2022
2693;1;9999999;250;250;OMESSO NOMINATIVO NEL RISPETTO DELLA NORMATIVA SULLA PROTEZIONE DATI PERSONALI; ;PROGETTO RIA  - GIUGNO 2022;15/07/2022;3957;54;373;1;Spese correnti;4;Trasferimenti correnti;2;Trasferimenti correnti a Famiglie;5;Altri trasferimenti a famiglie;999;Altri trasferimenti a famiglie n.a.c.;21/07/2022
2694;1;9999999;250;250;OMESSO NOMINATIVO NEL RISPETTO DELLA NORMATIVA SULLA PROTEZIONE DATI PERSONALI; ;PROGETTO RIA  - GIUGNO 2022;15/07/2022;3957;54;373;1;Spese correnti;4;Trasferimenti correnti;2;Trasferimenti correnti a Famiglie;5;Altri trasferimenti a famiglie;999;Altri trasferimenti a famiglie n.a.c.;27/07/2022
2695;1;9999999;250;250;OMESSO NOMINATIVO NEL RISPETTO DELLA NORMATIVA SULLA PROTEZIONE DATI PERSONALI; ;PROGETTO RIA  - GIUGNO 2022;15/07/2022;3957;54;373;1;Spese correnti;4;Trasferimenti correnti;2;Trasferimenti correnti a Famiglie;5;Altri trasferimenti a famiglie;999;Altri trasferimenti a famiglie n.a.c.;20/07/2022
2696;1;9999999;250;250;OMESSO NOMINATIVO NEL RISPETTO DELLA NORMATIVA SULLA PROTEZIONE DATI PERSONALI; ;PROGETTO RIA  - GIUGNO 2022;15/07/2022;3957;54;373;1;Spese correnti;4;Trasferimenti correnti;2;Trasferimenti correnti a Famiglie;5;Altri trasferimenti a famiglie;999;Altri trasferimenti a famiglie n.a.c.;20/07/2022
2697;1;9999999;250;250;OMESSO NOMINATIVO NEL RISPETTO DELLA NORMATIVA SULLA PROTEZIONE DATI PERSONALI; ;PROGETTO RIA  - GIUGNO 2022;15/07/2022;3957;54;373;1;Spese correnti;4;Trasferimenti correnti;2;Trasferimenti correnti a Famiglie;5;Altri trasferimenti a famiglie;999;Altri trasferimenti a famiglie n.a.c.;20/07/2022
2698;1;9999999;672,23;672,23;COMUNE DI MIRANO; ;PROGETTO SOLLIEVO ALZHEIMER ANNO 2021;15/07/2022;4051;0;925;1;Spese correnti;4;Trasferimenti correnti;1;Trasferimenti correnti a Amministrazioni Pubbliche;2;Trasferimenti correnti a Amministrazioni Locali;3;Trasferimenti correnti a Comuni;20/07/2022
2699;1;9999999;664,4;664,4;OMESSO NOMINATIVO NEL RISPETTO DELLA NORMATIVA SULLA PROTEZIONE DATI PERSONALI; ;APRILE MAGGIO 2022 PROGETTO PERSONALIZZATO DINTERVENTO SOCIO-ASSISTENZIALE A SOSTEGNO DI MINORE;15/07/2022;3957;54;373;1;Spese correnti;4;Trasferimenti correnti;2;Trasferimenti correnti a Famiglie;5;Altri trasferimenti a famiglie;999;Altri trasferimenti a famiglie n.a.c.;20/07/2022
2700;1;9999999;193,6;193,6;OMESSO NOMINATIVO NEL RISPETTO DELLA NORMATIVA SULLA PROTEZIONE DATI PERSONALI; ;APRILE MAGGIO 2022 PROGETTO PERSONALIZZATO DINTERVENTO SOCIO-ASSISTENZIALE A SOSTEGNO DI MINORE;15/07/2022;3757;0;387;1;Spese correnti;4;Trasferimenti correnti;2;Trasferimenti correnti a Famiglie;5;Altri trasferimenti a famiglie;999;Altri trasferimenti a famiglie n.a.c.;20/07/2022
2701;1;9999999;5.000,00;5.000,00;ASS.VOLONTARI PROT.CIVILE S.M. DI SALA ODV; ;CONTRIBUTO PER  FAR FRONTE A SPESE NECESSARIE AL FUNZIONAMENTO DELLATTIVITA ANNO 2022.;15/07/2022;3659;0;605;1;Spese correnti;4;Trasferimenti correnti;4;Trasferimenti correnti a Istituzioni Sociali Private;1;Trasferimenti correnti a Istituzioni Sociali Private;1;Trasferimenti correnti a Istituzioni Sociali Private;20/07/2022
2703;1;9999999;34,26;34,26;DOLOMITI ENERGIA SPA;8922150718;SALDO Fatt.n. 42202939842  del 29/06/2022 MAGGIO 2022 - CONSUMI SEDE MUNICIPALE;18/07/2022;134;31;608;1;Spese correnti;3;Acquisto di beni e servizi;2;Acquisto di servizi;5;Utenze e canoni;6;Gas;21/07/2022
2704;1;9999999;61,16;61,16;DOLOMITI ENERGIA SPA;8922150718;SALDO Fatt.n. 42202939839  del 29/06/2022 MAGGIO 2022 - CONSUMI VILLA FARSETTI;18/07/2022;134;31;608;1;Spese correnti;3;Acquisto di beni e servizi;2;Acquisto di servizi;5;Utenze e canoni;6;Gas;21/07/2022
2705;1;9999999;43,91;43,91;DOLOMITI ENERGIA SPA;8922150718;SALDO Fatt.n. 42202939844  del 29/06/2022 MAGGIO 2022 - CONSUMI ALLOGGIO VIA OLIMPAI SMS;18/07/2022;134;31;608;1;Spese correnti;3;Acquisto di beni e servizi;2;Acquisto di servizi;5;Utenze e canoni;6;Gas;21/07/2022
2706;1;9999999;20,78;20,78;DOLOMITI ENERGIA SPA;8922150718;SALDO Fatt.n. 42202944132  del 29/06/2022 MAGGIO 2022 - CONSUMI ALLOGGIO VIA DON GALLERANI;18/07/2022;134;31;608;1;Spese correnti;3;Acquisto di beni e servizi;2;Acquisto di servizi;5;Utenze e canoni;6;Gas;21/07/2022
2707;1;9999999;23,86;23,86;DOLOMITI ENERGIA SPA;8922150718;SALDO Fatt.n. 42202944135  del 29/06/2022 MAGGIO 2022 - CONSUMI MAGAZZINO COMUNALE;18/07/2022;134;31;608;1;Spese correnti;3;Acquisto di beni e servizi;2;Acquisto di servizi;5;Utenze e canoni;6;Gas;21/07/2022
2708;1;9999999;34,03;34,03;DOLOMITI ENERGIA SPA;8922150718;SALDO Fatt.n. 42202939840  del 29/06/2022 MAGGIO 2022 - CONSUMI SC. ELEM. CALTANA;18/07/2022;1334;30;609;1;Spese correnti;3;Acquisto di beni e servizi;2;Acquisto di servizi;5;Utenze e canoni;6;Gas;21/07/2022
2709;1;9999999;74,8;74,8;DOLOMITI ENERGIA SPA;8922150718;SALDO Fatt.n. 42202944133  del 29/06/2022 MAGGIO 2022 - CONSUMI SC. ELEM - SC. MEDIA SMS;18/07/2022;1334;30;609;1;Spese correnti;3;Acquisto di beni e servizi;2;Acquisto di servizi;5;Utenze e canoni;6;Gas;21/07/2022
2710;1;9999999;105;105;DOLOMITI ENERGIA SPA;8922150718;ACCONTO Fatt.n. 42202939837  del 29/06/2022 MAGGIO 2022 - CONSUMI SC. ELEM-PALESTRA STIGLIANO;18/07/2022;1334;30;609;1;Spese correnti;3;Acquisto di beni e servizi;2;Acquisto di servizi;5;Utenze e canoni;6;Gas;21/07/2022
2711;1;9999999;90,96;90,96;DOLOMITI ENERGIA SPA;8922150718;ACCONTO Fatt.n. 42202939837  del 29/06/2022 MAGGIO 2022 - CONSUMI SC. ELEM-PALESTRA STIGLIANO;18/07/2022;1334;30;609;1;Spese correnti;3;Acquisto di beni e servizi;2;Acquisto di servizi;5;Utenze e canoni;6;Gas;21/07/2022
2712;1;9999999;51;51;DOLOMITI ENERGIA SPA;8922150718;ACCONTO Fatt.n. 42202939843  del 29/06/2022 MAGGIO 2022 - CONSUMI SC. ELEM-PALESTRA-ASILO S.ANGELO;18/07/2022;1334;30;609;1;Spese correnti;3;Acquisto di beni e servizi;2;Acquisto di servizi;5;Utenze e canoni;6;Gas;21/07/2022
2713;1;9999999;153,34;153,34;DOLOMITI ENERGIA SPA;8922150718;ACCONTO Fatt.n. 42202939843  del 29/06/2022 MAGGIO 2022 - CONSUMI SC. ELEM-PALESTRA-ASILO S.ANGELO;18/07/2022;1334;30;609;1;Spese correnti;3;Acquisto di beni e servizi;2;Acquisto di servizi;5;Utenze e canoni;6;Gas;21/07/2022
2714;1;9999999;34;34;DOLOMITI ENERGIA SPA;8922150718;ACCONTO Fatt.n. 42202939841  del 29/06/2022 MAGGIO 2022 - CONSUMI SC. ELEM-PALESTRA CASELLE;18/07/2022;1334;30;609;1;Spese correnti;3;Acquisto di beni e servizi;2;Acquisto di servizi;5;Utenze e canoni;6;Gas;21/07/2022
2715;1;9999999;102,97;102,97;DOLOMITI ENERGIA SPA;8922150718;ACCONTO Fatt.n. 42202939841  del 29/06/2022 MAGGIO 2022 - CONSUMI SC. ELEM-PALESTRA CASELLE;18/07/2022;1334;30;609;1;Spese correnti;3;Acquisto di beni e servizi;2;Acquisto di servizi;5;Utenze e canoni;6;Gas;21/07/2022
2716;1;9999999;111,09;111,09;DOLOMITI ENERGIA SPA;8922150718;ACCONTO Fatt.n. 42202944136  del 29/06/2022 MAGGIO 2022 - CONSUMI PALESTRA CALTANA;18/07/2022;1334;30;609;1;Spese correnti;3;Acquisto di beni e servizi;2;Acquisto di servizi;5;Utenze e canoni;6;Gas;21/07/2022
2717;1;9999999;47,11;47,11;DOLOMITI ENERGIA SPA;8922150718;ACCONTO Fatt.n. 42202944134  del 29/06/2022 MAGGIO 2022 - CONSUMI PALESTRA SMS;18/07/2022;1334;30;609;1;Spese correnti;3;Acquisto di beni e servizi;2;Acquisto di servizi;5;Utenze e canoni;6;Gas;21/07/2022
2718;1;9999999;92;92;DOLOMITI ENERGIA SPA;8922150718;ACCONTO Fatt.n. 42202939838  del 29/06/2022 MAGGIO 2022 - CONSUMI SC. ELEM-PALESTRA VETERNIGO;18/07/2022;1334;30;609;1;Spese correnti;3;Acquisto di beni e servizi;2;Acquisto di servizi;5;Utenze e canoni;6;Gas;21/07/2022
2719;1;9999999;148,8;148,8;DOLOMITI ENERGIA SPA;8922150718;ACCONTO Fatt.n. 42202939838  del 29/06/2022 MAGGIO 2022 - CONSUMI SC. ELEM-PALESTRA VETERNIGO;18/07/2022;1334;30;609;1;Spese correnti;3;Acquisto di beni e servizi;2;Acquisto di servizi;5;Utenze e canoni;6;Gas;21/07/2022
2720;1;9999999;77,36;77,36;DOLOMITI ENERGIA SPA;8922150718;SALDO Fatt.n. 42202944137  del 29/06/2022 MAGGIO 2022 - CONSUMI IMP. SPORT. CASELLE;18/07/2022;1934;0;610;1;Spese correnti;3;Acquisto di beni e servizi;2;Acquisto di servizi;5;Utenze e canoni;6;Gas;21/07/2022
2721;1;9999999;105;105;DOLOMITI ENERGIA SPA;8922150718;SALDO Fatt.n. 42202939837  del 29/06/2022 MAGGIO 2022 - CONSUMI SC. ELEM-PALESTRA STIGLIANO;18/07/2022;1934;0;610;1;Spese correnti;3;Acquisto di beni e servizi;2;Acquisto di servizi;5;Utenze e canoni;6;Gas;21/07/2022
2722;1;9999999;51;51;DOLOMITI ENERGIA SPA;8922150718;SALDO Fatt.n. 42202939843  del 29/06/2022 MAGGIO 2022 - CONSUMI SC. ELEM-PALESTRA-ASILO S.ANGELO;18/07/2022;1934;0;610;1;Spese correnti;3;Acquisto di beni e servizi;2;Acquisto di servizi;5;Utenze e canoni;6;Gas;21/07/2022
2723;1;9999999;34;34;DOLOMITI ENERGIA SPA;8922150718;SALDO Fatt.n. 42202939841  del 29/06/2022 MAGGIO 2022 - CONSUMI SC. ELEM-PALESTRA CASELLE;18/07/2022;1934;0;610;1;Spese correnti;3;Acquisto di beni e servizi;2;Acquisto di servizi;5;Utenze e canoni;6;Gas;21/07/2022
2724;1;9999999;111,09;111,09;DOLOMITI ENERGIA SPA;8922150718;SALDO Fatt.n. 42202944136  del 29/06/2022 MAGGIO 2022 - CONSUMI PALESTRA CALTANA;18/07/2022;1934;0;610;1;Spese correnti;3;Acquisto di beni e servizi;2;Acquisto di servizi;5;Utenze e canoni;6;Gas;21/07/2022
2725;1;9999999;47,12;47,12;DOLOMITI ENERGIA SPA;8922150718;SALDO Fatt.n. 42202944134  del 29/06/2022 MAGGIO 2022 - CONSUMI PALESTRA SMS;18/07/2022;1934;0;610;1;Spese correnti;3;Acquisto di beni e servizi;2;Acquisto di servizi;5;Utenze e canoni;6;Gas;21/07/2022
2726;1;9999999;92;92;DOLOMITI ENERGIA SPA;8922150718;SALDO Fatt.n. 42202939838  del 29/06/2022 MAGGIO 2022 - CONSUMI SC. ELEM-PALESTRA VETERNIGO;18/07/2022;1934;0;610;1;Spese correnti;3;Acquisto di beni e servizi;2;Acquisto di servizi;5;Utenze e canoni;6;Gas;21/07/2022
2727;1;9999999;921,03;921,03;VALEX SPA; ;LIQUIDAZIONE A DITTA VALEX RIMBORSO ASSENZE RETRIBUITE VICE SINDACO ARPI ALESSANDRO USUFRUITE NEI MESI DI MAGGIO E GIUGNO 2022.;19/07/2022;30;99;46;1;Spese correnti;3;Acquisto di beni e servizi;2;Acquisto di servizi;1;Organi e incarichi istituzionali dell'amministrazione;2;Organi istituzionali dell'amministrazione - Rimborsi;21/07/2022
2728;1;9999999;567,86;567,86;KUWAIT PETROLEUM ITALIA SPA;Z543524413;SALDO Fatt.n. PJ05566469  del 30/06/2022 FORNITURA CARBURANTE GIUGNO 2022;19/07/2022;521;0;186;1;Spese correnti;3;Acquisto di beni e servizi;1;Acquisto di beni;2;Altri beni di consumo;999;Altri beni e materiali di consumo n.a.c.;21/07/2022
2729;1;9999999;89,9;89,9;PAOLO CALZATURE SNC DI SARTORE W. E M.;ZD236990E4;SALDO Fatt.n. 5/00  del 30/06/2022 FORNITURA DI UN PAIO DI CALZATURE PER IL MESSO COMUNALE;19/07/2022;521;0;537;1;Spese correnti;3;Acquisto di beni e servizi;1;Acquisto di beni;2;Altri beni di consumo;4;Vestiario;21/07/2022
2730;1;9999999;680,38;680,38;C.E.I.F. DI BESSEGA DANIELE;Z0934F37FF;SALDO Fatt.n. 1-1  del 30/06/2022 MATERIALE VARIO DI FERRAMENTA PER MANUTENZIONI;19/07/2022;522;0;607;1;Spese correnti;3;Acquisto di beni e servizi;1;Acquisto di beni;2;Altri beni di consumo;999;Altri beni e materiali di consumo n.a.c.;21/07/2022
2731;1;9999999;109,8;109,8;JOLLY BOX SRL;Z642E237DF;SALDO Fatt.n. 3504-V0-2022  del 29/06/2022 NOLEGGIO DI CONTAINER NAVALE SC. ELEM. VETERNIGO - MESE DI GIUGNO 2022;19/07/2022;1336;0;679;1;Spese correnti;3;Acquisto di beni e servizi;2;Acquisto di servizi;7;Utilizzo di beni di terzi;8;Noleggi di impianti e macchinari;21/07/2022
2732;1;9999999;5.185,00;5.185,00;ABACO S.P.A.;Z61327644A;SALDO Fatt.n. 2022140002384  del 01/07/2022 SERVIZIO RISCOSSIONE CORRISPETTIVI TRASPORTO SCOLASTICO  E  REFEZIONE SCOLASTICA PER LE SCUOLE COMUNALI  PERIODO DAL 01-01-2022 AL 30-06-2022;19/07/2022;1348;0;652;1;Spese correnti;3;Acquisto di beni e servizi;2;Acquisto di servizi;19;Servizi informatici e di telecomunicazioni;1;Gestione e manutenzione applicazioni;21/07/2022
2733;1;9999999;996,59;996,59;CENTRO BIBLIOTECHE LOVAT SRL;Z2D34D41E5;SALDO Fatt.n. 477-22  del 29/06/2022 VOLUMI PER BIBLIOTECA;19/07/2022;1820;0;135;1;Spese correnti;3;Acquisto di beni e servizi;1;Acquisto di beni;1;Giornali, riviste e pubblicazioni;2;Pubblicazioni;21/07/2022
2734;1;9999999;4.122,00;4.122,00;DISMA SAS DI ANGELO RIGO & C.;Z2B33311E4;SALDO Fatt.n. 037/2022  del 30/06/2022 SERVIZI BIBLIOTECARI COMPETENZA MAGGIO-GIUGNO 2022;19/07/2022;2049;0;867;1;Spese correnti;3;Acquisto di beni e servizi;2;Acquisto di servizi;99;Altri servizi;999;Altri servizi diversi n.a.c.;21/07/2022
2735;1;9999999;125,26;125,26;EPIU' SRL - COSTRUIRE INSIEME;Z9134FFF69;SALDO Fatt.n. 17432  del 30/06/2022 FORN.MAT.EDILE/STRAD. PER MANUTENZIONI;19/07/2022;3538;0;116;1;Spese correnti;3;Acquisto di beni e servizi;2;Acquisto di servizi;9;Manutenzione ordinaria e riparazioni;8;Manutenzione ordinaria e riparazioni di beni immobili;21/07/2022
2736;1;9999999;938,89;938,89;OMESSO NOMINATIVO NEL RISPETTO DELLA NORMATIVA SULLA PROTEZIONE DATI PERSONALI; ;ANNO 2021 FONDO PER IL SOSTEGNO ALLACCESSO ALLE ABITAZIONI IN LOCAZIONE L.431/1998;19/07/2022;4157;51;554;1;Spese correnti;4;Trasferimenti correnti;2;Trasferimenti correnti a Famiglie;2;Interventi assistenziali;999;Altri assegni e sussidi assistenziali;21/07/2022
2737;1;9999999;239,75;239,75;OMESSO NOMINATIVO NEL RISPETTO DELLA NORMATIVA SULLA PROTEZIONE DATI PERSONALI; ;ANNO 2021 FONDO PER IL SOSTEGNO ALLACCESSO ALLE ABITAZIONI IN LOCAZIONE L.431/1998;19/07/2022;4157;51;145;1;Spese correnti;4;Trasferimenti correnti;2;Trasferimenti correnti a Famiglie;2;Interventi assistenziali;999;Altri assegni e sussidi assistenziali;21/07/2022
2738;1;9999999;16,93;16,93;OMESSO NOMINATIVO NEL RISPETTO DELLA NORMATIVA SULLA PROTEZIONE DATI PERSONALI; ;ANNO 2021 FONDO PER IL SOSTEGNO ALLACCESSO ALLE ABITAZIONI IN LOCAZIONE L.431/1998;19/07/2022;4157;51;145;1;Spese correnti;4;Trasferimenti correnti;2;Trasferimenti correnti a Famiglie;2;Interventi assistenziali;999;Altri assegni e sussidi assistenziali;21/07/2022
2739;1;9999999;1.566,69;1.566,69;OMESSO NOMINATIVO NEL RISPETTO DELLA NORMATIVA SULLA PROTEZIONE DATI PERSONALI; ;ANNO 2021 FONDO PER IL SOSTEGNO ALLACCESSO ALLE ABITAZIONI IN LOCAZIONE L.431/1998;19/07/2022;4157;51;440;1;Spese correnti;4;Trasferimenti correnti;2;Trasferimenti correnti a Famiglie;2;Interventi assistenziali;999;Altri assegni e sussidi assistenziali;21/07/2022
2740;1;9999999;98,81;98,81;OMESSO NOMINATIVO NEL RISPETTO DELLA NORMATIVA SULLA PROTEZIONE DATI PERSONALI; ;ANNO 2021 FONDO PER IL SOSTEGNO ALLACCESSO ALLE ABITAZIONI IN LOCAZIONE L.431/1998;19/07/2022;4157;51;440;1;Spese correnti;4;Trasferimenti correnti;2;Trasferimenti correnti a Famiglie;2;Interventi assistenziali;999;Altri assegni e sussidi assistenziali;21/07/2022
2741;1;9999999;707,45;707,45;OMESSO NOMINATIVO NEL RISPETTO DELLA NORMATIVA SULLA PROTEZIONE DATI PERSONALI; ;ANNO 2021 FONDO PER IL SOSTEGNO ALLACCESSO ALLE ABITAZIONI IN LOCAZIONE L.431/1998;19/07/2022;4157;51;520;1;Spese correnti;4;Trasferimenti correnti;2;Trasferimenti correnti a Famiglie;2;Interventi assistenziali;999;Altri assegni e sussidi assistenziali;21/07/2022
2742;1;9999999;1.240,94;1.240,94;OMESSO NOMINATIVO NEL RISPETTO DELLA NORMATIVA SULLA PROTEZIONE DATI PERSONALI; ;ANNO 2021 FONDO PER IL SOSTEGNO ALLACCESSO ALLE ABITAZIONI IN LOCAZIONE L.431/1998;19/07/2022;4157;51;520;1;Spese correnti;4;Trasferimenti correnti;2;Trasferimenti correnti a Famiglie;2;Interventi assistenziali;999;Altri assegni e sussidi assistenziali;21/07/2022
2743;1;9999999;613,16;613,16;OMESSO NOMINATIVO NEL RISPETTO DELLA NORMATIVA SULLA PROTEZIONE DATI PERSONALI; ;ANNO 2021 FONDO PER IL SOSTEGNO ALLACCESSO ALLE ABITAZIONI IN LOCAZIONE L.431/1998;19/07/2022;4157;51;520;1;Spese correnti;4;Trasferimenti correnti;2;Trasferimenti correnti a Famiglie;2;Interventi assistenziali;999;Altri assegni e sussidi assistenziali;21/07/2022
2744;1;9999999;974,66;974,66;OMESSO NOMINATIVO NEL RISPETTO DELLA NORMATIVA SULLA PROTEZIONE DATI PERSONALI; ;ANNO 2021 FONDO PER IL SOSTEGNO ALLACCESSO ALLE ABITAZIONI IN LOCAZIONE L.431/1998;19/07/2022;4157;51;520;1;Spese correnti;4;Trasferimenti correnti;2;Trasferimenti correnti a Famiglie;2;Interventi assistenziali;999;Altri assegni e sussidi assistenziali;12/08/2022
2745;1;9999999;1.217,15;1.217,15;OMESSO NOMINATIVO NEL RISPETTO DELLA NORMATIVA SULLA PROTEZIONE DATI PERSONALI; ;ANNO 2021 FONDO PER IL SOSTEGNO ALLACCESSO ALLE ABITAZIONI IN LOCAZIONE L.431/1998;19/07/2022;4157;51;520;1;Spese correnti;4;Trasferimenti correnti;2;Trasferimenti correnti a Famiglie;2;Interventi assistenziali;999;Altri assegni e sussidi assistenziali;21/07/2022
2746;1;9999999;1.451,65;1.451,65;OMESSO NOMINATIVO NEL RISPETTO DELLA NORMATIVA SULLA PROTEZIONE DATI PERSONALI; ;ANNO 2021 FONDO PER IL SOSTEGNO ALLACCESSO ALLE ABITAZIONI IN LOCAZIONE L.431/1998;19/07/2022;4157;51;520;1;Spese correnti;4;Trasferimenti correnti;2;Trasferimenti correnti a Famiglie;2;Interventi assistenziali;999;Altri assegni e sussidi assistenziali;21/07/2022
2747;1;9999999;1.303,08;1.303,08;OMESSO NOMINATIVO NEL RISPETTO DELLA NORMATIVA SULLA PROTEZIONE DATI PERSONALI; ;ANNO 2021 FONDO PER IL SOSTEGNO ALLACCESSO ALLE ABITAZIONI IN LOCAZIONE L.431/1998;19/07/2022;4157;51;520;1;Spese correnti;4;Trasferimenti correnti;2;Trasferimenti correnti a Famiglie;2;Interventi assistenziali;999;Altri assegni e sussidi assistenziali;21/07/2022
2749;1;9999999;977,23;977,23;OMESSO NOMINATIVO NEL RISPETTO DELLA NORMATIVA SULLA PROTEZIONE DATI PERSONALI; ;ANNO 2021 FONDO PER IL SOSTEGNO ALLACCESSO ALLE ABITAZIONI IN LOCAZIONE L.431/1998;19/07/2022;4157;51;520;1;Spese correnti;4;Trasferimenti correnti;2;Trasferimenti correnti a Famiglie;2;Interventi assistenziali;999;Altri assegni e sussidi assistenziali;21/07/2022
2750;1;9999999;1.283,62;1.283,62;OMESSO NOMINATIVO NEL RISPETTO DELLA NORMATIVA SULLA PROTEZIONE DATI PERSONALI; ;ANNO 2021 FONDO PER IL SOSTEGNO ALLACCESSO ALLE ABITAZIONI IN LOCAZIONE L.431/1998;19/07/2022;4157;51;520;1;Spese correnti;4;Trasferimenti correnti;2;Trasferimenti correnti a Famiglie;2;Interventi assistenziali;999;Altri assegni e sussidi assistenziali;21/07/2022
2751;1;9999999;810,4;810,4;OMESSO NOMINATIVO NEL RISPETTO DELLA NORMATIVA SULLA PROTEZIONE DATI PERSONALI; ;ANNO 2021 FONDO PER IL SOSTEGNO ALLACCESSO ALLE ABITAZIONI IN LOCAZIONE L.431/1998;19/07/2022;4157;51;520;1;Spese correnti;4;Trasferimenti correnti;2;Trasferimenti correnti a Famiglie;2;Interventi assistenziali;999;Altri assegni e sussidi assistenziali;21/07/2022
2752;1;9999999;587,03;587,03;OMESSO NOMINATIVO NEL RISPETTO DELLA NORMATIVA SULLA PROTEZIONE DATI PERSONALI; ;ANNO 2021 FONDO PER IL SOSTEGNO ALLACCESSO ALLE ABITAZIONI IN LOCAZIONE L.431/1998;19/07/2022;4157;51;520;1;Spese correnti;4;Trasferimenti correnti;2;Trasferimenti correnti a Famiglie;2;Interventi assistenziali;999;Altri assegni e sussidi assistenziali;21/07/2022
2753;1;9999999;784,84;784,84;OMESSO NOMINATIVO NEL RISPETTO DELLA NORMATIVA SULLA PROTEZIONE DATI PERSONALI; ;ANNO 2021 FONDO PER IL SOSTEGNO ALLACCESSO ALLE ABITAZIONI IN LOCAZIONE L.431/1998;19/07/2022;4157;51;520;1;Spese correnti;4;Trasferimenti correnti;2;Trasferimenti correnti a Famiglie;2;Interventi assistenziali;999;Altri assegni e sussidi assistenziali;21/07/2022
2754;1;9999999;1.574,92;1.574,92;OMESSO NOMINATIVO NEL RISPETTO DELLA NORMATIVA SULLA PROTEZIONE DATI PERSONALI; ;ANNO 2021 FONDO PER IL SOSTEGNO ALLACCESSO ALLE ABITAZIONI IN LOCAZIONE L.431/1998;19/07/2022;4157;51;520;1;Spese correnti;4;Trasferimenti correnti;2;Trasferimenti correnti a Famiglie;2;Interventi assistenziali;999;Altri assegni e sussidi assistenziali;21/07/2022
2755;1;9999999;1.225,93;1.225,93;OMESSO NOMINATIVO NEL RISPETTO DELLA NORMATIVA SULLA PROTEZIONE DATI PERSONALI; ;ANNO 2021 FONDO PER IL SOSTEGNO ALLACCESSO ALLE ABITAZIONI IN LOCAZIONE L.431/1998;19/07/2022;4157;51;520;1;Spese correnti;4;Trasferimenti correnti;2;Trasferimenti correnti a Famiglie;2;Interventi assistenziali;999;Altri assegni e sussidi assistenziali;21/07/2022
2756;1;9999999;1.299,25;1.299,25;OMESSO NOMINATIVO NEL RISPETTO DELLA NORMATIVA SULLA PROTEZIONE DATI PERSONALI; ;ANNO 2021 FONDO PER IL SOSTEGNO ALLACCESSO ALLE ABITAZIONI IN LOCAZIONE L.431/1998;19/07/2022;4157;51;520;1;Spese correnti;4;Trasferimenti correnti;2;Trasferimenti correnti a Famiglie;2;Interventi assistenziali;999;Altri assegni e sussidi assistenziali;21/07/2022
2757;1;9999999;1.104,74;1.104,74;OMESSO NOMINATIVO NEL RISPETTO DELLA NORMATIVA SULLA PROTEZIONE DATI PERSONALI; ;ANNO 2021 FONDO PER IL SOSTEGNO ALLACCESSO ALLE ABITAZIONI IN LOCAZIONE L.431/1998;19/07/2022;4157;51;520;1;Spese correnti;4;Trasferimenti correnti;2;Trasferimenti correnti a Famiglie;2;Interventi assistenziali;999;Altri assegni e sussidi assistenziali;21/07/2022
2758;1;9999999;904,02;904,02;OMESSO NOMINATIVO NEL RISPETTO DELLA NORMATIVA SULLA PROTEZIONE DATI PERSONALI; ;ANNO 2021 FONDO PER IL SOSTEGNO ALLACCESSO ALLE ABITAZIONI IN LOCAZIONE L.431/1998;19/07/2022;4157;51;520;1;Spese correnti;4;Trasferimenti correnti;2;Trasferimenti correnti a Famiglie;2;Interventi assistenziali;999;Altri assegni e sussidi assistenziali;21/07/2022
2759;1;9999999;1.455,97;1.455,97;OMESSO NOMINATIVO NEL RISPETTO DELLA NORMATIVA SULLA PROTEZIONE DATI PERSONALI; ;ANNO 2021 FONDO PER IL SOSTEGNO ALLACCESSO ALLE ABITAZIONI IN LOCAZIONE L.431/1998;19/07/2022;4157;51;520;1;Spese correnti;4;Trasferimenti correnti;2;Trasferimenti correnti a Famiglie;2;Interventi assistenziali;999;Altri assegni e sussidi assistenziali;21/07/2022
2760;1;9999999;427,02;427,02;OMESSO NOMINATIVO NEL RISPETTO DELLA NORMATIVA SULLA PROTEZIONE DATI PERSONALI; ;ANNO 2021 FONDO PER IL SOSTEGNO ALLACCESSO ALLE ABITAZIONI IN LOCAZIONE L.431/1998;19/07/2022;4157;51;520;1;Spese correnti;4;Trasferimenti correnti;2;Trasferimenti correnti a Famiglie;2;Interventi assistenziali;999;Altri assegni e sussidi assistenziali;21/07/2022
2761;1;9999999;1.325,57;1.325,57;OMESSO NOMINATIVO NEL RISPETTO DELLA NORMATIVA SULLA PROTEZIONE DATI PERSONALI; ;ANNO 2021 FONDO PER IL SOSTEGNO ALLACCESSO ALLE ABITAZIONI IN LOCAZIONE L.431/1998;19/07/2022;4157;51;520;1;Spese correnti;4;Trasferimenti correnti;2;Trasferimenti correnti a Famiglie;2;Interventi assistenziali;999;Altri assegni e sussidi assistenziali;21/07/2022
2762;1;9999999;1.182,75;1.182,75;OMESSO NOMINATIVO NEL RISPETTO DELLA NORMATIVA SULLA PROTEZIONE DATI PERSONALI; ;ANNO 2021 FONDO PER IL SOSTEGNO ALLACCESSO ALLE ABITAZIONI IN LOCAZIONE L.431/1998;19/07/2022;4157;51;520;1;Spese correnti;4;Trasferimenti correnti;2;Trasferimenti correnti a Famiglie;2;Interventi assistenziali;999;Altri assegni e sussidi assistenziali;21/07/2022
2763;1;9999999;689,07;689,07;OMESSO NOMINATIVO NEL RISPETTO DELLA NORMATIVA SULLA PROTEZIONE DATI PERSONALI; ;ANNO 2021 FONDO PER IL SOSTEGNO ALLACCESSO ALLE ABITAZIONI IN LOCAZIONE L.431/1998;19/07/2022;4157;51;520;1;Spese correnti;4;Trasferimenti correnti;2;Trasferimenti correnti a Famiglie;2;Interventi assistenziali;999;Altri assegni e sussidi assistenziali;21/07/2022
2764;1;9999999;1.123,47;1.123,47;OMESSO NOMINATIVO NEL RISPETTO DELLA NORMATIVA SULLA PROTEZIONE DATI PERSONALI; ;ANNO 2021 FONDO PER IL SOSTEGNO ALLACCESSO ALLE ABITAZIONI IN LOCAZIONE L.431/1998;19/07/2022;4157;51;520;1;Spese correnti;4;Trasferimenti correnti;2;Trasferimenti correnti a Famiglie;2;Interventi assistenziali;999;Altri assegni e sussidi assistenziali;21/07/2022
2765;1;9999999;936,06;936,06;OMESSO NOMINATIVO NEL RISPETTO DELLA NORMATIVA SULLA PROTEZIONE DATI PERSONALI; ;ANNO 2021 FONDO PER IL SOSTEGNO ALLACCESSO ALLE ABITAZIONI IN LOCAZIONE L.431/1998;19/07/2022;4157;51;520;1;Spese correnti;4;Trasferimenti correnti;2;Trasferimenti correnti a Famiglie;2;Interventi assistenziali;999;Altri assegni e sussidi assistenziali;21/07/2022
2766;1;9999999;580,09;580,09;OMESSO NOMINATIVO NEL RISPETTO DELLA NORMATIVA SULLA PROTEZIONE DATI PERSONALI; ;ANNO 2021 FONDO PER IL SOSTEGNO ALLACCESSO ALLE ABITAZIONI IN LOCAZIONE L.431/1998;19/07/2022;4157;51;520;1;Spese correnti;4;Trasferimenti correnti;2;Trasferimenti correnti a Famiglie;2;Interventi assistenziali;999;Altri assegni e sussidi assistenziali;21/07/2022
2767;1;9999999;1.583,62;1.583,62;OMESSO NOMINATIVO NEL RISPETTO DELLA NORMATIVA SULLA PROTEZIONE DATI PERSONALI; ;ANNO 2021 FONDO PER IL SOSTEGNO ALLACCESSO ALLE ABITAZIONI IN LOCAZIONE L.431/1998;19/07/2022;4157;51;520;1;Spese correnti;4;Trasferimenti correnti;2;Trasferimenti correnti a Famiglie;2;Interventi assistenziali;999;Altri assegni e sussidi assistenziali;21/07/2022
2768;1;9999999;849,23;849,23;OMESSO NOMINATIVO NEL RISPETTO DELLA NORMATIVA SULLA PROTEZIONE DATI PERSONALI; ;ANNO 2021 FONDO PER IL SOSTEGNO ALLACCESSO ALLE ABITAZIONI IN LOCAZIONE L.431/1998;19/07/2022;4157;51;520;1;Spese correnti;4;Trasferimenti correnti;2;Trasferimenti correnti a Famiglie;2;Interventi assistenziali;999;Altri assegni e sussidi assistenziali;01/09/2022
2769;1;9999999;871,47;871,47;OMESSO NOMINATIVO NEL RISPETTO DELLA NORMATIVA SULLA PROTEZIONE DATI PERSONALI; ;ANNO 2021 FONDO PER IL SOSTEGNO ALLACCESSO ALLE ABITAZIONI IN LOCAZIONE L.431/1998;19/07/2022;4157;51;520;1;Spese correnti;4;Trasferimenti correnti;2;Trasferimenti correnti a Famiglie;2;Interventi assistenziali;999;Altri assegni e sussidi assistenziali;21/07/2022
2770;1;9999999;388,37;388,37;OMESSO NOMINATIVO NEL RISPETTO DELLA NORMATIVA SULLA PROTEZIONE DATI PERSONALI; ;ANNO 2021 FONDO PER IL SOSTEGNO ALLACCESSO ALLE ABITAZIONI IN LOCAZIONE L.431/1998;19/07/2022;4157;51;935;1;Spese correnti;4;Trasferimenti correnti;2;Trasferimenti correnti a Famiglie;2;Interventi assistenziali;999;Altri assegni e sussidi assistenziali;21/07/2022
2771;1;9999999;1.283,62;1.283,62;OMESSO NOMINATIVO NEL RISPETTO DELLA NORMATIVA SULLA PROTEZIONE DATI PERSONALI; ;ANNO 2021 FONDO PER IL SOSTEGNO ALLACCESSO ALLE ABITAZIONI IN LOCAZIONE L.431/1998;19/07/2022;4157;51;935;1;Spese correnti;4;Trasferimenti correnti;2;Trasferimenti correnti a Famiglie;2;Interventi assistenziali;999;Altri assegni e sussidi assistenziali;21/07/2022
2772;1;9999999;1.084,12;1.084,12;OMESSO NOMINATIVO NEL RISPETTO DELLA NORMATIVA SULLA PROTEZIONE DATI PERSONALI; ;ANNO 2021 FONDO PER IL SOSTEGNO ALLACCESSO ALLE ABITAZIONI IN LOCAZIONE L.431/1998;19/07/2022;4157;51;935;1;Spese correnti;4;Trasferimenti correnti;2;Trasferimenti correnti a Famiglie;2;Interventi assistenziali;999;Altri assegni e sussidi assistenziali;21/07/2022
2773;1;9999999;630,67;630,67;OMESSO NOMINATIVO NEL RISPETTO DELLA NORMATIVA SULLA PROTEZIONE DATI PERSONALI; ;ANNO 2021 FONDO PER IL SOSTEGNO ALLACCESSO ALLE ABITAZIONI IN LOCAZIONE L.431/1998;19/07/2022;4157;51;935;1;Spese correnti;4;Trasferimenti correnti;2;Trasferimenti correnti a Famiglie;2;Interventi assistenziali;999;Altri assegni e sussidi assistenziali;21/07/2022
2774;1;9999999;987,28;987,28;OMESSO NOMINATIVO NEL RISPETTO DELLA NORMATIVA SULLA PROTEZIONE DATI PERSONALI; ;ANNO 2021 FONDO PER IL SOSTEGNO ALLACCESSO ALLE ABITAZIONI IN LOCAZIONE L.431/1998;19/07/2022;4157;51;935;1;Spese correnti;4;Trasferimenti correnti;2;Trasferimenti correnti a Famiglie;2;Interventi assistenziali;999;Altri assegni e sussidi assistenziali;21/07/2022
2775;1;9999999;1.032,63;1.032,63;OMESSO NOMINATIVO NEL RISPETTO DELLA NORMATIVA SULLA PROTEZIONE DATI PERSONALI; ;ANNO 2021 FONDO PER IL SOSTEGNO ALLACCESSO ALLE ABITAZIONI IN LOCAZIONE L.431/1998;19/07/2022;4157;51;935;1;Spese correnti;4;Trasferimenti correnti;2;Trasferimenti correnti a Famiglie;2;Interventi assistenziali;999;Altri assegni e sussidi assistenziali;21/07/2022
2776;1;9999999;378,54;378,54;OMESSO NOMINATIVO NEL RISPETTO DELLA NORMATIVA SULLA PROTEZIONE DATI PERSONALI; ;ANNO 2021 FONDO PER IL SOSTEGNO ALLACCESSO ALLE ABITAZIONI IN LOCAZIONE L.431/1998;19/07/2022;4157;51;935;1;Spese correnti;4;Trasferimenti correnti;2;Trasferimenti correnti a Famiglie;2;Interventi assistenziali;999;Altri assegni e sussidi assistenziali;21/07/2022
2777;1;9999999;1.151,99;1.151,99;OMESSO NOMINATIVO NEL RISPETTO DELLA NORMATIVA SULLA PROTEZIONE DATI PERSONALI; ;ANNO 2021 FONDO PER IL SOSTEGNO ALLACCESSO ALLE ABITAZIONI IN LOCAZIONE L.431/1998;19/07/2022;4157;51;935;1;Spese correnti;4;Trasferimenti correnti;2;Trasferimenti correnti a Famiglie;2;Interventi assistenziali;999;Altri assegni e sussidi assistenziali;21/07/2022
2778;1;9999999;1.207,74;1.207,74;OMESSO NOMINATIVO NEL RISPETTO DELLA NORMATIVA SULLA PROTEZIONE DATI PERSONALI; ;ANNO 2021 FONDO PER IL SOSTEGNO ALLACCESSO ALLE ABITAZIONI IN LOCAZIONE L.431/1998;19/07/2022;4157;51;935;1;Spese correnti;4;Trasferimenti correnti;2;Trasferimenti correnti a Famiglie;2;Interventi assistenziali;999;Altri assegni e sussidi assistenziali;21/07/2022
2779;1;0;150;150;OMESSO NOMINATIVO NEL RISPETTO DELLA NORMATIVA SULLA PROTEZIONE DATI PERSONALI; ;LUGLIO 2022 MINIMO VITALE;19/07/2022;4157;0;504;1;Spese correnti;4;Trasferimenti correnti;2;Trasferimenti correnti a Famiglie;2;Interventi assistenziali;999;Altri assegni e sussidi assistenziali;19/07/2022
2780;1;9999999;150;150;OMESSO NOMINATIVO NEL RISPETTO DELLA NORMATIVA SULLA PROTEZIONE DATI PERSONALI; ;LUGLIO 2022 MINIMO VITALE;19/07/2022;4157;0;359;1;Spese correnti;4;Trasferimenti correnti;2;Trasferimenti correnti a Famiglie;2;Interventi assistenziali;999;Altri assegni e sussidi assistenziali;22/07/2022
2781;1;9999999;100;100;OMESSO NOMINATIVO NEL RISPETTO DELLA NORMATIVA SULLA PROTEZIONE DATI PERSONALI; ;LUGLIO 2022 MINIMO VITALE;19/07/2022;4157;0;613;1;Spese correnti;4;Trasferimenti correnti;2;Trasferimenti correnti a Famiglie;2;Interventi assistenziali;999;Altri assegni e sussidi assistenziali;28/07/2022
2782;1;9999999;200;200;OMESSO NOMINATIVO NEL RISPETTO DELLA NORMATIVA SULLA PROTEZIONE DATI PERSONALI; ;LUGLIO 2022 MINIMO VITALE;19/07/2022;4157;0;507;1;Spese correnti;4;Trasferimenti correnti;2;Trasferimenti correnti a Famiglie;2;Interventi assistenziali;999;Altri assegni e sussidi assistenziali;21/07/2022
2783;1;9999999;100;100;OMESSO NOMINATIVO NEL RISPETTO DELLA NORMATIVA SULLA PROTEZIONE DATI PERSONALI; ;LUGLIO 2022 MINIMO VITALE;19/07/2022;4157;0;505;1;Spese correnti;4;Trasferimenti correnti;2;Trasferimenti correnti a Famiglie;2;Interventi assistenziali;999;Altri assegni e sussidi assistenziali;29/07/2022
2784;1;9999999;100;100;OMESSO NOMINATIVO NEL RISPETTO DELLA NORMATIVA SULLA PROTEZIONE DATI PERSONALI; ;LUGLIO 2022 MINIMO VITALE;19/07/2022;4157;0;399;1;Spese correnti;4;Trasferimenti correnti;2;Trasferimenti correnti a Famiglie;2;Interventi assistenziali;999;Altri assegni e sussidi assistenziali;22/07/2022
2785;1;9999999;130;130;OMESSO NOMINATIVO NEL RISPETTO DELLA NORMATIVA SULLA PROTEZIONE DATI PERSONALI; ;LUGLIO 2022 MINIMO VITALE;19/07/2022;4157;0;396;1;Spese correnti;4;Trasferimenti correnti;2;Trasferimenti correnti a Famiglie;2;Interventi assistenziali;999;Altri assegni e sussidi assistenziali;03/08/2022
2786;1;9999999;150;150;OMESSO NOMINATIVO NEL RISPETTO DELLA NORMATIVA SULLA PROTEZIONE DATI PERSONALI; ;LUGLIO 2022 MINIMO VITALE;19/07/2022;4157;0;545;1;Spese correnti;4;Trasferimenti correnti;2;Trasferimenti correnti a Famiglie;2;Interventi assistenziali;999;Altri assegni e sussidi assistenziali;21/07/2022
2787;1;9999999;100;100;OMESSO NOMINATIVO NEL RISPETTO DELLA NORMATIVA SULLA PROTEZIONE DATI PERSONALI; ;LUGLIO 2022 MINIMO VITALE;19/07/2022;4157;0;544;1;Spese correnti;4;Trasferimenti correnti;2;Trasferimenti correnti a Famiglie;2;Interventi assistenziali;999;Altri assegni e sussidi assistenziali;02/08/2022
2788;1;9999999;700;700;OMESSO NOMINATIVO NEL RISPETTO DELLA NORMATIVA SULLA PROTEZIONE DATI PERSONALI; ;LUGLIO 2022 PROGETTO RILEVANZA SOCIALE;19/07/2022;4157;0;91;1;Spese correnti;4;Trasferimenti correnti;2;Trasferimenti correnti a Famiglie;2;Interventi assistenziali;999;Altri assegni e sussidi assistenziali;21/07/2022
2789;1;9999999;100;100;OMESSO NOMINATIVO NEL RISPETTO DELLA NORMATIVA SULLA PROTEZIONE DATI PERSONALI; ;LUGLIO 2022 MINIMO VITALE;19/07/2022;4157;0;397;1;Spese correnti;4;Trasferimenti correnti;2;Trasferimenti correnti a Famiglie;2;Interventi assistenziali;999;Altri assegni e sussidi assistenziali;02/08/2022
2790;1;9999999;100;100;OMESSO NOMINATIVO NEL RISPETTO DELLA NORMATIVA SULLA PROTEZIONE DATI PERSONALI; ;LUGLIO 2022 MINIMO VITALE;19/07/2022;4157;0;366;1;Spese correnti;4;Trasferimenti correnti;2;Trasferimenti correnti a Famiglie;2;Interventi assistenziali;999;Altri assegni e sussidi assistenziali;21/07/2022
2791;1;9999999;500;500;OMESSO NOMINATIVO NEL RISPETTO DELLA NORMATIVA SULLA PROTEZIONE DATI PERSONALI; ;LUGLIO 2022 MINIMO VITALE;19/07/2022;4157;0;614;1;Spese correnti;4;Trasferimenti correnti;2;Trasferimenti correnti a Famiglie;2;Interventi assistenziali;999;Altri assegni e sussidi assistenziali;03/08/2022
2792;1;9999999;700;700;OMESSO NOMINATIVO NEL RISPETTO DELLA NORMATIVA SULLA PROTEZIONE DATI PERSONALI; ;LUGLIO 2022 MINIMO VITALE;19/07/2022;3957;54;373;1;Spese correnti;4;Trasferimenti correnti;2;Trasferimenti correnti a Famiglie;5;Altri trasferimenti a famiglie;999;Altri trasferimenti a famiglie n.a.c.;22/07/2022
2793;1;9999999;150;150;OMESSO NOMINATIVO NEL RISPETTO DELLA NORMATIVA SULLA PROTEZIONE DATI PERSONALI; ;LUGLIO 2022 MINIMO VITALE;19/07/2022;4157;0;615;1;Spese correnti;4;Trasferimenti correnti;2;Trasferimenti correnti a Famiglie;2;Interventi assistenziali;999;Altri assegni e sussidi assistenziali;01/08/2022
2794;1;9999999;500;500;OMESSO NOMINATIVO NEL RISPETTO DELLA NORMATIVA SULLA PROTEZIONE DATI PERSONALI; ;LUGLIO 2022 MINIMO VITALE;19/07/2022;4157;0;616;1;Spese correnti;4;Trasferimenti correnti;2;Trasferimenti correnti a Famiglie;2;Interventi assistenziali;999;Altri assegni e sussidi assistenziali;22/07/2022
2795;1;9999999;5.016,27;5.016,27;MANO AMICA - GRUPPO SALESE DI IMPEGNO SOCIALE O.D.V.; ;PRESCUOLA A.S. 2021/22 CONTRIBUTO GESTIONE PROGETTO;19/07/2022;1257;0;623;1;Spese correnti;4;Trasferimenti correnti;4;Trasferimenti correnti a Istituzioni Sociali Private;1;Trasferimenti correnti a Istituzioni Sociali Private;1;Trasferimenti correnti a Istituzioni Sociali Private;21/07/2022
2796;1;9999999;500;500;A.S.D. UN SALTO NEL GIOCO; ;riproposizione mandato non andato a buon fine -ASSEGNAZIONE DI UN CONTRIBUTO ECONOMICO AD ASSOCIAZIONI SPORTIVE DEL TERRITORIO PER LE ATTVITA DI PROMOZIONE DELLO SPORT SVOLTE IN COLLABORAZIONE CON LAMMINISTRAZIONE COMUNALE NEL CORSO DEL 2022.;20/07/2022;1959;0;529;1;Spese correnti;4;Trasferimenti correnti;4;Trasferimenti correnti a Istituzioni Sociali Private;1;Trasferimenti correnti a Istituzioni Sociali Private;1;Trasferimenti correnti a Istituzioni Sociali Private;22/07/2022
2797;1;9999999;1.453,60;1.453,60;OMESSO NOMINATIVO NEL RISPETTO DELLA NORMATIVA SULLA PROTEZIONE DATI PERSONALI; ;MARZO GIUGNO  2022- PROGETTO ASSISTENZIALE MINORE;20/07/2022;3957;54;373;1;Spese correnti;4;Trasferimenti correnti;2;Trasferimenti correnti a Famiglie;5;Altri trasferimenti a famiglie;999;Altri trasferimenti a famiglie n.a.c.;22/07/2022
2798;1;9999999;150;150;OMESSO NOMINATIVO NEL RISPETTO DELLA NORMATIVA SULLA PROTEZIONE DATI PERSONALI; ;LUGLIO 2022 AFFIDO FAMILIARE;20/07/2022;3757;50;619;1;Spese correnti;4;Trasferimenti correnti;2;Trasferimenti correnti a Famiglie;2;Interventi assistenziali;999;Altri assegni e sussidi assistenziali;22/07/2022
2800;1;9999999;56;56;POSTE ITALIANE SPA;Z113662838;SALDO Fatt.n. 1022186875  del 11/07/2022 FORNITURA 10 RULLI PER RACCOMANDATA - 4 CONF. CARTOLINA AVVISO DI RICEVIMENTO;21/07/2022;121;6;484;1;Spese correnti;3;Acquisto di beni e servizi;1;Acquisto di beni;2;Altri beni di consumo;14;Stampati specialistici;26/07/2022
2801;1;9999999;140,3;140,3;VEDETTA 2 MONDIALPOL SPA;ZD032B120B;SALDO Fatt.n. V9-1786  del 08/07/2022 GIUGNO 2022 SERVIZIO DI VIGILANZA MAGAZZINO -PROTEZIONE CIVILE V.LE FERRARIS - VILLA FARSETTI;21/07/2022;548;0;688;1;Spese correnti;3;Acquisto di beni e servizi;2;Acquisto di servizi;9;Manutenzione ordinaria e riparazioni;8;Manutenzione ordinaria e riparazioni di beni immobili;26/07/2022
2802;1;9999999;662,22;662,22;OSANET SRL;ZA72F0AA9C;SALDO Fatt.n. FATTPA 3422  del 11/07/2022 ABBONAMENTO SW. OSACED PERIODO DAL 08-03-2022 AL 08-03-2023;21/07/2022;748;0;945;1;Spese correnti;3;Acquisto di beni e servizi;2;Acquisto di servizi;19;Servizi informatici e di telecomunicazioni;1;Gestione e manutenzione applicazioni;26/07/2022
2803;1;9999999;1.573,80;1.573,80;FORNITECNICA S.R.L.;ZA934CBAAD;SALDO Fatt.n. 000283PA22  del 01/07/2022 COSTO COPIA PERIODO LUGLIO - SETTEMBRE 2022;21/07/2022;748;0;62;1;Spese correnti;3;Acquisto di beni e servizi;2;Acquisto di servizi;19;Servizi informatici e di telecomunicazioni;9;Servizi per le postazioni di lavoro e relativa manutenzione;26/07/2022
2804;1;9999999;2.000,00;2.000,00;REGGIANI CONSULTING SRL;Z083677327;SALDO Fatt.n. 20220263  del 30/06/2022 SERVIZIO DI FORMAZIONE CONTINUA AL PERSOALE COLLABORATORE;21/07/2022;833;0;513;1;Spese correnti;3;Acquisto di beni e servizi;2;Acquisto di servizi;4;Acquisto di servizi per formazione e addestramento del personale dell'ente;4;Acquisto di servizi per formazione obbligatoria;26/07/2022
2805;1;9999999;1.342,00;1.342,00;SQUILLANTE FELICE-ABBIGL.ED ACCESSORI;ZD036E65B4;SALDO Fatt.n. 22098/00  del 08/07/2022 FORNITURA VESTIARIO ESTIVO PER LA POLIZIA LOCALE 2022;21/07/2022;1121;6;595;1;Spese correnti;3;Acquisto di beni e servizi;1;Acquisto di beni;2;Altri beni di consumo;4;Vestiario;26/07/2022
2806;1;9999999;1.654,61;1.654,61;FASTWEB SPA;5133642F61;SALDO Fatt.n. PAE0026630  del 30/06/2022 CANONE CONNETIVITA SCUOLE PERIODO DAL 1 MAGGIO AL 30 GIUGNO 2022;21/07/2022;1334;0;598;1;Spese correnti;3;Acquisto di beni e servizi;2;Acquisto di servizi;5;Utenze e canoni;1;Telefonia fissa;26/07/2022
2807;1;9999999;225,3;1.283,53;SONEPAR ITALIA  SPA;Z6B350148B;SALDO Fatt.n. 0031183340  del 30/06/2022 MATERIALE ELETTRICO PER MANUTENZIONI;21/07/2022;1338;0;123;1;Spese correnti;3;Acquisto di beni e servizi;2;Acquisto di servizi;9;Manutenzione ordinaria e riparazioni;4;Manutenzione ordinaria e riparazioni di impianti e macchinari;26/07/2022
2807;2;9999999;1.058,23;1.283,53;SONEPAR ITALIA  SPA;Z6B350148B;SALDO Fatt.n. 0031183341  del 30/06/2022 MATERIALE ELETTRICO PER MANUTENZIONI;21/07/2022;1338;0;123;1;Spese correnti;3;Acquisto di beni e servizi;2;Acquisto di servizi;9;Manutenzione ordinaria e riparazioni;4;Manutenzione ordinaria e riparazioni di impianti e macchinari;26/07/2022
2808;1;9999999;1.115,28;1.115,28;C.R.C.I. SRL;ZF236AEBC7;SALDO Fatt.n. V0000643  del 30/06/2022 INTERVENTO DI MANUTENZIONE DELLA TERNA JCB 3CX;21/07/2022;3538;0;540;1;Spese correnti;3;Acquisto di beni e servizi;2;Acquisto di servizi;9;Manutenzione ordinaria e riparazioni;1;Manutenzione ordinaria e riparazioni di mezzi di trasporto ad uso civile, di sicurezza e ordine pubblico;26/07/2022
2809;1;9999999;2.441,83;2.441,83;P. & G. AUTOSERVICE SNC;Z2D36F7385;SALDO Fatt.n. 2PA  del 08/07/2022 INTERVENTI VOLTI ALLA MANUTENZIONE DEL PARCO MEZZI COMUNALI;21/07/2022;3538;0;602;1;Spese correnti;3;Acquisto di beni e servizi;2;Acquisto di servizi;9;Manutenzione ordinaria e riparazioni;1;Manutenzione ordinaria e riparazioni di mezzi di trasporto ad uso civile, di sicurezza e ordine pubblico;26/07/2022
2810;1;9999999;800,54;800,54;CARPENTERIA  SERRAMENTI FAVARETTO DI FAVARETTO MATTEO;8796437971;SALDO Fatt.n. 58  del 11/07/2022 NTERVENTI DI SOSTITUZIONE INFISSI SCUOLE COMUNALI AI FINI DELLEFFICENTAMENTO ENERGETICO - APPROVAZIONE CERTIFICATO DI REGOLARE ESECUZIONE E SVINCOLO POLIZZA FIDEJUSSORIA;21/07/2022;7630;1;612;2;Spese in conto capitale;2;Investimenti fissi lordi e acquisto di terreni;1;Beni materiali;9;Beni immobili;3;Fabbricati ad uso scolastico;26/07/2022
2812;1;9999999;1.105,44;1.105,44;RANDSTAD ITALIA SPA SOC.UNIPERSONALE; ;SALDO Fatt.n. 22FVRM004237  del 19/07/2022 RIMBORSI PER ESPLETAMENTO CARICHE ELETTIVE PERIODO GENNAIO - GIUGNO 2022;22/07/2022;30;99;47;1;Spese correnti;3;Acquisto di beni e servizi;2;Acquisto di servizi;1;Organi e incarichi istituzionali dell'amministrazione;2;Organi istituzionali dell'amministrazione - Rimborsi;26/07/2022
2813;1;9999999;10.248,00;10.248,00;TREVISAN FEDERICO;9124726A18;SALDO Fatt.n. 6/B00  del 04/07/2022 LAVORI DI SFALCIO ERBA BANCHINE STRADALI  - PRIMO SFALCIO;25/07/2022;2549;0;335;1;Spese correnti;3;Acquisto di beni e servizi;2;Acquisto di servizi;99;Altri servizi;9;Acquisto di sevizi per verde e arredo urbano;27/07/2022
2814;1;9999999;75.951,00;75.951,00;V.E.R.I.T.A.S. SPA; ;ACCONTO Fatt.n. 310002628038  del 24/06/2022 SERVIZIO RIFIUTI periodo 01.01.2021-31.12.2021;25/07/2022;4758;0;736;1;Spese correnti;4;Trasferimenti correnti;3;Trasferimenti correnti a Imprese;99;Trasferimenti correnti a altre imprese;999;Trasferimenti correnti a altre imprese;27/07/2022
2815;1;9999999;0,1;0,1;V.E.R.I.T.A.S. SPA; ;SALDO Fatt.n. 310002628038  del 24/06/2022 SERVIZIO RIFIUTI periodo 01.01.2021-31.12.2021;25/07/2022;4758;0;1169;1;Spese correnti;4;Trasferimenti correnti;3;Trasferimenti correnti a Imprese;99;Trasferimenti correnti a altre imprese;999;Trasferimenti correnti a altre imprese;27/07/2022
2816;1;9999999;13.470,22;13.470,22;AEC ILLUMINAZIONE SRL;Z373637668;SALDO Fatt.n. 1000VCI22000125  del 30/06/2022 FORNITURA DI MATERIALE ELETTRICO PER LA MANUTENZIONE DEGLI IMPIANTI ELETTRICI COMUNALI;25/07/2022;8558;0;403;2;Spese in conto capitale;2;Investimenti fissi lordi e acquisto di terreni;1;Beni materiali;9;Beni immobili;12;Infrastrutture stradali;27/07/2022
2817;1;9999999;23.426,56;23.426,56;RENOVA AMBIENTE SRL;ZD7356DAB0;SALDO Fatt.n. 000106  del 30/06/2022 LAVORI DI BONIFICA DI MATERIALI CONTENENTI AMIANTO PRESSO AREA DI PARCHEGGIO PUBBLICO A STIGLIANO - STATO AVANZAMENTO LAVORI N. 1 FINALE;25/07/2022;8563;0;1362;2;Spese in conto capitale;2;Investimenti fissi lordi e acquisto di terreni;1;Beni materiali;9;Beni immobili;12;Infrastrutture stradali;27/07/2022
2818;1;9999999;44.884,47;44.884,47;RENOVA AMBIENTE SRL;Z5E35D2E2A;SALDO Fatt.n. 000107  del 30/06/2022 LAVORI DI BONIFICA DI MATERIALI CONTENENTI AMIANTO PRESSO AREA DI PARCHEGGIO PUBBLICO A STIGLIANO - STATO AVANZAMENTO LAVORI N. 1 FINALE;25/07/2022;8563;0;1362;2;Spese in conto capitale;2;Investimenti fissi lordi e acquisto di terreni;1;Beni materiali;9;Beni immobili;12;Infrastrutture stradali;27/07/2022
2819;1;9999999;569;569;COMUNE DI DOLO; ;RATA APRILE 2022 OSPITALITA UTENTE CON DISAGIO PSICO-SOCIALE PRESSO GRUPPO APPARTAMENTO DEL COMUNE DI DOLO (VE) -;25/07/2022;4051;0;204;1;Spese correnti;4;Trasferimenti correnti;1;Trasferimenti correnti a Amministrazioni Pubbliche;2;Trasferimenti correnti a Amministrazioni Locali;3;Trasferimenti correnti a Comuni;27/07/2022
2820;1;9999999;842;842;OMESSO NOMINATIVO NEL RISPETTO DELLA NORMATIVA SULLA PROTEZIONE DATI PERSONALI; ;RATA LUGLIO 2022 INTEGRAZIONE RETTA CASA DI RIPOSO IPAB L. MARIUTTO DI MIRANO. PERIODO: MARZO / DICEMBRE 2022 (COD. ID. 7052);25/07/2022;3844;0;552;1;Spese correnti;3;Acquisto di beni e servizi;2;Acquisto di servizi;15;Contratti di servizio pubblico;8;Contratti di servizio di assistenza sociale residenziale e semiresidenziale;27/07/2022
2821;1;9999999;320;320;OMESSO NOMINATIVO NEL RISPETTO DELLA NORMATIVA SULLA PROTEZIONE DATI PERSONALI; ;LUGLIO 2022 INTEGRAZIONE RETTA CASA DI RIPOSO ALTHEA DI SPINEA.;25/07/2022;3844;0;549;1;Spese correnti;3;Acquisto di beni e servizi;2;Acquisto di servizi;15;Contratti di servizio pubblico;8;Contratti di servizio di assistenza sociale residenziale e semiresidenziale;27/07/2022
2822;1;9999999;552;552;OMESSO NOMINATIVO NEL RISPETTO DELLA NORMATIVA SULLA PROTEZIONE DATI PERSONALI; ;LUGLIO 2022 INTEGRAZIONE RETTA CASA DI RIPOSO RELAXXI DI NOALE -;25/07/2022;3844;0;446;1;Spese correnti;3;Acquisto di beni e servizi;2;Acquisto di servizi;15;Contratti di servizio pubblico;8;Contratti di servizio di assistenza sociale residenziale e semiresidenziale;27/07/2022
2823;1;9999999;690,5;690,5;OMESSO NOMINATIVO NEL RISPETTO DELLA NORMATIVA SULLA PROTEZIONE DATI PERSONALI; ;LUGLIO 2022 INTEGRAZIONE RETTA CASA DI RIPOSO CENTRO RESIDENZIALE ANZIANI UMBERTO PRIMO DI STRA -;25/07/2022;3844;0;448;1;Spese correnti;3;Acquisto di beni e servizi;2;Acquisto di servizi;15;Contratti di servizio pubblico;8;Contratti di servizio di assistenza sociale residenziale e semiresidenziale;27/07/2022
2824;1;9999999;400;400;OMESSO NOMINATIVO NEL RISPETTO DELLA NORMATIVA SULLA PROTEZIONE DATI PERSONALI; ;LUGLIO 2022  INTEGRAZIONE RETTA CASA DI RIPOSO RESIDENZA RIVIERA DEL BRENTA - CENTRO DI SOGGIORNO ANZIANI DI DOLO;25/07/2022;3844;0;443;1;Spese correnti;3;Acquisto di beni e servizi;2;Acquisto di servizi;15;Contratti di servizio pubblico;8;Contratti di servizio di assistenza sociale residenziale e semiresidenziale;27/07/2022
2825;1;9999999;455;455;OMESSO NOMINATIVO NEL RISPETTO DELLA NORMATIVA SULLA PROTEZIONE DATI PERSONALI; ;LUGLIO 2022 INTEGRAZIONE RETTA CASA DI RIPOSO ANNI SERENI DI SCORZE.;25/07/2022;3844;0;444;1;Spese correnti;3;Acquisto di beni e servizi;2;Acquisto di servizi;15;Contratti di servizio pubblico;8;Contratti di servizio di assistenza sociale residenziale e semiresidenziale;27/07/2022
2826;1;9999999;645;645;OMESSO NOMINATIVO NEL RISPETTO DELLA NORMATIVA SULLA PROTEZIONE DATI PERSONALI; ;LUGLIO 2022 INTEGRAZIONE RETTA CASA DI RIPOSO RELAXXI  DI NOALE -;25/07/2022;3844;0;442;1;Spese correnti;3;Acquisto di beni e servizi;2;Acquisto di servizi;15;Contratti di servizio pubblico;8;Contratti di servizio di assistenza sociale residenziale e semiresidenziale;27/07/2022
2827;1;9999999;1.375,00;1.375,00;OMESSO NOMINATIVO NEL RISPETTO DELLA NORMATIVA SULLA PROTEZIONE DATI PERSONALI; ;LUGLIO 2022 INTEGRAZIONE RETTA CASA DI RIPSOO RELAXXI DI NOALE -;25/07/2022;3844;0;386;1;Spese correnti;3;Acquisto di beni e servizi;2;Acquisto di servizi;15;Contratti di servizio pubblico;8;Contratti di servizio di assistenza sociale residenziale e semiresidenziale;27/07/2022
2828;1;9999999;484;484;OMESSO NOMINATIVO NEL RISPETTO DELLA NORMATIVA SULLA PROTEZIONE DATI PERSONALI; ;LUGLIO 2022 INTEGRAZIONE RETTA CASA DI RIPOSO DON ORIONE DI TREBASELEGHE.;25/07/2022;3844;0;202;1;Spese correnti;3;Acquisto di beni e servizi;2;Acquisto di servizi;15;Contratti di servizio pubblico;8;Contratti di servizio di assistenza sociale residenziale e semiresidenziale;27/07/2022
2829;1;9999999;1.000,00;1.000,00;OMESSO NOMINATIVO NEL RISPETTO DELLA NORMATIVA SULLA PROTEZIONE DATI PERSONALI; ;LUGLIO 2022 INTEGRAZIONE RETTA CASA DI RIPOSO LA SALUTE DI FIESSO DARTICO.;25/07/2022;3844;0;199;1;Spese correnti;3;Acquisto di beni e servizi;2;Acquisto di servizi;15;Contratti di servizio pubblico;8;Contratti di servizio di assistenza sociale residenziale e semiresidenziale;27/07/2022
2830;1;9999999;784,9;784,9;KYOCERA DOCUMENT SOLUTIONS ITALIA SPA;ZB93086395;SALDO Fatt.n. 1010770384  del 21/06/2022 FOTOCOPIATRICI 32 - LOTTO 5 - 60 MESI - CANONE PERIODO DAL 13.03.2022 AL 12.06.2022;25/07/2022;748;0;106;1;Spese correnti;3;Acquisto di beni e servizi;2;Acquisto di servizi;19;Servizi informatici e di telecomunicazioni;7;Servizi di gestione documentale;27/07/2022
2831;1;9999999;270,41;270,41;KYOCERA DOCUMENT SOLUTIONS ITALIA SPA;Z202CF11D4;SALDO Fatt.n. 1010770383  del 21/06/2022 FOTOCOPIATRICI 31 - LOTTO 3 - 60 MESI CANONE DAL 18/03/2022 AL 12/06/2022;25/07/2022;748;0;450;1;Spese correnti;3;Acquisto di beni e servizi;2;Acquisto di servizi;19;Servizi informatici e di telecomunicazioni;9;Servizi per le postazioni di lavoro e relativa manutenzione;27/07/2022
2832;1;9999999;700;700;3M SERVIZI SRLS;ZDB32EC33D;ACCONTO Fatt.n. 37  del 07/07/2022 RIPRISTINO IMPIANTI TECNOLOGICI NEI FABBRICATI COMUNALI - SALDO LAVORI;25/07/2022;7420;0;836;2;Spese in conto capitale;2;Investimenti fissi lordi e acquisto di terreni;1;Beni materiali;9;Beni immobili;2;Fabbricati ad uso commerciale;27/07/2022
2833;1;9999999;5.000,00;5.000,00;3M SERVIZI SRLS;ZDB32EC33D;ACCONTO Fatt.n. 37  del 07/07/2022 RIPRISTINO IMPIANTI TECNOLOGICI NEI FABBRICATI COMUNALI - SALDO LAVORI;25/07/2022;7450;1;835;2;Spese in conto capitale;2;Investimenti fissi lordi e acquisto di terreni;1;Beni materiali;10;Beni immobili di valore culturale, storico ed artistico;999;Beni immobili di valore culturale, storico ed artistico n.a.c.;27/07/2022
2834;1;9999999;10.000,00;10.000,00;3M SERVIZI SRLS;ZDB32EC33D;ACCONTO Fatt.n. 37  del 07/07/2022 RIPRISTINO IMPIANTI TECNOLOGICI NEI FABBRICATI COMUNALI - SALDO LAVORI;25/07/2022;7630;0;834;2;Spese in conto capitale;2;Investimenti fissi lordi e acquisto di terreni;1;Beni materiali;9;Beni immobili;3;Fabbricati ad uso scolastico;27/07/2022
2835;1;9999999;5.000,00;5.000,00;3M SERVIZI SRLS;ZDB32EC33D;ACCONTO Fatt.n. 37  del 07/07/2022 RIPRISTINO IMPIANTI TECNOLOGICI NEI FABBRICATI COMUNALI - SALDO LAVORI;25/07/2022;7681;0;833;2;Spese in conto capitale;2;Investimenti fissi lordi e acquisto di terreni;1;Beni materiali;9;Beni immobili;3;Fabbricati ad uso scolastico;27/07/2022
2836;1;9999999;5.919,44;5.919,44;3M SERVIZI SRLS;ZDB32EC33D;SALDO Fatt.n. 37  del 07/07/2022 RIPRISTINO IMPIANTI TECNOLOGICI NEI FABBRICATI COMUNALI - SALDO LAVORI;25/07/2022;8469;0;832;2;Spese in conto capitale;2;Investimenti fissi lordi e acquisto di terreni;1;Beni materiali;9;Beni immobili;16;Impianti sportivi;27/07/2022
2837;1;9999999;47,04;47,04;COMUNE DI MIRANO; ;RIMBORSO SPESE DI NOTIFICA PROT. 0035602/2022 (pratiche ufficio tributi);25/07/2022;146;0;58;1;Spese correnti;3;Acquisto di beni e servizi;2;Acquisto di servizi;17;Servizi finanziari;999;Spese per servizi finanziari n.a.c.;27/07/2022
2838;1;9999999;26,79;26,79;COMUNE DI S.MARIA DI SALA; ;AGGIO RISCOSSIONE CONTRIBUTO IFEL RENDICONTO AL 26-07-2022;26/07/2022;332;0;0;1;Spese correnti;3;Acquisto di beni e servizi;2;Acquisto di servizi;3;Aggi di riscossione;999;Altri aggi di riscossione n.a.c.;29/07/2022
2839;1;9999999;24,17;24,17;C/C/P 1039683022 -RISCOSSIONE COATTIVA EX ICP DPA; ;SPESE GESTIONE CONTO CORRENTE POSTALE  N. 001039683022 APRILE 2022;26/07/2022;146;0;382;1;Spese correnti;3;Acquisto di beni e servizi;2;Acquisto di servizi;17;Servizi finanziari;999;Spese per servizi finanziari n.a.c.;29/07/2022
2840;1;9999999;150;150;C/C/P 10299303 POLIZIA LOCALE SERVIZIO D; ;SPESE GESTIONE CONTI CORRENTI POSTALI N. 0010299303 ANNO 2022;26/07/2022;146;0;382;1;Spese correnti;3;Acquisto di beni e servizi;2;Acquisto di servizi;17;Servizi finanziari;999;Spese per servizi finanziari n.a.c.;29/07/2022
2841;1;9999999;150;150;DIVERSI CCP LAMPADE VOTIVE C/C/P 19041300; ;SPESE GESTIONE CONTI CORRENTI POSTALI N. 19041300 LAMPADE VOTIVE ANNO 2022;26/07/2022;146;0;382;1;Spese correnti;3;Acquisto di beni e servizi;2;Acquisto di servizi;17;Servizi finanziari;999;Spese per servizi finanziari n.a.c.;29/07/2022
2842;1;9999999;229,24;7.491,56;ABACO S.P.A.;766214493F;SALDO Fatt.n. 2022120003357  del 07/07/2022 AGGIO CUP RENDICONTO DELLA GESTIONE DAL 01/06/2022 A 30/06/2022 CIG.766214493F;27/07/2022;332;0;1228;1;Spese correnti;3;Acquisto di beni e servizi;2;Acquisto di servizi;3;Aggi di riscossione;999;Altri aggi di riscossione n.a.c.;29/07/2022
2842;2;9999999;7.262,32;7.491,56;ABACO S.P.A.;766214493F;SALDO Fatt.n. 2022120003358  del 07/07/2022 AGGIO RISCOSSIONE OCCUPAZIONE SUOLO PUBBLICO RENDICONTO DELLA GESTIONE AL 30/06/2022 CIG.766214493F;27/07/2022;332;0;1228;1;Spese correnti;3;Acquisto di beni e servizi;2;Acquisto di servizi;3;Aggi di riscossione;999;Altri aggi di riscossione n.a.c.;29/07/2022
2843;1;9999999;43,63;104,09;ABACO S.P.A.;5325258DE8;SALDO Fatt.n. 2022140002524  del 07/07/2022 RISCOSSIONE COATTIVA IMU TASI LOTTO 6 RENDICONTO DELLA GESTIONE DAL 01/06/2022 A 30/06/2022 CIG.5325258DE8;27/07/2022;332;0;27;1;Spese correnti;3;Acquisto di beni e servizi;2;Acquisto di servizi;3;Aggi di riscossione;999;Altri aggi di riscossione n.a.c.;29/07/2022
2843;2;9999999;60,46;104,09;ABACO S.P.A.;5325258DE8;SALDO Fatt.n. 2022140002523  del 07/07/2022 AGGIO RISCOSSIONE ICI IMU LOTTO 2 RENDICONTO DELLA GESTIONE AL 30/06/2022 CIG.5325258DE8;27/07/2022;332;0;27;1;Spese correnti;3;Acquisto di beni e servizi;2;Acquisto di servizi;3;Aggi di riscossione;999;Altri aggi di riscossione n.a.c.;29/07/2022
2844;1;9999999;247,17;247,17;ABACO S.P.A.;766214493F;SALDO Fatt.n. 2022140002525  del 07/07/2022 AGGIO RISCOSSIONE COATTIVA ICI IMU TASI LOTTO 10- 11-12-13-14-15-16-171 RENDICONTO DELLA GESTIONE DAL 01/06/2022 A 30/06/2022 CIG.766214493F;27/07/2022;332;0;28;1;Spese correnti;3;Acquisto di beni e servizi;2;Acquisto di servizi;3;Aggi di riscossione;999;Altri aggi di riscossione n.a.c.;29/07/2022
2845;1;9999999;132,24;132,24;ABACO S.P.A.;Z4B0FF1CA6;SALDO Fatt.n. 2022140002522  del 07/07/2022 AGGIO INCASSI CDS LOTTO 1 RENDICONTO DELLA GESTIONE DAL 01/06/2022 A 30/06/2022 CIG.Z4B0FF1CA6;27/07/2022;332;0;29;1;Spese correnti;3;Acquisto di beni e servizi;2;Acquisto di servizi;3;Aggi di riscossione;999;Altri aggi di riscossione n.a.c.;29/07/2022
2846;1;9999999;24,69;49,38;E-DISTRIBUZIONE SPA;Z6837298B3;SALDO Fatt.n. 0000922900004327  del 11/07/2022 POD PRODUZIONE ITP0AE00056670 - SERVIZIO DI MISURA COMPETENZA ANNO 2021;28/07/2022;1334;30;626;1;Spese correnti;3;Acquisto di beni e servizi;2;Acquisto di servizi;5;Utenze e canoni;4;Energia elettrica;01/08/2022
2846;2;9999999;24,69;49,38;E-DISTRIBUZIONE SPA;Z6837298B3;SALDO Fatt.n. 0000922900004366  del 11/07/2022 POD PRODUZIONE ITP0AE00057739 - SERVIZIO DI MISURA COMPETENZA ANNO 2021;28/07/2022;1334;30;626;1;Spese correnti;3;Acquisto di beni e servizi;2;Acquisto di servizi;5;Utenze e canoni;4;Energia elettrica;01/08/2022
2847;1;9999999;11.123,89;11.123,89;SCANTAMBURLO PIETRO;913650419E;SALDO Fatt.n. 43  del 04/07/2022 PULIZIA MARCIAPIEDI - RIORDINO CENTRI URBANI;28/07/2022;2549;0;337;1;Spese correnti;3;Acquisto di beni e servizi;2;Acquisto di servizi;99;Altri servizi;9;Acquisto di sevizi per verde e arredo urbano;01/08/2022
2848;1;9999999;57.295,80;57.295,80;BERTIATO GEOM.GIANLUCA SRL;9010024B02;ACCONTO Fatt.n. 57  del 22/07/2022  INTERVENTI SISTEMATICI DI ARREDO URBANO E CONFIGURAZIONE DELLE AREE ESTERNE AD USO SPORTIVO DI PERTINENZA DELLA PALESTRA DI CALTANA;28/07/2022;8483;0;1007;2;Spese in conto capitale;2;Investimenti fissi lordi e acquisto di terreni;1;Beni materiali;9;Beni immobili;16;Impianti sportivi;01/08/2022
2849;1;9999999;739,39;739,39;BERTIATO GEOM.GIANLUCA SRL;9010024B02;SALDO Fatt.n. 57  del 22/07/2022  INTERVENTI SISTEMATICI DI ARREDO URBANO E CONFIGURAZIONE DELLE AREE ESTERNE AD USO SPORTIVO DI PERTINENZA DELLA PALESTRA DI CALTANA;28/07/2022;8483;0;1007;2;Spese in conto capitale;2;Investimenti fissi lordi e acquisto di terreni;1;Beni materiali;9;Beni immobili;16;Impianti sportivi;01/08/2022
2850;1;9999999;27,23;27,23;C/C/P 15453301 SERVIZIO DI TESORERIA COM; ;SPESE GESTIONE CONTO CORRENTE POSTALE  15453301 GIUGNO 2022;29/07/2022;146;0;382;1;Spese correnti;3;Acquisto di beni e servizi;2;Acquisto di servizi;17;Servizi finanziari;999;Spese per servizi finanziari n.a.c.;02/08/2022
2858;1;9999999;1.426,38;1.426,38;OMESSO NOMINATIVO NEL RISPETTO DELLA NORMATIVA SULLA PROTEZIONE DATI PERSONALI; ;riproposizione mandato FONDO PER IL SOSTEGNO ALLACCESSO ALLE ABITAZIONI IN LOCAZIONE DI CUI ALLA D.G.R. N.1179 DEL 24 AGOSTO 2021. ACCERTAMENTO E IMPEGNO DI SPESA;01/08/2022;4157;51;520;1;Spese correnti;4;Trasferimenti correnti;2;Trasferimenti correnti a Famiglie;2;Interventi assistenziali;999;Altri assegni e sussidi assistenziali;03/08/2022
2859;1;9999999;168;168;OMESSO NOMINATIVO NEL RISPETTO DELLA NORMATIVA SULLA PROTEZIONE DATI PERSONALI; ;LIQUIDAZIONE AGEVOLAZIONI ECONOMICHE MENSA SCOLASTICA MINORI - giro contabile;01/08/2022;3757;0;987;1;Spese correnti;4;Trasferimenti correnti;2;Trasferimenti correnti a Famiglie;5;Altri trasferimenti a famiglie;999;Altri trasferimenti a famiglie n.a.c.;03/08/2022
2860;1;9999999;324;324;OMESSO NOMINATIVO NEL RISPETTO DELLA NORMATIVA SULLA PROTEZIONE DATI PERSONALI; ;LIQUIDAZIONE AGEVOLAZIONI ECONOMICHE MENSA SCOLASTICA MINORI - giro contabile;01/08/2022;3757;0;985;1;Spese correnti;4;Trasferimenti correnti;2;Trasferimenti correnti a Famiglie;5;Altri trasferimenti a famiglie;999;Altri trasferimenti a famiglie n.a.c.;03/08/2022
2861;1;9999999;344;344;OMESSO NOMINATIVO NEL RISPETTO DELLA NORMATIVA SULLA PROTEZIONE DATI PERSONALI; ;LIQUIDAZIONE AGEVOLAZIONI ECONOMICHE MENSA SCOLASTICA MINORI - giro contabile;01/08/2022;3757;0;986;1;Spese correnti;4;Trasferimenti correnti;2;Trasferimenti correnti a Famiglie;5;Altri trasferimenti a famiglie;999;Altri trasferimenti a famiglie n.a.c.;03/08/2022
2862;1;9999999;64;64;OMESSO NOMINATIVO NEL RISPETTO DELLA NORMATIVA SULLA PROTEZIONE DATI PERSONALI; ;LIQUIDAZIONE AGEVOLAZIONI ECONOMICHE MENSA SCOLASTICA MINORI giro contabile;01/08/2022;3757;0;988;1;Spese correnti;4;Trasferimenti correnti;2;Trasferimenti correnti a Famiglie;5;Altri trasferimenti a famiglie;999;Altri trasferimenti a famiglie n.a.c.;03/08/2022
2863;1;9999999;56;56;OMESSO NOMINATIVO NEL RISPETTO DELLA NORMATIVA SULLA PROTEZIONE DATI PERSONALI; ;LIQUIDAZIONE AGEVOLAZIONI ECONOMICHE MENSA SCOLASTICA MINORI giro contabile;01/08/2022;3757;0;989;1;Spese correnti;4;Trasferimenti correnti;2;Trasferimenti correnti a Famiglie;5;Altri trasferimenti a famiglie;999;Altri trasferimenti a famiglie n.a.c.;03/08/2022
2864;1;9999999;220;220;OMESSO NOMINATIVO NEL RISPETTO DELLA NORMATIVA SULLA PROTEZIONE DATI PERSONALI; ;LIQUIDAZIONE AGEVOLAZIONI ECONOMICHE MENSA SCOLASTICA MINORI giro contabile;01/08/2022;3757;0;990;1;Spese correnti;4;Trasferimenti correnti;2;Trasferimenti correnti a Famiglie;5;Altri trasferimenti a famiglie;999;Altri trasferimenti a famiglie n.a.c.;03/08/2022
2865;1;9999999;238;238;OMESSO NOMINATIVO NEL RISPETTO DELLA NORMATIVA SULLA PROTEZIONE DATI PERSONALI; ;LIQUIDAZIONE AGEVOLAZIONI ECONOMICHE MENSA SCOLASTICA MINORI giro contabile;01/08/2022;3957;54;373;1;Spese correnti;4;Trasferimenti correnti;2;Trasferimenti correnti a Famiglie;5;Altri trasferimenti a famiglie;999;Altri trasferimenti a famiglie n.a.c.;03/08/2022
2866;1;9999999;1.000,00;1.000,00;G.S. FENICE CASELLE ASD; ;CONTRIBUTO ECONOMICO  PER LE ATTIVIT DIPROMOZIONE DELLO SPORT SVOLTE NEL CORSO DEL 2022.;01/08/2022;1959;0;628;1;Spese correnti;4;Trasferimenti correnti;4;Trasferimenti correnti a Istituzioni Sociali Private;1;Trasferimenti correnti a Istituzioni Sociali Private;1;Trasferimenti correnti a Istituzioni Sociali Private;03/08/2022
2868;1;9999999;150;150;OMESSO NOMINATIVO NEL RISPETTO DELLA NORMATIVA SULLA PROTEZIONE DATI PERSONALI; ;AGOSTO 2022 AFFIDO FAMILIARE;01/08/2022;3757;50;619;1;Spese correnti;4;Trasferimenti correnti;2;Trasferimenti correnti a Famiglie;2;Interventi assistenziali;999;Altri assegni e sussidi assistenziali;03/08/2022
2869;1;9999999;251,99;251,99;ENI SPA DIVISIONE REFINING & MARKETING;Z0234B8009;SALDO Fatt.n. 29700697  del 30/06/2022 GIUGNO 2022 - FORNITURA METANO;02/08/2022;4121;0;8;1;Spese correnti;3;Acquisto di beni e servizi;1;Acquisto di beni;2;Altri beni di consumo;2;Carburanti, combustibili e lubrificanti;03/08/2022
2870;1;9999999;49,41;49,41;ENI SPA DIVISIONE REFINING & MARKETING;Z0234B8009;ACCONTO Fatt.n. 29700697  del 30/06/2022 GIUGNO 2022 - FORNITURA METANO;02/08/2022;4121;0;8;1;Spese correnti;3;Acquisto di beni e servizi;1;Acquisto di beni;2;Altri beni di consumo;2;Carburanti, combustibili e lubrificanti;04/08/2022
2871;1;9999999;45;45;MAGGIOLI SPA;Z5536FF5EB;SALDO Fatt.n. 0005955188  del 19/07/2022 FORNITURA DI LIBRO - IL RICONOSCIMENTO DELLA CITTADINANZA ITALIANA IURE SANGUINIS -;02/08/2022;621;0;599;1;Spese correnti;3;Acquisto di beni e servizi;1;Acquisto di beni;2;Altri beni di consumo;999;Altri beni e materiali di consumo n.a.c.;04/08/2022
2872;1;9999999;1.564,93;1.564,93;ENEL ENERGIA SPA;9118031536;SALDO Fatt.n. 004240489570  del 10/07/2022 GIUGNO 2022 - CONSUMI SEDE MUNICIPALE;02/08/2022;134;31;213;1;Spese correnti;3;Acquisto di beni e servizi;2;Acquisto di servizi;5;Utenze e canoni;4;Energia elettrica;04/08/2022
2873;1;9999999;37,86;336,23;ENEL ENERGIA SPA;9118031536;SALDO Fatt.n. 004238028771  del 08/07/2022 GIUGNO 2022 - CONSUMI ALLOGGIO VIA DON GALLERANI;02/08/2022;134;31;213;1;Spese correnti;3;Acquisto di beni e servizi;2;Acquisto di servizi;5;Utenze e canoni;4;Energia elettrica;04/08/2022
2873;2;9999999;47,86;336,23;ENEL ENERGIA SPA;9118031536;SALDO Fatt.n. 004238028763  del 08/07/2022 GIUGNO 2022 - CONSUMI FONTANA VETERNIGO;02/08/2022;134;31;213;1;Spese correnti;3;Acquisto di beni e servizi;2;Acquisto di servizi;5;Utenze e canoni;4;Energia elettrica;04/08/2022
2873;3;9999999;57,82;336,23;ENEL ENERGIA SPA;9118031536;SALDO Fatt.n. 004238885370  del 09/07/2022 GIUGNO 2022 - CONSUMI PARCHEGGIO OVALE SMS;02/08/2022;134;31;213;1;Spese correnti;3;Acquisto di beni e servizi;2;Acquisto di servizi;5;Utenze e canoni;4;Energia elettrica;04/08/2022
2873;4;9999999;85,56;336,23;ENEL ENERGIA SPA;9118031536;SALDO Fatt.n. 004238028759  del 08/07/2022 GIUGNO 2022 - CONSUMI MERCATO CALTANA;02/08/2022;134;31;213;1;Spese correnti;3;Acquisto di beni e servizi;2;Acquisto di servizi;5;Utenze e canoni;4;Energia elettrica;04/08/2022
2873;5;9999999;107,13;336,23;ENEL ENERGIA SPA;9118031536;SALDO Fatt.n. 004242021801  del 11/07/2022 GIUGNO 2022 - CONSUMI MERCATO CASELLE;02/08/2022;134;31;213;1;Spese correnti;3;Acquisto di beni e servizi;2;Acquisto di servizi;5;Utenze e canoni;4;Energia elettrica;04/08/2022
2874;1;9999999;11,46;281,95;ENEL ENERGIA SPA;9118031536;SALDO Fatt.n. 004243586327  del 12/07/2022 GIUGNO 2022 - CONSUMI ALLOGGIO SMS;02/08/2022;134;31;213;1;Spese correnti;3;Acquisto di beni e servizi;2;Acquisto di servizi;5;Utenze e canoni;4;Energia elettrica;04/08/2022
2874;2;9999999;71,22;281,95;ENEL ENERGIA SPA;9118031536;SALDO Fatt.n. 004243586324  del 12/07/2022 GIUGNO 2022 - CONSUMI PARCHEGGIO PRESSO C.C. PRISMA CASELLE;02/08/2022;134;31;213;1;Spese correnti;3;Acquisto di beni e servizi;2;Acquisto di servizi;5;Utenze e canoni;4;Energia elettrica;04/08/2022
2874;3;9999999;73,09;281,95;ENEL ENERGIA SPA;9118031536;SALDO Fatt.n. 004242021802  del 11/07/2022 GIUGNO 2022 - CONSUMI MERCATO SMS;02/08/2022;134;31;213;1;Spese correnti;3;Acquisto di beni e servizi;2;Acquisto di servizi;5;Utenze e canoni;4;Energia elettrica;04/08/2022
2874;4;9999999;126,18;281,95;ENEL ENERGIA SPA;9118031536;SALDO Fatt.n. 004245139347  del 14/07/2022 GIUGNO 2022 - CONSUMI P.ZZA S.D.A. CALTANA;02/08/2022;134;31;213;1;Spese correnti;3;Acquisto di beni e servizi;2;Acquisto di servizi;5;Utenze e canoni;4;Energia elettrica;04/08/2022
2875;1;9999999;32,73;32,73;ENEL ENERGIA SPA;9118031536;SALDO Fatt.n. 004245139349  del 14/07/2022 GIUGNO 2022 - CONSUMI PARCHEGGIO SMS;02/08/2022;134;31;213;1;Spese correnti;3;Acquisto di beni e servizi;2;Acquisto di servizi;5;Utenze e canoni;4;Energia elettrica;04/08/2022
2876;1;9999999;6,03;6,03;ENEL ENERGIA SPA;9118031536;ACCONTO Fatt.n. 004238028766  del 08/07/2022 GIUGNO 2022 - CONSUMI CIMITERO SMS - LAMPADE VOTIVE;02/08/2022;134;31;213;1;Spese correnti;3;Acquisto di beni e servizi;2;Acquisto di servizi;5;Utenze e canoni;4;Energia elettrica;04/08/2022
2877;1;9999999;5,09;5,09;ENEL ENERGIA SPA;9118031536;ACCONTO Fatt.n. 004238028769  del 08/07/2022 GIUGNO 2022 - CONSUMI CIMITERO CASELLE - LAMPADE VOTIVE;02/08/2022;134;31;213;1;Spese correnti;3;Acquisto di beni e servizi;2;Acquisto di servizi;5;Utenze e canoni;4;Energia elettrica;04/08/2022
2878;1;9999999;8,85;8,85;ENEL ENERGIA SPA;9118031536;ACCONTO Fatt.n. 004244176706  del 13/07/2022 GIUGNO 2022 - CONSUMI CIMITERO CALTANA - LAMPADE VOTIVE;02/08/2022;134;31;213;1;Spese correnti;3;Acquisto di beni e servizi;2;Acquisto di servizi;5;Utenze e canoni;4;Energia elettrica;04/08/2022
2879;1;9999999;6,35;6,35;ENEL ENERGIA SPA;9118031536;ACCONTO Fatt.n. 004242021799  del 11/07/2022 GIUGNO 2022 - CONSUMI CIMITERO S.ANGELO  - LAMPADE VOTIVE;02/08/2022;134;31;213;1;Spese correnti;3;Acquisto di beni e servizi;2;Acquisto di servizi;5;Utenze e canoni;4;Energia elettrica;04/08/2022
2880;1;9999999;3,68;3,68;ENEL ENERGIA SPA;9118031536;ACCONTO Fatt.n. 004242021798  del 11/07/2022 GIUGNO 2022 - CONSUMI CIMITERO VETERNIGO - LAMPADE VOTIVE;02/08/2022;134;31;213;1;Spese correnti;3;Acquisto di beni e servizi;2;Acquisto di servizi;5;Utenze e canoni;4;Energia elettrica;04/08/2022
2881;1;9999999;-15,37;6,72;ENEL ENERGIA SPA;8426072694;SALDO Fatt.n. 004245678407  del 26/07/2022 CONGUAGLIO CONSUMI CONVENZIONE EE17;02/08/2022;134;31;348;1;Spese correnti;3;Acquisto di beni e servizi;2;Acquisto di servizi;5;Utenze e canoni;4;Energia elettrica;04/08/2022
2881;2;9999999;22,09;6,72;ENEL ENERGIA SPA;8426072694;SALDO Fatt.n. 004237666836  del 07/07/2022 CONGUAGLIO CONSUMI CONVENZIONE EE17;02/08/2022;134;31;348;1;Spese correnti;3;Acquisto di beni e servizi;2;Acquisto di servizi;5;Utenze e canoni;4;Energia elettrica;04/08/2022
2882;1;9999999;-12,2;1,08;ENEL ENERGIA SPA;8426072694;SALDO Fatt.n. 004237666834  del 07/07/2022 NOTA DI ACCREDITO PER CONG. CONSUMI;02/08/2022;134;31;348;1;Spese correnti;3;Acquisto di beni e servizi;2;Acquisto di servizi;5;Utenze e canoni;4;Energia elettrica;04/08/2022
2882;2;9999999;6,59;1,08;ENEL ENERGIA SPA;8426072694;SALDO Fatt.n. 004237666837  del 07/07/2022 CONGUAGLIO CONSUMI CONVENZIONE EE17;02/08/2022;134;31;348;1;Spese correnti;3;Acquisto di beni e servizi;2;Acquisto di servizi;5;Utenze e canoni;4;Energia elettrica;04/08/2022
2882;3;9999999;6,69;1,08;ENEL ENERGIA SPA;8426072694;SALDO Fatt.n. 004237666835  del 07/07/2022 CONGUAGLIO CONSUMI CONVENZIONE EE17;02/08/2022;134;31;348;1;Spese correnti;3;Acquisto di beni e servizi;2;Acquisto di servizi;5;Utenze e canoni;4;Energia elettrica;04/08/2022
2883;1;9999999;-29,59;11,93;ENEL ENERGIA SPA;8426072694;SALDO Fatt.n. 004237666833  del 07/07/2022 NOTA DI ACCREDITO PER CONG. CONSUMI;02/08/2022;134;31;348;1;Spese correnti;3;Acquisto di beni e servizi;2;Acquisto di servizi;5;Utenze e canoni;4;Energia elettrica;04/08/2022
2883;2;9999999;-21,03;11,93;ENEL ENERGIA SPA;8426072694;SALDO Fatt.n. 004237666832  del 07/07/2022 NOTA DI ACCREDITO PER CONG. CONSUMI;02/08/2022;134;31;348;1;Spese correnti;3;Acquisto di beni e servizi;2;Acquisto di servizi;5;Utenze e canoni;4;Energia elettrica;04/08/2022
2883;3;9999999;11,96;11,93;ENEL ENERGIA SPA;8426072694;SALDO Fatt.n. 004244176704  del 13/07/2022 GIUGNO 2022 - CONSUMI ALLOGGIO VIA OLIMPIA SMS;02/08/2022;134;31;348;1;Spese correnti;3;Acquisto di beni e servizi;2;Acquisto di servizi;5;Utenze e canoni;4;Energia elettrica;04/08/2022
2883;4;9999999;50,59;11,93;ENEL ENERGIA SPA;8426072694;SALDO Fatt.n. 004244176705  del 13/07/2022 GIUGNO 2022 - CONSUMI IMP. SPORT. CASELLE;02/08/2022;134;31;348;1;Spese correnti;3;Acquisto di beni e servizi;2;Acquisto di servizi;5;Utenze e canoni;4;Energia elettrica;04/08/2022
2884;1;9999999;265,17;1.418,09;ENEL ENERGIA SPA;9118031536;SALDO Fatt.n. 004238885368  del 09/07/2022 GIUGNO 2022 - CONSUMI  SC. ELEM. CALTANA;02/08/2022;1334;30;214;1;Spese correnti;3;Acquisto di beni e servizi;2;Acquisto di servizi;5;Utenze e canoni;4;Energia elettrica;04/08/2022
2884;2;9999999;340,28;1.418,09;ENEL ENERGIA SPA;9118031536;SALDO Fatt.n. 004238028770  del 08/07/2022 GIUGNO 2022 - CONSUMI SC. ELEM. CASELLE;02/08/2022;1334;30;214;1;Spese correnti;3;Acquisto di beni e servizi;2;Acquisto di servizi;5;Utenze e canoni;4;Energia elettrica;04/08/2022
2884;3;9999999;812,64;1.418,09;ENEL ENERGIA SPA;9118031536;SALDO Fatt.n. 004245555846  del 16/07/2022 GIUGNO 2022 - CONSUMI SC. ELEM-SC. MEDIA SMS;02/08/2022;1334;30;214;1;Spese correnti;3;Acquisto di beni e servizi;2;Acquisto di servizi;5;Utenze e canoni;4;Energia elettrica;04/08/2022
2885;1;9999999;71,98;71,98;ENEL ENERGIA SPA;9118031536;ACCONTO Fatt.n. 004238028765  del 08/07/2022 GIUGNO 2022 - CONSUMI PALESTRA CASELLE;02/08/2022;1334;30;214;1;Spese correnti;3;Acquisto di beni e servizi;2;Acquisto di servizi;5;Utenze e canoni;4;Energia elettrica;04/08/2022
2886;1;9999999;146,43;146,43;ENEL ENERGIA SPA;9118031536;ACCONTO Fatt.n. 004243586322  del 12/07/2022 GIUGNO 2022 - CONSUMI PALESTRA SMS;02/08/2022;1334;30;214;1;Spese correnti;3;Acquisto di beni e servizi;2;Acquisto di servizi;5;Utenze e canoni;4;Energia elettrica;04/08/2022
2887;1;9999999;145;145;ENEL ENERGIA SPA;9118031536;ACCONTO Fatt.n. 004243586326  del 12/07/2022 GIUGNO 2022 - CONSUMI SC. ELEM-PALESTRA VETERNIGO;02/08/2022;1334;30;214;1;Spese correnti;3;Acquisto di beni e servizi;2;Acquisto di servizi;5;Utenze e canoni;4;Energia elettrica;04/08/2022
2888;1;9999999;239,26;239,26;ENEL ENERGIA SPA;9118031536;ACCONTO Fatt.n. 004243586326  del 12/07/2022 GIUGNO 2022 - CONSUMI SC. ELEM-PALESTRA VETERNIGO;02/08/2022;1334;30;214;1;Spese correnti;3;Acquisto di beni e servizi;2;Acquisto di servizi;5;Utenze e canoni;4;Energia elettrica;04/08/2022
2889;1;9999999;230;230;ENEL ENERGIA SPA;9118031536;ACCONTO Fatt.n. 004245555847  del 16/07/2022 GIUGNO 2022 - CONSUMI SC. ELEM-PALESTRA-ASILO S.ANGELO;02/08/2022;1334;30;214;1;Spese correnti;3;Acquisto di beni e servizi;2;Acquisto di servizi;5;Utenze e canoni;4;Energia elettrica;04/08/2022
2890;1;9999999;698,51;698,51;ENEL ENERGIA SPA;9118031536;ACCONTO Fatt.n. 004245555847  del 16/07/2022 GIUGNO 2022 - CONSUMI SC. ELEM-PALESTRA-ASILO S.ANGELO;02/08/2022;1334;30;214;1;Spese correnti;3;Acquisto di beni e servizi;2;Acquisto di servizi;5;Utenze e canoni;4;Energia elettrica;04/08/2022
2891;1;9999999;172;172;ENEL ENERGIA SPA;9118031536;ACCONTO Fatt.n. 004238028764  del 08/07/2022 GIUGNO 2022 - CONSUMI SC. ELEM - PALESTRA STIGLIANO;02/08/2022;1334;30;214;1;Spese correnti;3;Acquisto di beni e servizi;2;Acquisto di servizi;5;Utenze e canoni;4;Energia elettrica;04/08/2022
2892;1;9999999;148,76;148,76;ENEL ENERGIA SPA;9118031536;ACCONTO Fatt.n. 004238028764  del 08/07/2022 GIUGNO 2022 - CONSUMI SC. ELEM - PALESTRA STIGLIANO;02/08/2022;1334;30;214;1;Spese correnti;3;Acquisto di beni e servizi;2;Acquisto di servizi;5;Utenze e canoni;4;Energia elettrica;04/08/2022
2893;1;9999999;264,31;264,31;ENEL ENERGIA SPA;9118031536;ACCONTO Fatt.n. 004238028762  del 08/07/2022 GIUGNO 2022 - CONSUMI PALESTRA CALTANA;02/08/2022;1334;30;214;1;Spese correnti;3;Acquisto di beni e servizi;2;Acquisto di servizi;5;Utenze e canoni;4;Energia elettrica;04/08/2022
2894;1;9999999;478,64;1.412,71;ENEL ENERGIA SPA;9118031536;SALDO Fatt.n. 004245139346  del 14/07/2022 GIUGNO 2022 - CONSUMI VILLA FARSETTI;02/08/2022;1834;0;215;1;Spese correnti;3;Acquisto di beni e servizi;2;Acquisto di servizi;5;Utenze e canoni;4;Energia elettrica;04/08/2022
2894;2;9999999;934,07;1.412,71;ENEL ENERGIA SPA;9118031536;SALDO Fatt.n. 004245555848  del 16/07/2022 GIUGNO 2022 - CONSUMI VILLA FARSETTI;02/08/2022;1834;0;215;1;Spese correnti;3;Acquisto di beni e servizi;2;Acquisto di servizi;5;Utenze e canoni;4;Energia elettrica;04/08/2022
2895;1;9999999;111,61;111,61;ENEL ENERGIA SPA;9118031536;SALDO Fatt.n. 004238028767  del 08/07/2022 GIUGNO 2022 - CONSUMI IMP. SPORT. CASELLE;02/08/2022;1934;0;216;1;Spese correnti;3;Acquisto di beni e servizi;2;Acquisto di servizi;5;Utenze e canoni;4;Energia elettrica;04/08/2022
2896;1;9999999;39,37;39,37;ENEL ENERGIA SPA;9118031536;SALDO Fatt.n. 004238028772  del 08/07/2022 GIUGNO 2022 - CONSUMI IMP. SPORT. CASELLE;02/08/2022;1934;0;216;1;Spese correnti;3;Acquisto di beni e servizi;2;Acquisto di servizi;5;Utenze e canoni;4;Energia elettrica;04/08/2022
2897;1;9999999;56,16;56,16;ENEL ENERGIA SPA;9118031536;SALDO Fatt.n. 004238885369  del 09/07/2022 GIUGNO 2022 - CONSUMI IMP. SPORT. SMS;02/08/2022;1934;0;216;1;Spese correnti;3;Acquisto di beni e servizi;2;Acquisto di servizi;5;Utenze e canoni;4;Energia elettrica;04/08/2022
2898;1;9999999;71,98;71,98;ENEL ENERGIA SPA;9118031536;SALDO Fatt.n. 004238028765  del 08/07/2022 GIUGNO 2022 - CONSUMI PALESTRA CASELLE;02/08/2022;1934;0;216;1;Spese correnti;3;Acquisto di beni e servizi;2;Acquisto di servizi;5;Utenze e canoni;4;Energia elettrica;04/08/2022
2899;1;9999999;146,44;146,44;ENEL ENERGIA SPA;9118031536;SALDO Fatt.n. 004243586322  del 12/07/2022 GIUGNO 2022 - CONSUMI PALESTRA SMS;02/08/2022;1934;0;216;1;Spese correnti;3;Acquisto di beni e servizi;2;Acquisto di servizi;5;Utenze e canoni;4;Energia elettrica;04/08/2022
2900;1;9999999;145;145;ENEL ENERGIA SPA;9118031536;SALDO Fatt.n. 004243586326  del 12/07/2022 GIUGNO 2022 - CONSUMI SC. ELEM-PALESTRA VETERNIGO;02/08/2022;1934;0;216;1;Spese correnti;3;Acquisto di beni e servizi;2;Acquisto di servizi;5;Utenze e canoni;4;Energia elettrica;04/08/2022
2901;1;9999999;230;230;ENEL ENERGIA SPA;9118031536;SALDO Fatt.n. 004245555847  del 16/07/2022 GIUGNO 2022 - CONSUMI SC. ELEM-PALESTRA-ASILO S.ANGELO;02/08/2022;1934;0;216;1;Spese correnti;3;Acquisto di beni e servizi;2;Acquisto di servizi;5;Utenze e canoni;4;Energia elettrica;04/08/2022
2902;1;9999999;172;172;ENEL ENERGIA SPA;9118031536;SALDO Fatt.n. 004238028764  del 08/07/2022 GIUGNO 2022 - CONSUMI SC. ELEM - PALESTRA STIGLIANO;02/08/2022;1934;0;216;1;Spese correnti;3;Acquisto di beni e servizi;2;Acquisto di servizi;5;Utenze e canoni;4;Energia elettrica;04/08/2022
2903;1;9999999;264,32;264,32;ENEL ENERGIA SPA;9118031536;SALDO Fatt.n. 004238028762  del 08/07/2022 GIUGNO 2022 - CONSUMI PALESTRA CALTANA;02/08/2022;1934;0;216;1;Spese correnti;3;Acquisto di beni e servizi;2;Acquisto di servizi;5;Utenze e canoni;4;Energia elettrica;04/08/2022
2904;1;9999999;84,08;445,52;ENEL ENERGIA SPA;9118031536;SALDO Fatt.n. 004242021800  del 11/07/2022 GIUGNO 2022 - CONSUMI ECOCENTRO COMUNALE;02/08/2022;3534;0;218;1;Spese correnti;3;Acquisto di beni e servizi;2;Acquisto di servizi;5;Utenze e canoni;4;Energia elettrica;04/08/2022
2904;2;9999999;361,44;445,52;ENEL ENERGIA SPA;9118031536;SALDO Fatt.n. 004245139348  del 14/07/2022 GIUGNO 2022 - CONSUMI MAGAZZINO COMUNALE;02/08/2022;3534;0;218;1;Spese correnti;3;Acquisto di beni e servizi;2;Acquisto di servizi;5;Utenze e canoni;4;Energia elettrica;04/08/2022
2905;1;9999999;9,04;408,1;ENEL ENERGIA SPA;9118031536;SALDO Fatt.n. 004242021797  del 11/07/2022 GIUGNO 2022 - CONSUMI ILLUMINAZIONE PUBBLICA;02/08/2022;3544;0;220;1;Spese correnti;3;Acquisto di beni e servizi;2;Acquisto di servizi;15;Contratti di servizio pubblico;15;Contratti di servizio per l'illuminazione pubblica;04/08/2022
2905;2;9999999;10,58;408,1;ENEL ENERGIA SPA;9118031536;SALDO Fatt.n. 004238885371  del 09/07/2022 GIUGNO 2022 - CONSUMI ILLUMINAZIONE PUBBLICA;02/08/2022;3544;0;220;1;Spese correnti;3;Acquisto di beni e servizi;2;Acquisto di servizi;15;Contratti di servizio pubblico;15;Contratti di servizio per l'illuminazione pubblica;04/08/2022
2905;3;9999999;24,55;408,1;ENEL ENERGIA SPA;9118031536;SALDO Fatt.n. 004238028760  del 08/07/2022 GIUGNO 2022 - CONSUMI ILLUMINAZIONE PUBBLICA;02/08/2022;3544;0;220;1;Spese correnti;3;Acquisto di beni e servizi;2;Acquisto di servizi;15;Contratti di servizio pubblico;15;Contratti di servizio per l'illuminazione pubblica;04/08/2022
2905;4;9999999;51,9;408,1;ENEL ENERGIA SPA;9118031536;SALDO Fatt.n. 004243586325  del 12/07/2022 GIUGNO 2022 - CONSUMI ILLUMINAZIONE PUBBLICA;02/08/2022;3544;0;220;1;Spese correnti;3;Acquisto di beni e servizi;2;Acquisto di servizi;15;Contratti di servizio pubblico;15;Contratti di servizio per l'illuminazione pubblica;04/08/2022
2905;5;9999999;58;408,1;ENEL ENERGIA SPA;9118031536;SALDO Fatt.n. 004238028768  del 08/07/2022 GIUGNO 2022 - CONSUMI ILLUMINAZIONE PUBBLICA;02/08/2022;3544;0;220;1;Spese correnti;3;Acquisto di beni e servizi;2;Acquisto di servizi;15;Contratti di servizio pubblico;15;Contratti di servizio per l'illuminazione pubblica;04/08/2022
2905;6;9999999;119,11;408,1;ENEL ENERGIA SPA;9118031536;SALDO Fatt.n. 004243586321  del 12/07/2022 GIUGNO 2022 - CONSUMI ILLUMINAZIONE PUBBLICA;02/08/2022;3544;0;220;1;Spese correnti;3;Acquisto di beni e servizi;2;Acquisto di servizi;15;Contratti di servizio pubblico;15;Contratti di servizio per l'illuminazione pubblica;04/08/2022
2905;7;9999999;134,92;408,1;ENEL ENERGIA SPA;9118031536;SALDO Fatt.n. 004243586323  del 12/07/2022 GIUGNO 2022 - CONSUMI ILLUMINAZIONE PUBBLICA;02/08/2022;3544;0;220;1;Spese correnti;3;Acquisto di beni e servizi;2;Acquisto di servizi;15;Contratti di servizio pubblico;15;Contratti di servizio per l'illuminazione pubblica;04/08/2022
2906;1;9999999;7.798,03;19.555,05;ENEL ENERGIA SPA;9118031536;SALDO Fatt.n. 004245549326  del 15/07/2022 GIUGNO 2022 - CONSUMI ILLUMINAZIONE PUBBLICA;02/08/2022;3544;0;220;1;Spese correnti;3;Acquisto di beni e servizi;2;Acquisto di servizi;15;Contratti di servizio pubblico;15;Contratti di servizio per l'illuminazione pubblica;04/08/2022
2906;2;9999999;11.757,02;19.555,05;ENEL ENERGIA SPA;9118031536;SALDO Fatt.n. 004245549325  del 15/07/2022 GIUGNO 2022 - CONSUMI ILLUMINAZIONE PUBBLICA;02/08/2022;3544;0;220;1;Spese correnti;3;Acquisto di beni e servizi;2;Acquisto di servizi;15;Contratti di servizio pubblico;15;Contratti di servizio per l'illuminazione pubblica;04/08/2022
2907;1;9999999;35;35;ENEL ENERGIA SPA;9118031536;SALDO Fatt.n. 004238028766  del 08/07/2022 GIUGNO 2022 - CONSUMI CIMITERO SMS - LAMPADE VOTIVE;02/08/2022;4434;0;219;1;Spese correnti;3;Acquisto di beni e servizi;2;Acquisto di servizi;5;Utenze e canoni;4;Energia elettrica;04/08/2022
2908;1;9999999;46,77;46,77;ENEL ENERGIA SPA;9118031536;SALDO Fatt.n. 004238028761  del 08/07/2022 GIUGNO 2022 - CONSUMI CIMITERO STIGLIANO - LAMPADE VOTIVE;02/08/2022;4434;0;219;1;Spese correnti;3;Acquisto di beni e servizi;2;Acquisto di servizi;5;Utenze e canoni;4;Energia elettrica;04/08/2022
2909;1;9999999;48;48;ENEL ENERGIA SPA;9118031536;SALDO Fatt.n. 004238028769  del 08/07/2022 GIUGNO 2022 - CONSUMI CIMITERO CASELLE - LAMPADE VOTIVE;02/08/2022;4434;0;219;1;Spese correnti;3;Acquisto di beni e servizi;2;Acquisto di servizi;5;Utenze e canoni;4;Energia elettrica;04/08/2022
2910;1;9999999;112;112;ENEL ENERGIA SPA;9118031536;SALDO Fatt.n. 004244176706  del 13/07/2022 GIUGNO 2022 - CONSUMI CIMITERO CALTANA - LAMPADE VOTIVE;02/08/2022;4434;0;219;1;Spese correnti;3;Acquisto di beni e servizi;2;Acquisto di servizi;5;Utenze e canoni;4;Energia elettrica;04/08/2022
2911;1;9999999;37;37;ENEL ENERGIA SPA;9118031536;SALDO Fatt.n. 004242021799  del 11/07/2022 GIUGNO 2022 - CONSUMI CIMITERO S.ANGELO  - LAMPADE VOTIVE;02/08/2022;4434;0;219;1;Spese correnti;3;Acquisto di beni e servizi;2;Acquisto di servizi;5;Utenze e canoni;4;Energia elettrica;04/08/2022
2912;1;9999999;38;38;ENEL ENERGIA SPA;9118031536;SALDO Fatt.n. 004242021798  del 11/07/2022 GIUGNO 2022 - CONSUMI CIMITERO VETERNIGO - LAMPADE VOTIVE;02/08/2022;4434;0;219;1;Spese correnti;3;Acquisto di beni e servizi;2;Acquisto di servizi;5;Utenze e canoni;4;Energia elettrica;04/08/2022
2913;1;9999999;59,97;59,97;ZAMENGO UGO; ;01/01/2022-30/06/2022 CORRESPONSIONE INDENNITA DI PRESENZA AI COMPONENTI DEL CONSIGLIO COMUNALE, DELLE COMMISSIONI CONSILIARI E DELLA COMMISSIONE ELETTORALE;04/08/2022;30;99;49;1;Spese correnti;3;Acquisto di beni e servizi;2;Acquisto di servizi;1;Organi e incarichi istituzionali dell'amministrazione;1;Organi istituzionali dell'amministrazione - Indennità;08/08/2022
2914;1;9999999;59,97;59,97;MERLO ENRICO; ;01/01/2022-30/06/2022 CORRESPONSIONE INDENNITA DI PRESENZA AI COMPONENTI DEL CONSIGLIO COMUNALE, DELLE COMMISSIONI CONSILIARI E DELLA COMMISSIONE ELETTORALE;04/08/2022;30;99;49;1;Spese correnti;3;Acquisto di beni e servizi;2;Acquisto di servizi;1;Organi e incarichi istituzionali dell'amministrazione;1;Organi istituzionali dell'amministrazione - Indennità;08/08/2022
2915;1;9999999;139,93;139,93;MIELE LUIGINO; ;01/01/2022-30/06/2022 CORRESPONSIONE INDENNITA DI PRESENZA AI COMPONENTI DEL CONSIGLIO COMUNALE, DELLE COMMISSIONI CONSILIARI E DELLA COMMISSIONE ELETTORALE;04/08/2022;30;99;49;1;Spese correnti;3;Acquisto di beni e servizi;2;Acquisto di servizi;1;Organi e incarichi istituzionali dell'amministrazione;1;Organi istituzionali dell'amministrazione - Indennità;08/08/2022
2916;1;9999999;79,96;79,96;RAGAZZO GABRIELE; ;01/01/2022-30/06/2022 CORRESPONSIONE INDENNITA DI PRESENZA AI COMPONENTI DEL CONSIGLIO COMUNALE, DELLE COMMISSIONI CONSILIARI E DELLA COMMISSIONE ELETTORALE;04/08/2022;30;99;49;1;Spese correnti;3;Acquisto di beni e servizi;2;Acquisto di servizi;1;Organi e incarichi istituzionali dell'amministrazione;1;Organi istituzionali dell'amministrazione - Indennità;08/08/2022
2917;1;9999999;39,98;39,98;CARRILLO ANGELA; ;01/01/2022-30/06/2022 CORRESPONSIONE INDENNITA DI PRESENZA AI COMPONENTI DEL CONSIGLIO COMUNALE, DELLE COMMISSIONI CONSILIARI E DELLA COMMISSIONE ELETTORALE;04/08/2022;30;99;49;1;Spese correnti;3;Acquisto di beni e servizi;2;Acquisto di servizi;1;Organi e incarichi istituzionali dell'amministrazione;1;Organi istituzionali dell'amministrazione - Indennità;08/08/2022
2918;1;9999999;59,97;59,97;BASSO MARIA CHIARA; ;01/01/2022-30/06/2022 CORRESPONSIONE INDENNITA DI PRESENZA AI COMPONENTI DEL CONSIGLIO COMUNALE, DELLE COMMISSIONI CONSILIARI E DELLA COMMISSIONE ELETTORALE;04/08/2022;30;99;49;1;Spese correnti;3;Acquisto di beni e servizi;2;Acquisto di servizi;1;Organi e incarichi istituzionali dell'amministrazione;1;Organi istituzionali dell'amministrazione - Indennità;08/08/2022
2919;1;9999999;59,97;59,97;BERTOLIN MONICA; ;01/01/2022-30/06/2022 CORRESPONSIONE INDENNITA DI PRESENZA AI COMPONENTI DEL CONSIGLIO COMUNALE, DELLE COMMISSIONI CONSILIARI E DELLA COMMISSIONE ELETTORALE;04/08/2022;30;99;49;1;Spese correnti;3;Acquisto di beni e servizi;2;Acquisto di servizi;1;Organi e incarichi istituzionali dell'amministrazione;1;Organi istituzionali dell'amministrazione - Indennità;08/08/2022
2920;1;9999999;79,96;79,96;ZANCHIN ALESSIO; ;01/01/2022-30/06/2022 CORRESPONSIONE INDENNITA DI PRESENZA AI COMPONENTI DEL CONSIGLIO COMUNALE, DELLE COMMISSIONI CONSILIARI E DELLA COMMISSIONE ELETTORALE;04/08/2022;30;99;49;1;Spese correnti;3;Acquisto di beni e servizi;2;Acquisto di servizi;1;Organi e incarichi istituzionali dell'amministrazione;1;Organi istituzionali dell'amministrazione - Indennità;08/08/2022
2921;1;9999999;59,97;59,97;MOGNO GLENDA; ;01/01/2022-30/06/2022 CORRESPONSIONE INDENNITA DI PRESENZA AI COMPONENTI DEL CONSIGLIO COMUNALE, DELLE COMMISSIONI CONSILIARI E DELLA COMMISSIONE ELETTORALE;04/08/2022;30;99;49;1;Spese correnti;3;Acquisto di beni e servizi;2;Acquisto di servizi;1;Organi e incarichi istituzionali dell'amministrazione;1;Organi istituzionali dell'amministrazione - Indennità;08/08/2022
2922;1;9999999;119,94;119,94;BASSO GIOIA; ;01/01/2022-30/06/2022 CORRESPONSIONE INDENNITA DI PRESENZA AI COMPONENTI DEL CONSIGLIO COMUNALE, DELLE COMMISSIONI CONSILIARI E DELLA COMMISSIONE ELETTORALE;04/08/2022;30;99;49;1;Spese correnti;3;Acquisto di beni e servizi;2;Acquisto di servizi;1;Organi e incarichi istituzionali dell'amministrazione;1;Organi istituzionali dell'amministrazione - Indennità;08/08/2022
2923;1;9999999;79,96;79,96;ANDREELLO GIULIANA; ;01/01/2022-30/06/2022 CORRESPONSIONE INDENNITA DI PRESENZA AI COMPONENTI DEL CONSIGLIO COMUNALE, DELLE COMMISSIONI CONSILIARI E DELLA COMMISSIONE ELETTORALE;04/08/2022;30;99;49;1;Spese correnti;3;Acquisto di beni e servizi;2;Acquisto di servizi;1;Organi e incarichi istituzionali dell'amministrazione;1;Organi istituzionali dell'amministrazione - Indennità;08/08/2022
2924;1;9999999;79,96;79,96;FAVARO LEANDRO; ;01/01/2022-30/06/2022 CORRESPONSIONE INDENNITA DI PRESENZA AI COMPONENTI DEL CONSIGLIO COMUNALE, DELLE COMMISSIONI CONSILIARI E DELLA COMMISSIONE ELETTORALE;04/08/2022;30;99;49;1;Spese correnti;3;Acquisto di beni e servizi;2;Acquisto di servizi;1;Organi e incarichi istituzionali dell'amministrazione;1;Organi istituzionali dell'amministrazione - Indennità;08/08/2022
2925;1;9999999;99,95;99,95;COLETTO CRISTIANO; ;01/01/2022-30/06/2022 CORRESPONSIONE INDENNITA DI PRESENZA AI COMPONENTI DEL CONSIGLIO COMUNALE, DELLE COMMISSIONI CONSILIARI E DELLA COMMISSIONE ELETTORALE;04/08/2022;30;99;49;1;Spese correnti;3;Acquisto di beni e servizi;2;Acquisto di servizi;1;Organi e incarichi istituzionali dell'amministrazione;1;Organi istituzionali dell'amministrazione - Indennità;08/08/2022
2926;1;9999999;139,93;139,93;GIORDAN CHRISTIAN; ;01/01/2022-30/06/2022 CORRESPONSIONE INDENNITA DI PRESENZA AI COMPONENTI DEL CONSIGLIO COMUNALE, DELLE COMMISSIONI CONSILIARI E DELLA COMMISSIONE ELETTORALE;04/08/2022;30;99;49;1;Spese correnti;3;Acquisto di beni e servizi;2;Acquisto di servizi;1;Organi e incarichi istituzionali dell'amministrazione;1;Organi istituzionali dell'amministrazione - Indennità;08/08/2022
2927;1;9999999;79,96;79,96;BUGIN LAURA; ;01/01/2022-30/06/2022 CORRESPONSIONE INDENNITA DI PRESENZA AI COMPONENTI DEL CONSIGLIO COMUNALE, DELLE COMMISSIONI CONSILIARI E DELLA COMMISSIONE ELETTORALE;04/08/2022;30;99;49;1;Spese correnti;3;Acquisto di beni e servizi;2;Acquisto di servizi;1;Organi e incarichi istituzionali dell'amministrazione;1;Organi istituzionali dell'amministrazione - Indennità;08/08/2022
2928;1;9999999;9.684,75;9.684,75;STUDIO LEGALE DOMENICHELLI E ASSOCIATI;Z5530D9F67;SALDO Fatt.n. 230/2022/EL  del 20/07/2022  COMPENSI PER LA PRATICA CASCIARO MARIELLA - COSTITUZIONE AVANTI ALLA CORTE DI APPELLO DI VENEZIA R.G. 283-2021;04/08/2022;40;0;176;1;Spese correnti;3;Acquisto di beni e servizi;2;Acquisto di servizi;11;Prestazioni professionali e specialistiche;6;Patrocinio legale;08/08/2022
2929;1;9999999;1.991,86;1.991,86;ARTEA  SNC DI LION & SALVIATO;90182921FD;SALDO Fatt.n. 13-2022/PA  del 15/07/2022 OPERAZIONI EFFETTUATE NEI CIMITERI DEL COMUNE DI SANTA MARIA DI SALA NEL MESE DI GIUGNO 2022;04/08/2022;4438;0;1152;1;Spese correnti;3;Acquisto di beni e servizi;2;Acquisto di servizi;9;Manutenzione ordinaria e riparazioni;8;Manutenzione ordinaria e riparazioni di beni immobili;08/08/2022
2930;1;9999999;2.400,00;2.400,00;ASSOCIAZIONE  LA CASA SULL' ALBERO; ;CONTRIBUTO PER PROGRAMMA DELLA RASSEGNA CULTURALE RESTATE IN VILLA PROPOSTA DALLASSESSORATO ALLA CULTURA DA MAGGIO A LUGLIO 2022;05/08/2022;1859;0;557;1;Spese correnti;4;Trasferimenti correnti;4;Trasferimenti correnti a Istituzioni Sociali Private;1;Trasferimenti correnti a Istituzioni Sociali Private;1;Trasferimenti correnti a Istituzioni Sociali Private;09/08/2022
2931;1;9999999;1.000,00;1.000,00;ASSOCIAZIONE PRO LOCO S.MARIA DI SALA; ;CONTRIBUTO PER PROGRAMMA DELLA RASSEGNA CULTURALE RESTATE IN VILLA PROPOSTA DALLASSESSORATO ALLA CULTURA DA MAGGIO A LUGLIO 2022;05/08/2022;1859;0;561;1;Spese correnti;4;Trasferimenti correnti;4;Trasferimenti correnti a Istituzioni Sociali Private;1;Trasferimenti correnti a Istituzioni Sociali Private;1;Trasferimenti correnti a Istituzioni Sociali Private;09/08/2022
2932;1;9999999;2.500,00;2.500,00;VENICE CHAMBER ORCHESTRA; ;CONTRIBUTO PER PROGRAMMA DELLA RASSEGNA CULTURALE RESTATE IN VILLA PROPOSTA DALLASSESSORATO ALLA CULTURA DA MAGGIO A LUGLIO 2022;05/08/2022;1859;0;563;1;Spese correnti;4;Trasferimenti correnti;4;Trasferimenti correnti a Istituzioni Sociali Private;1;Trasferimenti correnti a Istituzioni Sociali Private;1;Trasferimenti correnti a Istituzioni Sociali Private;09/08/2022
2933;1;9999999;100;100;OMESSO NOMINATIVO NEL RISPETTO DELLA NORMATIVA SULLA PROTEZIONE DATI PERSONALI; ;AGOSTO 2022 MINIMO VITALE;05/08/2022;4157;0;647;1;Spese correnti;4;Trasferimenti correnti;2;Trasferimenti correnti a Famiglie;2;Interventi assistenziali;999;Altri assegni e sussidi assistenziali;19/08/2022
2934;1;9999999;100;100;OMESSO NOMINATIVO NEL RISPETTO DELLA NORMATIVA SULLA PROTEZIONE DATI PERSONALI; ;AGOSTO 2022 MINIMO VITALE;05/08/2022;4157;0;613;1;Spese correnti;4;Trasferimenti correnti;2;Trasferimenti correnti a Famiglie;2;Interventi assistenziali;999;Altri assegni e sussidi assistenziali;19/08/2022
2935;1;9999999;100;100;OMESSO NOMINATIVO NEL RISPETTO DELLA NORMATIVA SULLA PROTEZIONE DATI PERSONALI; ;AGOSTO 2022 MINIMO VITALE;05/08/2022;4157;0;646;1;Spese correnti;4;Trasferimenti correnti;2;Trasferimenti correnti a Famiglie;2;Interventi assistenziali;999;Altri assegni e sussidi assistenziali;05/09/2022
2936;1;9999999;100;100;OMESSO NOMINATIVO NEL RISPETTO DELLA NORMATIVA SULLA PROTEZIONE DATI PERSONALI; ;AGOSTO 2022 MINIMO VITALE;05/08/2022;4157;0;648;1;Spese correnti;4;Trasferimenti correnti;2;Trasferimenti correnti a Famiglie;2;Interventi assistenziali;999;Altri assegni e sussidi assistenziali;22/08/2022
2937;1;9999999;500;500;OMESSO NOMINATIVO NEL RISPETTO DELLA NORMATIVA SULLA PROTEZIONE DATI PERSONALI; ;OSPITALITA FRATELLO COI RENATO - PAGAMENTO PARZIALE DEL DEBITO;05/08/2022;4157;0;639;1;Spese correnti;4;Trasferimenti correnti;2;Trasferimenti correnti a Famiglie;2;Interventi assistenziali;999;Altri assegni e sussidi assistenziali;09/08/2022
2938;1;9999999;200;200;OMESSO NOMINATIVO NEL RISPETTO DELLA NORMATIVA SULLA PROTEZIONE DATI PERSONALI; ;AGOSTO 2022 MINIMO VITALE;05/08/2022;4157;0;507;1;Spese correnti;4;Trasferimenti correnti;2;Trasferimenti correnti a Famiglie;2;Interventi assistenziali;999;Altri assegni e sussidi assistenziali;09/08/2022
2939;1;9999999;500;500;OMESSO NOMINATIVO NEL RISPETTO DELLA NORMATIVA SULLA PROTEZIONE DATI PERSONALI; ;AGOSTO 2022 MINIMO VITALE;05/08/2022;4157;0;641;1;Spese correnti;4;Trasferimenti correnti;2;Trasferimenti correnti a Famiglie;2;Interventi assistenziali;999;Altri assegni e sussidi assistenziali;08/08/2022
2940;1;9999999;100;100;OMESSO NOMINATIVO NEL RISPETTO DELLA NORMATIVA SULLA PROTEZIONE DATI PERSONALI; ;AGOSTO 2022 MINIMO VITALE;05/08/2022;4157;0;640;1;Spese correnti;4;Trasferimenti correnti;2;Trasferimenti correnti a Famiglie;2;Interventi assistenziali;999;Altri assegni e sussidi assistenziali;09/08/2022
2941;1;9999999;1.000,00;1.000,00;OMESSO NOMINATIVO NEL RISPETTO DELLA NORMATIVA SULLA PROTEZIONE DATI PERSONALI; ;AGOSTO 2022 MINIMO VITALE;05/08/2022;4157;0;642;1;Spese correnti;4;Trasferimenti correnti;2;Trasferimenti correnti a Famiglie;2;Interventi assistenziali;999;Altri assegni e sussidi assistenziali;09/08/2022
2942;1;9999999;250;250;OMESSO NOMINATIVO NEL RISPETTO DELLA NORMATIVA SULLA PROTEZIONE DATI PERSONALI; ;AGOSTO 2022 MINIMO VITALE;05/08/2022;4157;0;643;1;Spese correnti;4;Trasferimenti correnti;2;Trasferimenti correnti a Famiglie;2;Interventi assistenziali;999;Altri assegni e sussidi assistenziali;09/08/2022
2943;1;9999999;130;130;OMESSO NOMINATIVO NEL RISPETTO DELLA NORMATIVA SULLA PROTEZIONE DATI PERSONALI; ;AGOSTO 2022 MINIMO VITALE;05/08/2022;4157;0;396;1;Spese correnti;4;Trasferimenti correnti;2;Trasferimenti correnti a Famiglie;2;Interventi assistenziali;999;Altri assegni e sussidi assistenziali;24/08/2022
2944;1;9999999;700;700;OMESSO NOMINATIVO NEL RISPETTO DELLA NORMATIVA SULLA PROTEZIONE DATI PERSONALI; ;AGOSTO 2022 PROGETTO RILEVANZA SOCIALE;05/08/2022;4157;0;91;1;Spese correnti;4;Trasferimenti correnti;2;Trasferimenti correnti a Famiglie;2;Interventi assistenziali;999;Altri assegni e sussidi assistenziali;09/08/2022
2945;1;9999999;350;350;OMESSO NOMINATIVO NEL RISPETTO DELLA NORMATIVA SULLA PROTEZIONE DATI PERSONALI; ;AGOSTO 2022 MINIMO VITALE;05/08/2022;4157;0;644;1;Spese correnti;4;Trasferimenti correnti;2;Trasferimenti correnti a Famiglie;2;Interventi assistenziali;999;Altri assegni e sussidi assistenziali;09/08/2022
2946;1;9999999;150;150;OMESSO NOMINATIVO NEL RISPETTO DELLA NORMATIVA SULLA PROTEZIONE DATI PERSONALI; ;AGOSTO 2022 MINIMO VITALE;05/08/2022;4157;0;615;1;Spese correnti;4;Trasferimenti correnti;2;Trasferimenti correnti a Famiglie;2;Interventi assistenziali;999;Altri assegni e sussidi assistenziali;16/09/2022
2947;1;9999999;75;75;OMESSO NOMINATIVO NEL RISPETTO DELLA NORMATIVA SULLA PROTEZIONE DATI PERSONALI; ;AGOSTO 2022 MINIMO VITALE;05/08/2022;3757;0;617;1;Spese correnti;4;Trasferimenti correnti;2;Trasferimenti correnti a Famiglie;5;Altri trasferimenti a famiglie;999;Altri trasferimenti a famiglie n.a.c.;09/08/2022
2948;1;9999999;500;500;OMESSO NOMINATIVO NEL RISPETTO DELLA NORMATIVA SULLA PROTEZIONE DATI PERSONALI; ;OSPITE NDEFRU SALOMON ANYE  PAGAMENTO PARZIALE DEL DEBITO;05/08/2022;4157;0;645;1;Spese correnti;4;Trasferimenti correnti;2;Trasferimenti correnti a Famiglie;2;Interventi assistenziali;999;Altri assegni e sussidi assistenziali;09/08/2022
2949;1;9999999;150;150;OMESSO NOMINATIVO NEL RISPETTO DELLA NORMATIVA SULLA PROTEZIONE DATI PERSONALI; ;AGOSTO 2022 MINIMO VITALE;05/08/2022;4157;0;545;1;Spese correnti;4;Trasferimenti correnti;2;Trasferimenti correnti a Famiglie;2;Interventi assistenziali;999;Altri assegni e sussidi assistenziali;23/08/2022
2950;1;9999999;10.586,89;10.586,89;DIVERSI-AMMINISTRATORI COM.LI; ;STIPENDI MESE DI AGOSTO 22;05/08/2022;30;99;0;1;Spese correnti;3;Acquisto di beni e servizi;2;Acquisto di servizi;1;Organi e incarichi istituzionali dell'amministrazione;1;Organi istituzionali dell'amministrazione - Indennità;26/08/2022
3020;1;9999999;23,89;23,89;C/C/P 1039683022 -RISCOSSIONE COATTIVA EX ICP DPA; ;SPESE GESTIONE CONTI CORRENTI POSTALI C/C 001039683022 RENDICONTO LUGLIO 2022;05/08/2022;146;0;382;1;Spese correnti;3;Acquisto di beni e servizi;2;Acquisto di servizi;17;Servizi finanziari;999;Spese per servizi finanziari n.a.c.;10/08/2022
3021;1;9999999;490,36;490,36;COMUNE DI VENEZIA; ;I SEMESTRE 2022 RIMBORSO SPESE PER IL FUNZIONAMENTO DELLA 6 SOTTOCOMMISSIONE ELETTORALE CIRCONDARIALE DI MESTRE-VENEZIA- PER AMMISSIONE LISTE;08/08/2022;651;0;210;1;Spese correnti;4;Trasferimenti correnti;1;Trasferimenti correnti a Amministrazioni Pubbliche;2;Trasferimenti correnti a Amministrazioni Locali;3;Trasferimenti correnti a Comuni;10/08/2022
3022;1;9999999;500;500;A.S.D. OLIMPIA SALESE; ;CONTRIBUTO ECONOMICO PER LAVORI DI RIPRISTINO DI IMPIANTI SPORTIVI COMUNALI;08/08/2022;1959;0;631;1;Spese correnti;4;Trasferimenti correnti;4;Trasferimenti correnti a Istituzioni Sociali Private;1;Trasferimenti correnti a Istituzioni Sociali Private;1;Trasferimenti correnti a Istituzioni Sociali Private;10/08/2022
3023;1;9999999;500;500;UNIONE SPORTIVA SAN MARCO STIGLIANO A.S.D.; ;CONTRIBUTO ECONOMICO PER LAVORI DI RIPRISTINO DI IMPIANTI SPORTIVI COMUNALI;08/08/2022;1959;0;632;1;Spese correnti;4;Trasferimenti correnti;4;Trasferimenti correnti a Istituzioni Sociali Private;1;Trasferimenti correnti a Istituzioni Sociali Private;1;Trasferimenti correnti a Istituzioni Sociali Private;10/08/2022
3024;1;9999999;39.615,50;39.615,50;PAVING STONE SRLS;ZB134967D3;ACCONTO Fatt.n. 79  del 18/07/2022 INTERVENTI DI MANUTENZIONESTRAORDINARIA PAVIMENTAZIONE AREE PUBBLICHE E PIAZZE COMUNALI CIGZB134967D3 CUPF97H21011080004;08/08/2022;8558;0;1139;2;Spese in conto capitale;2;Investimenti fissi lordi e acquisto di terreni;1;Beni materiali;9;Beni immobili;12;Infrastrutture stradali;10/08/2022
3025;1;9999999;980,98;980,98;PAVING STONE SRLS;ZB134967D3;SALDO Fatt.n. 79  del 18/07/2022 INTERVENTI DI MANUTENZIONESTRAORDINARIA PAVIMENTAZIONE AREE PUBBLICHE E PIAZZE COMUNALI CIGZB134967D3 CUPF97H21011080004;08/08/2022;8558;0;1139;2;Spese in conto capitale;2;Investimenti fissi lordi e acquisto di terreni;1;Beni materiali;9;Beni immobili;12;Infrastrutture stradali;10/08/2022
3028;1;9999999;17.849,53;17.849,53;AGENZIA DELLE ENTRATE - IVA; ;LIQUIDAZIONE IVA COMMERCIALE MESE DI LUGLIO 2022;09/08/2022;291;0;652;1;Spese correnti;10;Altre spese correnti;3;Versamenti IVA a debito;1;Versamenti IVA a debito per le gestioni commerciali;1;Versamenti IVA a debito per le gestioni commerciali;16/08/2022
3029;1;9999999;250;250;OMESSO NOMINATIVO NEL RISPETTO DELLA NORMATIVA SULLA PROTEZIONE DATI PERSONALI; ;PROGETTO RIA - LUGLIO  2022;09/08/2022;3957;54;373;1;Spese correnti;4;Trasferimenti correnti;2;Trasferimenti correnti a Famiglie;5;Altri trasferimenti a famiglie;999;Altri trasferimenti a famiglie n.a.c.;02/09/2022
3030;1;9999999;250;250;OMESSO NOMINATIVO NEL RISPETTO DELLA NORMATIVA SULLA PROTEZIONE DATI PERSONALI; ;PROGETTO RIA - LUGLIO 2022;09/08/2022;3957;54;373;1;Spese correnti;4;Trasferimenti correnti;2;Trasferimenti correnti a Famiglie;5;Altri trasferimenti a famiglie;999;Altri trasferimenti a famiglie n.a.c.;06/09/2022
3031;1;9999999;250;250;OMESSO NOMINATIVO NEL RISPETTO DELLA NORMATIVA SULLA PROTEZIONE DATI PERSONALI; ;PROGETTO RIA  - LUGLIO 2022;09/08/2022;3957;54;373;1;Spese correnti;4;Trasferimenti correnti;2;Trasferimenti correnti a Famiglie;5;Altri trasferimenti a famiglie;999;Altri trasferimenti a famiglie n.a.c.;11/08/2022
3032;1;9999999;250;250;OMESSO NOMINATIVO NEL RISPETTO DELLA NORMATIVA SULLA PROTEZIONE DATI PERSONALI; ;PROGETTO RIA - LUGLIO 2022;09/08/2022;3957;54;373;1;Spese correnti;4;Trasferimenti correnti;2;Trasferimenti correnti a Famiglie;5;Altri trasferimenti a famiglie;999;Altri trasferimenti a famiglie n.a.c.;11/08/2022
3033;1;9999999;250;250;OMESSO NOMINATIVO NEL RISPETTO DELLA NORMATIVA SULLA PROTEZIONE DATI PERSONALI; ;PROGETTO RIA - GIUGNO 2022;09/08/2022;3957;54;373;1;Spese correnti;4;Trasferimenti correnti;2;Trasferimenti correnti a Famiglie;5;Altri trasferimenti a famiglie;999;Altri trasferimenti a famiglie n.a.c.;11/08/2022
3035;1;9999999;8.000,00;8.000,00;IST.COMPR.STAT.F.E P.CORDENONS; ;ACCONTO A.S. 2022/23 CONTRIBUTO ECONOMICO PER LE SPESE DI FUNZIONAMENTO E PROGETTUALITA PER LANNO 2022.;09/08/2022;1350;0;627;1;Spese correnti;4;Trasferimenti correnti;1;Trasferimenti correnti a Amministrazioni Pubbliche;1;Trasferimenti correnti a Amministrazioni Centrali;2;Trasferimenti correnti a Ministero dell'Istruzione - Istituzioni scolastiche;11/08/2022
3036;1;9999999;1.383,48;1.383,48;MONTIN MANUEL;Z3035CAF0D;"SALDO Fatt.n. 43  del 26/07/2022 	SALDO INCARICO PER SERVIZIO DI SERVICE ESTERNO A SUPPORTO DEL SETTORE TECNICO";10/08/2022;540;0;381;1;Spese correnti;3;Acquisto di beni e servizi;2;Acquisto di servizi;11;Prestazioni professionali e specialistiche;999;Altre prestazioni professionali e specialistiche n.a.c.;12/08/2022
3037;1;9999999;38.479,04;38.479,04;IMPRESA EDILE BARIZZA SAS DI BARIZZA G&C;9131131FA9;SALDO Fatt.n. FE/85  del 25/07/2022 SAL N. 1  PER LAVORI DI MANUTENZIONE STRAORDINARIA CIMITERO DI CASELLE;10/08/2022;8020;0;1098;2;Spese in conto capitale;2;Investimenti fissi lordi e acquisto di terreni;1;Beni materiali;9;Beni immobili;15;Cimiteri;12/08/2022
3038;1;9999999;7.435,20;7.435,20;SINERGO SPA;8510456A74;ACCONTO Fatt.n. 191  del 22/07/2022 INCARICO PER PROGETTAZIONE DEFINITIVA - ESECUTIVA - DIREZIONE LAVORI E COORDINAMENTO SICUREZZA STRUTTURE IN CEMENTO ARMATO PALESTRA SMS;10/08/2022;8469;0;1013;2;Spese in conto capitale;2;Investimenti fissi lordi e acquisto di terreni;1;Beni materiali;9;Beni immobili;16;Impianti sportivi;12/08/2022
3039;1;9999999;7.435,20;7.435,20;SINERGO SPA;8510456A74;SALDO Fatt.n. 191  del 22/07/2022 INCARICO PER PROGETTAZIONE DEFINITIVA - ESECUTIVA - DIREZIONE LAVORI E COORDINAMENTO SICUREZZA STRUTTURE IN CEMENTO ARMATO PALESTRA SMS;10/08/2022;8469;0;1013;2;Spese in conto capitale;2;Investimenti fissi lordi e acquisto di terreni;1;Beni materiali;9;Beni immobili;16;Impianti sportivi;12/08/2022
3040;1;9999999;37.802,82;37.802,82;PINATO MARINO;Z5D3483EA7;ACCONTO Fatt.n. 23/FE  del 25/07/2022 INTERVENTI DI MANUTENZIONE STRAORDINARIA DELLE ISOLE ECOLOGICHE NEL TERRITORIO COMUNALE: APPROVAZIONE DELLO STATO DI AVANZAMENTO LAVORI (SAL) N.1 CORRISPONDENTE AL FINALE E DEL RELATIVO CERTIFICATO DI PAGAMENTO;10/08/2022;8558;0;1068;2;Spese in conto capitale;2;Investimenti fissi lordi e acquisto di terreni;1;Beni materiali;9;Beni immobili;12;Infrastrutture stradali;12/08/2022
3041;1;9999999;1.395,68;1.395,68;PINATO MARINO;Z5D3483EA7;SALDO Fatt.n. 23/FE  del 25/07/2022 INTERVENTI DI MANUTENZIONE STRAORDINARIA DELLE ISOLE ECOLOGICHE NEL TERRITORIO COMUNALE: APPROVAZIONE DELLO STATO DI AVANZAMENTO LAVORI (SAL) N.1 CORRISPONDENTE AL FINALE E DEL RELATIVO CERTIFICATO DI PAGAMENTO;10/08/2022;8558;0;1068;2;Spese in conto capitale;2;Investimenti fissi lordi e acquisto di terreni;1;Beni materiali;9;Beni immobili;12;Infrastrutture stradali;12/08/2022
3042;1;9999999;10.248,00;10.248,00;TREVISAN FEDERICO;9124726A18;SALDO Fatt.n. 7/B00  del 26/07/2022 LAVORI DI SFALCIO ERBA BANCHINE STRADALI  SECONDO INTERVENTO;10/08/2022;2549;0;335;1;Spese correnti;3;Acquisto di beni e servizi;2;Acquisto di servizi;99;Altri servizi;9;Acquisto di sevizi per verde e arredo urbano;12/08/2022
3043;1;9999999;27,97;27,97;C/C/P 15453301 SERVIZIO DI TESORERIA COM; ;PESE GESTIONE CONTO CORRENTE POSTALE 15453301 LUGLIO 2022;10/08/2022;146;0;382;1;Spese correnti;3;Acquisto di beni e servizi;2;Acquisto di servizi;17;Servizi finanziari;999;Spese per servizi finanziari n.a.c.;12/08/2022
3044;1;9999999;4,78;4,78;COMUNE DI S.MARIA DI SALA; ;CONTRIBUTO IFEL RISCOSSIONE IMU RENDICONTO AL 10-08-2022;10/08/2022;332;0;0;1;Spese correnti;3;Acquisto di beni e servizi;2;Acquisto di servizi;3;Aggi di riscossione;999;Altri aggi di riscossione n.a.c.;18/08/2022
3045;1;9999999;500;500;ASS.STRADA DEL RADICCHIO; ;QUOTA SOCIALE DI ADESIONE ALLASSOCIAZIONE STRADA DEL RADICCHIO ROSSO DI TREVISO E VARIEGATO DI CASTELFRANCO - ANNO 2022.;12/08/2022;2158;0;657;1;Spese correnti;4;Trasferimenti correnti;3;Trasferimenti correnti a Imprese;99;Trasferimenti correnti a altre imprese;999;Trasferimenti correnti a altre imprese;18/08/2022
3046;1;9999999;1.250,00;1.250,00;CAFORIO PAOLO;Z9C360B247;SALDO COMPETENZE  INCARICO PER LA COLLABORAZIONE PROGETTAZIONE URBANISTICA.;12/08/2022;540;0;420;1;Spese correnti;3;Acquisto di beni e servizi;2;Acquisto di servizi;11;Prestazioni professionali e specialistiche;999;Altre prestazioni professionali e specialistiche n.a.c.;18/08/2022
3047;1;9999999;144,7;144,7;V.E.R.I.T.A.S. SPA; ;SALDO Fatt.n. 600006596707  del 20/07/2022 PERIODO 01.05.2022-30.06.2022 - CONSUMI SEDE MUNICIPALE;12/08/2022;134;31;340;1;Spese correnti;3;Acquisto di beni e servizi;2;Acquisto di servizi;5;Utenze e canoni;5;Acqua;18/08/2022
3048;1;9999999;13,14;393,22;V.E.R.I.T.A.S. SPA; ;SALDO Fatt.n. 600006596727  del 20/07/2022 PERIODO 01.05.2022-30.06.2022 - CONSUMI PIAZZA S.D.A. CALTANA;12/08/2022;134;31;340;1;Spese correnti;3;Acquisto di beni e servizi;2;Acquisto di servizi;5;Utenze e canoni;5;Acqua;18/08/2022
3048;2;9999999;24,53;393,22;V.E.R.I.T.A.S. SPA; ;SALDO Fatt.n. 600006596726  del 20/07/2022 PERIODO 01.05.2022-30.06.2022 - CONSUMI PIAZZA ACTV CALTANA;12/08/2022;134;31;340;1;Spese correnti;3;Acquisto di beni e servizi;2;Acquisto di servizi;5;Utenze e canoni;5;Acqua;18/08/2022
3048;3;9999999;44,5;393,22;V.E.R.I.T.A.S. SPA; ;SALDO Fatt.n. 600006596715  del 20/07/2022 PERIODO 01.05.2022-30.06.2022 - CONSUMI DISTRIBUTORE ACQUA CASELLE;12/08/2022;134;31;340;1;Spese correnti;3;Acquisto di beni e servizi;2;Acquisto di servizi;5;Utenze e canoni;5;Acqua;18/08/2022
3048;4;9999999;46,87;393,22;V.E.R.I.T.A.S. SPA; ;SALDO Fatt.n. 600006596716  del 20/07/2022 PERIODO 01.05.2022-30.06.2022 - ANTINCENDIO PARCHEGGIO SMS;12/08/2022;134;31;340;1;Spese correnti;3;Acquisto di beni e servizi;2;Acquisto di servizi;5;Utenze e canoni;5;Acqua;18/08/2022
3048;5;9999999;115,9;393,22;V.E.R.I.T.A.S. SPA; ;SALDO Fatt.n. 600006596706  del 20/07/2022 PERIODO 01.05.2022-30.06.2022 - CONSUMI MERCATO CASELLE;12/08/2022;134;31;340;1;Spese correnti;3;Acquisto di beni e servizi;2;Acquisto di servizi;5;Utenze e canoni;5;Acqua;18/08/2022
3048;6;9999999;148,28;393,22;V.E.R.I.T.A.S. SPA; ;SALDO Fatt.n. 600006596699  del 20/07/2022 PERIODO 01.05.2022-30.06.2022 - CONSUMI MERCATO CALTANA;12/08/2022;134;31;340;1;Spese correnti;3;Acquisto di beni e servizi;2;Acquisto di servizi;5;Utenze e canoni;5;Acqua;18/08/2022
3049;1;9999999;13,14;342,77;V.E.R.I.T.A.S. SPA; ;SALDO Fatt.n. 600006596729  del 20/07/2022 PERIODO 01.05.2022-30.06.2022 - CONSUMI PER MANIFESTAZIONI CALTANA;12/08/2022;134;31;340;1;Spese correnti;3;Acquisto di beni e servizi;2;Acquisto di servizi;5;Utenze e canoni;5;Acqua;18/08/2022
3049;2;9999999;46,87;342,77;V.E.R.I.T.A.S. SPA; ;SALDO Fatt.n. 600006596728  del 20/07/2022 PERIODO 01.05.2022-30.06.2022 - ANTINCENDIO PARCHEGGIO STIGLIANO;12/08/2022;134;31;340;1;Spese correnti;3;Acquisto di beni e servizi;2;Acquisto di servizi;5;Utenze e canoni;5;Acqua;18/08/2022
3049;3;9999999;70,69;342,77;V.E.R.I.T.A.S. SPA; ;SALDO Fatt.n. 600006596730  del 20/07/2022 PERIDO 01.05.2022-31.07.2022 - ANTINCENDIO Z.I. SMS;12/08/2022;134;31;340;1;Spese correnti;3;Acquisto di beni e servizi;2;Acquisto di servizi;5;Utenze e canoni;5;Acqua;18/08/2022
3049;4;9999999;70,69;342,77;V.E.R.I.T.A.S. SPA; ;SALDO Fatt.n. 600006596731  del 20/07/2022 PERIODO 01.05.2022-31.07.2022 - ANTINCENDIO Z.I.SMS;12/08/2022;134;31;340;1;Spese correnti;3;Acquisto di beni e servizi;2;Acquisto di servizi;5;Utenze e canoni;5;Acqua;18/08/2022
3049;5;9999999;70,69;342,77;V.E.R.I.T.A.S. SPA; ;SALDO Fatt.n. 600006596732  del 20/07/2022 PERIODO 01.05.2022-31.07.2022 - ANTINCENDIO PARCHEGGIO C.C. PRISMA CASELLE;12/08/2022;134;31;340;1;Spese correnti;3;Acquisto di beni e servizi;2;Acquisto di servizi;5;Utenze e canoni;5;Acqua;18/08/2022
3049;6;9999999;70,69;342,77;V.E.R.I.T.A.S. SPA; ;SALDO Fatt.n. 600006596733  del 20/07/2022 PERIODO 01.05.2022-31.07.2022 -  CONSUMI PRESSO STRADA ALLOGGIO GUIOTTO;12/08/2022;134;31;340;1;Spese correnti;3;Acquisto di beni e servizi;2;Acquisto di servizi;5;Utenze e canoni;5;Acqua;18/08/2022
3050;1;9999999;11,67;258,97;V.E.R.I.T.A.S. SPA; ;SALDO Fatt.n. 600006596734  del 20/07/2022 PERIODO 01.05.2022-30.06.2022 - CONSUMI FONTANA VETERNIGO;12/08/2022;134;31;340;1;Spese correnti;3;Acquisto di beni e servizi;2;Acquisto di servizi;5;Utenze e canoni;5;Acqua;18/08/2022
3050;2;9999999;42,44;258,97;V.E.R.I.T.A.S. SPA; ;SALDO Fatt.n. 600006596735  del 20/07/2022 PERIODO 01.05.2022-30.06.2022 - CONSUMI MERCATO SMS;12/08/2022;134;31;340;1;Spese correnti;3;Acquisto di beni e servizi;2;Acquisto di servizi;5;Utenze e canoni;5;Acqua;18/08/2022
3050;3;9999999;63,48;258,97;V.E.R.I.T.A.S. SPA; ;SALDO Fatt.n. 600006596737  del 20/07/2022 PERIODO 01.05.2022-30.06.2022 - CONSUMI PER MANIFESTAZIONI SMS;12/08/2022;134;31;340;1;Spese correnti;3;Acquisto di beni e servizi;2;Acquisto di servizi;5;Utenze e canoni;5;Acqua;18/08/2022
3050;4;9999999;70,69;258,97;V.E.R.I.T.A.S. SPA; ;SALDO Fatt.n. 600006596736  del 20/07/2022 PERIODO 01.05.2022-31.07.2022 - ANTINCENDIO PER MANIFESTAZIONI SMS;12/08/2022;134;31;340;1;Spese correnti;3;Acquisto di beni e servizi;2;Acquisto di servizi;5;Utenze e canoni;5;Acqua;18/08/2022
3050;5;9999999;70,69;258,97;V.E.R.I.T.A.S. SPA; ;SALDO Fatt.n. 600006596743  del 20/07/2022 PERIODO 01.05.2022-31.07.2022 - ANTINCENDIO PIAZZA BEVILACQUA;12/08/2022;134;31;340;1;Spese correnti;3;Acquisto di beni e servizi;2;Acquisto di servizi;5;Utenze e canoni;5;Acqua;18/08/2022
3051;1;9999999;13,01;165,18;V.E.R.I.T.A.S. SPA; ;SALDO Fatt.n. 600006596748  del 20/07/2022 PERIODO 01.05.2022-30.06.2022 - CONSUMI FONTANA VERDE CASELLE;12/08/2022;134;31;340;1;Spese correnti;3;Acquisto di beni e servizi;2;Acquisto di servizi;5;Utenze e canoni;5;Acqua;18/08/2022
3051;2;9999999;13,14;165,18;V.E.R.I.T.A.S. SPA; ;SALDO Fatt.n. 600006596744  del 20/07/2022 PERIODO 01.05.2022-30.06.2022 - CONSUMI PARCHEGGIO C.C. PRISMA CASELLE;12/08/2022;134;31;340;1;Spese correnti;3;Acquisto di beni e servizi;2;Acquisto di servizi;5;Utenze e canoni;5;Acqua;18/08/2022
3051;3;9999999;18,64;165,18;V.E.R.I.T.A.S. SPA; ;SALDO Fatt.n. 600006596745  del 20/07/2022 PERIODO 01.05.2022-30.06.2022 - CONSUMI PARCHEGGIO CASELLE;12/08/2022;134;31;340;1;Spese correnti;3;Acquisto di beni e servizi;2;Acquisto di servizi;5;Utenze e canoni;5;Acqua;18/08/2022
3051;4;9999999;49,7;165,18;V.E.R.I.T.A.S. SPA; ;SALDO Fatt.n. 600006596747  del 20/07/2022 PERIODO 01.05.2022-30.06.2022 - CONSUMI PIAZZA CASELLE;12/08/2022;134;31;340;1;Spese correnti;3;Acquisto di beni e servizi;2;Acquisto di servizi;5;Utenze e canoni;5;Acqua;18/08/2022
3051;5;9999999;70,69;165,18;V.E.R.I.T.A.S. SPA; ;SALDO Fatt.n. 600006596746  del 20/07/2022 PERIODO 01.05.2022-31.07.2022 - ANTINCENDIO PARCHEGGIO CASELLE;12/08/2022;134;31;340;1;Spese correnti;3;Acquisto di beni e servizi;2;Acquisto di servizi;5;Utenze e canoni;5;Acqua;18/08/2022
3052;1;9999999;46,87;355,47;V.E.R.I.T.A.S. SPA; ;SALDO Fatt.n. 600006596709  del 20/07/2022 PERIODO 01.05.2022-30.06.2022 - ANTINCENDIO SC. MEDIA SMS;12/08/2022;1334;30;341;1;Spese correnti;3;Acquisto di beni e servizi;2;Acquisto di servizi;5;Utenze e canoni;5;Acqua;18/08/2022
3052;2;9999999;46,87;355,47;V.E.R.I.T.A.S. SPA; ;SALDO Fatt.n. 600006596711  del 20/07/2022 PERIODO 01.05.2022-30.06.2022 - ANTINCENDIO SC. ELEM. CALTANA;12/08/2022;1334;30;341;1;Spese correnti;3;Acquisto di beni e servizi;2;Acquisto di servizi;5;Utenze e canoni;5;Acqua;18/08/2022
3052;3;9999999;89,42;355,47;V.E.R.I.T.A.S. SPA; ;SALDO Fatt.n. 600006596710  del 20/07/2022 PERIODO 01.05.2022-30.06.2022 - CONSUMI SC. ELEM. SMS;12/08/2022;1334;30;341;1;Spese correnti;3;Acquisto di beni e servizi;2;Acquisto di servizi;5;Utenze e canoni;5;Acqua;18/08/2022
3052;4;9999999;172,31;355,47;V.E.R.I.T.A.S. SPA; ;SALDO Fatt.n. 600006596708  del 20/07/2022 PERIODO 01.05.2022-30.06.2022 - CONSUMI SC. MEDIA SMS;12/08/2022;1334;30;341;1;Spese correnti;3;Acquisto di beni e servizi;2;Acquisto di servizi;5;Utenze e canoni;5;Acqua;18/08/2022
